{"text_format":"1","workbook":"xlsx","n_sheets":5,"sheets":["Instructions","Data collection form","CPC commodity codes","Lookups countries & currencies","Lookups other"],"not_rendered":{"charts":0,"images":0,"macros":1,"external_links":0,"defined_names":13,"comments":2,"pivot_tables":0},"unopened":[],"bounds":{"document_bytes":16777216,"sheet_cells":100000,"rows_first":2000,"rows_last":500,"rows_between":2000,"halvings":0,"cell_chars":16384,"cell_head_chars":4096},"cells_cut":0,"cells_raw":0,"read":"whole","date_system":"1900"}

{"sheet":"Instructions","index":0,"n_rows":8,"n_cols":2,"rows_kept":8,"cut":false,"hidden":false,"merged":[[2,0,2,1]]}
["About this workbook","An Excel template that can be used by lenders to request data from agri-SMEs to populate the bankability metrics, as proposed in the following report, published in March 2021:"]
[null,"Mobilizing Agricultural Finance: Toward a Common Language Between Lenders and Agri-SMEs in Sub-Saharan Africa"]
["Proposed usage scenarios"]
["Lenders","- Use the data collection form as a template for the pre-due diligence information request to agri-SMEs, reducing the costs and time it takes to identify and assess potential investments\n- Populate the data collection form with their minimum lending requirements and share it with the service providers, incubators and NGOs they work with, clarifying their expectations"]
["Agri-SMEs","- Proactively complete the data collection form during preparation for finance,  understanding what information lenders commonly request and saving time"]
["TA & BDS providers","- Complete the data collection form as part of an agri-SME's assessment, understanding their preparation for finance and targetting their support to improve the agri-SME's capacity to seek finance\n- Request the lenders in their network complete the data collection form with their minimum lending requirements, clarifying their expectations"]
["Usage instructions","- Enter metric values in column G and columns H-I, only as indicated for a matrix of values\n- Show the hidden columns D-F to view metric descriptions, data types and validation guidelines\n- If you need to enter more than 3 columns of values in the Outstanding obligation, Person or Changes to senior staff in the last 3 years matrices, copy column J, paste to the right as many times as required and number the matrix column headers accordingly"]
["Acknowledgements","The Center for Financial Inclusion (CFI) and SCOPEinsight carried out this research as\npart of our partnership with the Alliance for a Green Revolution in Africa (AGRA). This research is made possible by the generous support of the American people through the United States Agency for International Development (USAID).\nThe contents are the responsibility of the Center for Financial Inclusion and do not\nnecessarily reflect the views of USAID or the United States Government."]

{"sheet":"Data collection form","index":1,"n_rows":107,"n_cols":10,"rows_kept":107,"cut":false,"hidden":false,"merged":[[1,1,8,1],[9,1,20,1],[1,0,36,0],[37,0,106,0],[21,1,29,1],[30,1,36,1],[37,1,66,1],[67,1,85,1],[86,1,106,1],[7,3,8,3],[15,3,16,3],[9,3,12,3],[18,3,20,3],[68,3,71,3],[58,3,65,3],[75,3,79,3],[82,3,83,3],[21,3,23,3],[39,3,41,3],[51,3,55,3]]}
["Category","Section","Field name","Field description","Field type","Field validation","Field value / Matrix column 1","Matrix column 2","Matrix column 3","Matrix column n"]
["A: General","A1: Company information","Business ID / Registration number","Unique identifier provided by the relevant national company registration authority","Text"]
[null,null,"Tax ID / Tax account","Unique identifier provided by the national tax and revenue authority","Text"]
[null,null,"Organization type (by legal ownership)","Ownership structure as registered with relevant national authority","Single-select","Selection from drop-down"]
[null,null,"Business description","The purpose of the company","Text"]
[null,null,"Organizational structure","Overview of any divisions and their reporting lines within the company","Text"]
[null,null,"Primary activities of business","Primary activities in the context of the relevant value chains","Text"]
[null,null,"Financial statements are audited","If financial statements have been audited by a registered accounting firm, the number of years this has been the case","Yes/No"]
[null,null,"If audited, for how many years",null,"Number"]
[null,"A2: Contact information","Street","Address as registered with the relevant national company registration authority","Text"]
[null,null,"City",null,"Text"]
[null,null,"State or region",null,"Text"]
[null,null,"Country",null,"Single-select","Selection from drop-down"]
[null,null,"Legal name","Full name as registered with the relevant national company registration authority","Text"]
[null,null,"Commercial or trade name","Common name, if different from legal name","Text"]
[null,null,"Website","General contact information","URL","Website URL"]
[null,null,"Phone number",null,"Phone number"]
[null,null,"Point of contact"]
[null,null,"Name","Contact information of primary point of contact","Text"]
[null,null,"Title",null,"Text"]
[null,null,"Email",null,"Email address","Email address"]
[null,"A3: Finance request","Currency","Target value and currency of loan and if this is flexible","Currency code"]
[null,null,"Loan amount requested",null,"Value"]
[null,null,"Is the loan amount requested flexible",null,"Yes/No"]
[null,null,"Currency requirement","Local, foreign, or either currency required","Single-select","Selection from drop-down"]
[null,null,"Date loan is required","Target date to receive loan","Date (month & year)"]
[null,null,"Loan purpose","Relevant categories of loan purpose","Multi-select","Selection(s) from drop-down"]
[null,null,"Specifics of loan use","Specific activities or items to be financed by this loan","Text"]
[null,null,"Length of loan","Target loan term in years","Text","Number with months or years"]
[null,null,"Repayment intentions of the loan","Specifics of how the loan will be repaid","Text"]
[null,"A4: Documents","Registration","Documents, including constitutional and registration documents, created when the company was established","File(s)","Filename(s), sent as additional attachments"]
[null,null,"Management CVs","For current managers","File(s)","Filename(s), sent as additional attachments"]
[null,null,"Fiscal-year-end financial statements","Balance sheet, income statement, and cash flow statement for the previous three fiscal years","File(s)","Filename(s), sent as additional attachments"]
[null,null,"Year-to-date interim statements","Balance sheet, income statement, and cash flow statement through the most recent fiscal quarter end","File(s)","Filename(s), sent as additional attachments"]
[null,null,"Financial statement projections","Balance sheet and income statement for the first 12 months of the requested loan with quarterly projections beyond one year, if applicable","File(s)","Filename(s), sent as additional attachments"]
[null,null,"Tax clearance certificate ","As submitted to the relevant national tax and revenue authority","File(s)","Filename(s), sent as additional attachments"]
[null,null,"Technical certificates","As may be required for the company to handle food, produce seed, sell agrochemicals, etc.","File(s)","Filename(s), sent as additional attachments"]
["B: Bankability","B1: Business activity","Year founded","Year the organization was founded ","Date (year)","GIIN IRIS OD3520"]
[null,null,"Number of employees"]
[null,null,"Full-time","Number of all employees in the business, including full-time, part-time, and temporary employees","Number"]
[null,null,"Part-time",null,"Number"]
[null,null,"Temporary",null,"Number"]
[null,null,"Top 3 commodities/products by share of sales by value"]
[null,null,"Currency","Currency of the Commodity/product values","Currency code"]
[null,null,"As of","Top three commodities/products of the business by share of sales (value)","Date"]
[null,null,"Commodity/product matrix",null,null,null,"Commodity/product #1","Commodity/product #2","Commodity/product #3"]
[null,null,"Commodity/product CPC commodities code",null,"CPC commodities code","CPC commodity code"]
[null,null,"Commodity/product CPC commodities description",null,null,null,{"$f":"IF(G47=\"\",\"Enter CPC code above\",IF(ISERROR(VLOOKUP(G47,CPC_commodities,2,FALSE)),\"Enter a valid CPC code above\",VLOOKUP(G47,CPC_commodities,2,FALSE)))","v":"Enter CPC code above"},{"$f":"IF(H47=\"\",\"Enter CPC code above\",IF(ISERROR(VLOOKUP(H47,CPC_commodities,2,FALSE)),\"Enter a valid CPC code above\",VLOOKUP(H47,CPC_commodities,2,FALSE)))","v":"Enter CPC code above"},{"$f":"IF(I47=\"\",\"Enter CPC code above\",IF(ISERROR(VLOOKUP(I47,CPC_commodities,2,FALSE)),\"Enter a valid CPC code above\",VLOOKUP(I47,CPC_commodities,2,FALSE)))","v":"Enter CPC code above"}]
[null,null,"Share of sales",null,"Percentage"]
[null,null,"Value",null,"Value"]
[null,null,"Top 3 clients by share of sales by value"]
[null,null,"Client matrix","Top three clients by share of sales (value), preferably for the past two years. For each, include: client type (by place in value chain), years of relationship, current contracts",null,null,"Client #1","Client #2","Client #3"]
[null,null,"Client type",null,"Multi-select","Selection(s) from drop-down"]
[null,null,"Client's share of sales by value",null,"Percentage"]
[null,null,"First year of sales",null,"Date (year)"]
[null,null,"Number of current contracts",null,"Number"]
[null,null,"All outstanding obligations including debts, donations and grants"]
[null,null,"Currency","Currency of the Outstanding obligation values","Currency code"]
[null,null,"Outstanding obligation matrix","All outstanding debts, donations or grants. For each, include: provider, total amount, amount outstanding, security, purpose, start date, end date",null,null,"Outstanding obligation #1","Outstanding obligation #2","Outstanding obligation #3","Outstanding obligation #n"]
[null,null,"Provider name",null,"Text"]
[null,null,"Disbursed amount",null,"Value"]
[null,null,"Disbursement date",null,"Date"]
[null,null,"Loan period",null,"Text","Number with months or years"]
[null,null,"Balance outstanding",null,"Value"]
[null,null,"Now or previously in arrears",null,"Yes/No"]
[null,null,"If now or previously in arrears, what's the plan for repayment",null,"Text"]
[null,null,"Current contracts specify pricing","Current contracts clearly define pricing for the products sold","Single-select","Selection from drop-down"]
[null,"B2: Governance","Decision-making process"]
[null,null,"Management makes important decisions (e.g. on strategy, hiring new executives, approving budgets) by consensus","Level of independence and consensus in the management team’s decision-making process","Single-select","Selection from drop-down"]
[null,null,"Management makes day-to-day decisions without interference from the board of directors",null,"Single-select","Selection from drop-down"]
[null,null,"Management makes day-to-day decisions without interference from other external persons or organizations",null,"Single-select","Selection from drop-down"]
[null,null,"Board members provide unsolicited advice regarding day-to-day management",null,"Single-select","Selection from drop-down"]
[null,null,"Management, board of directors & shareholders"]
[null,null,"Person matrix",null,null,null,"Person #1","Person #2","Person #3","Person #n"]
[null,null,"Name",null,"Text"]
[null,null,"Year of first full time position in agriculture","Number of years and positions held","Date (year)"]
[null,null,"Year joined business",null,"Date (year)"]
[null,null,"Current title",null,"Text"]
[null,null,"If a function head, which function(s)",null,"Multi-select","Selection(s) from drop-down"]
[null,null,"Full time",null,"Yes/No"]
[null,null,"If a top 10 shareholder, percentage ownership","Top 10 shareholders by share of capital. Exception: For cooperatives or producer associations with more than 30 members, only shareholders holding 20% or more of total shares","Percentage"]
[null,null,"Is the primary decision-maker",null,"Yes/No"]
[null,null,"If primary decision-maker, years of experience in the industry","The level of commitment of the business manager to the business through indications of other current professional occupations","Number"]
[null,null,"If primary decision-maker, any other professional occupations",null,"Text"]
[null,null,"Changes to senior staff in the last 3 years matrix",null,null,null,"Change #1","Change #2","Change #3","Change #n"]
[null,null,"What changed & why did it change","Recent changes in management and reasons why","Text"]
[null,"B3: Financials","Currency","Currency of the Financials values","Currency code"]
[null,null,"Most recent completed Fiscal Year (FY)","Most recent completed Fiscal Year in the company's country","Year"]
[null,null,"Balance sheet matrix",null,null,null,{"$f":"\"FY\"&($G$88-2)","v":"FY-2"},{"$f":"\"FY\"&($G$88-1)","v":"FY-1"},{"$f":"\"FY\"&$G$88","v":"FY"}]
[null,null,"Current assets","Value, at the end of the reporting period, of the organization's assets that are reasonably expected to be converted into cash within one year in the normal course of business","Value","GIIN IRIS FP6926"]
[null,null,"Total assets","Value, at the end of the reporting period, of all of the organization's assets","Value","GIIN IRIS FP5293"]
[null,null,"Current liabilities","Value, at the end of the reporting period, of all liabilities that are expected to be settled within one year in the normal course of business","Value","GIIN IRIS FP2269"]
[null,null,"Total debt","Value, at the end of the reporting period, of an organization's long term debts and current liabilities, including short term debt","Value","Not available"]
[null,null,"Total liabilities","Value of organization's liabilities at the end of the reporting period","Value","GIIN IRIS FP1996"]
[null,null,"Total equity","Value of the residual interest, at the end of the reporting period, in the assets of the organization after deducting all its liabilities. Net assets is equivalent to total assets minus total liabilities.","Value","GIIN IRIS FP5317"]
[null,null,"Income statement matrix",null,null,null,{"$f":"\"FY\"&($G$88-2)","v":"FY-2"},{"$f":"\"FY\"&($G$88-1)","v":"FY-1"},{"$f":"\"FY\"&$G$88","v":"FY"}]
[null,null,"Sales revenue","Value of the revenue from sales of the organization's products/services during the reporting period ","Value","GIIN IRIS PI1775"]
[null,null,"Total revenue","Value of all revenue received by the organization during the reporting period","Value","GIIN IRIS FP6510 "]
[null,null,"Cost of goods sold","Value of direct expenditures attributable to the production of the goods sold by the organization during the reporting period","Value","GIIN IRIS FP9049"]
[null,null,"Total expenses","Value of all expenditures incurred by the organization during the reporting period","Value","GIIN IRIS FP2321"]
[null,null,"Cash flows from operating activities","Value of the organization's cash flows for the reporting period related to operating activities","Value","GIIN IRIS FP4812"]
[null,null,"Net income (Net profit)","Value of the organization's net profit, calculated as total income minus total expenses, taxes, and cost of goods sold during the reporting period","Value","GIIN IRIS FP1301 "]
[null,null,"Calculations",null,null,null,{"$f":"\"FY\"&($G$88-2)","v":"FY-2"},{"$f":"\"FY\"&($G$88-1)","v":"FY-1"},{"$f":"\"FY\"&$G$88","v":"FY"}]
[null,null,"Current ratio (calculated)","Current assets / Current liabilities","Calculated","Not available",{"$f":"IFERROR(G90/G92,\"\")","v":""},{"$f":"IFERROR(H90/H92,\"\")","v":""},""]
[null,null,"Leverage ratio (calculated)","Total liabilities / Total equity","Calculated","Not available",{"$f":"IFERROR(G94/G95,\"\")","v":""},{"$f":"IFERROR(H94/H95,\"\")","v":""},""]
[null,null,"Return on assets (calculated)","Net income / Total assets","Calculated","Not available",{"$f":"IFERROR(G102/G91,\"\")","v":""},{"$f":"IFERROR(H102/H91,\"\")","v":""},""]
[null,null,"Cash flow coverage ratio (calculated)","Cash flows from operating activities / Total debt","Calculated","Not available",{"$f":"IFERROR(G101/G93,\"\")","v":""},{"$f":"IFERROR(H101/H93,\"\")","v":""},""]

{"sheet":"CPC commodity codes","index":2,"n_rows":4412,"n_cols":3,"rows_kept":4412,"cut":false,"hidden":false,"merged":[]}
["Use the search in the CPC Description filter below to find the commodity, entering its respective CPC Code on the Data collection form"]
["CPC Level","CPC Code","CPC Description"]
["Section",0,"Agriculture, forestry and fishery products"]
["Division",1,"Products of agriculture, horticulture and market gardening"]
["Level 1",11,"Cereals"]
["Level 2",111,"Wheat"]
["Level 3",1111,"Wheat, seed"]
["Level 3",1112,"Wheat, other"]
["Level 2",112,"Maize (corn)"]
["Level 3",1121,"Maize (corn), seed"]
["Level 3",1122,"Maize (corn), other"]
["Level 2",113,"Rice"]
["Level 3",1131,"Rice, seed"]
["Level 3",1132,"Rice paddy, other (not husked)"]
["Level 2",114,"Sorghum"]
["Level 3",1141,"Sorghum, seed"]
["Level 3",1142,"Sorghum, other"]
["Level 2",115,"Barley"]
["Level 3",1151,"Barley, seed"]
["Level 3",1152,"Barley, other"]
["Level 2",116,"Rye"]
["Level 3",1161,"Rye, seed"]
["Level 3",1162,"Rye, other"]
["Level 2",117,"Oats"]
["Level 3",1171,"Oats, seed"]
["Level 3",1172,"Oats, other"]
["Level 2",118,"Millet"]
["Level 3",1181,"Millet, seed"]
["Level 3",1182,"Millet, other"]
["Level 2",119,"Other cereals"]
["Level 3",1190,"Other cereals"]
["Level 3",1191,"Quinoa"]
["Level 1",12,"Vegetables"]
["Level 2",121,"Leafy or stem vegetables"]
["Level 3",1211,"Asparagus"]
["Level 3",1212,"Cabbages"]
["Level 3",1213,"Cauliflowers and broccoli"]
["Level 3",1214,"Lettuce and chicory"]
["Level 3",1215,"Spinach"]
["Level 3",1216,"Artichokes"]
["Level 3",1219,"Other leafy or stem vegetables"]
["Level 2",122,"Melons"]
["Level 3",1221,"Watermelons"]
["Level 3",1229,"Cantaloupes and other melons"]
["Level 2",123,"Fruit-bearing vegetables"]
["Level 3",1231,"Chillies and peppers, green (only capsicum)"]
["Level 3",1232,"Cucumbers and gherkins"]
["Level 3",1233,"Eggplants (aubergines)"]
["Level 3",1234,"Tomatoes"]
["Level 3",1235,"Pumpkins, squash and gourds"]
["Level 3",1239,"Other fruit-bearing vegetables"]
["Level 2",124,"Green leguminous vegetables"]
["Level 3",1241,"Beans, green"]
["Level 3",1242,"Peas, green"]
["Level 3",1249,"Other green leguminous vegetables"]
["Level 2",125,"Root, bulb or tuberous vegetables"]
["Level 3",1251,"Carrots and turnips"]
["Level 3",1252,"Green garlic"]
["Level 3",1253,"Onions"]
["Level 3",1254,"Leeks and other alliaceous vegetables"]
["Level 3",1259,"Other root, bulb and tuberous vegetables, n.e.c."]
["Level 2",126,"Vegetable seeds, except beet seeds"]
["Level 3",1260,"Vegetable seeds, except beet seeds"]
["Level 2",127,"Mushrooms and truffles"]
["Level 3",1270,"Mushrooms and truffles"]
["Level 2",129,"Vegetables, fresh, n.e.c."]
["Level 3",1290,"Vegetables, fresh, n.e.c."]
["Level 1",13,"Fruit and nuts"]
["Level 2",131,"Tropical and subtropical fruits"]
["Level 3",1311,"Avocados"]
["Level 3",1312,"Bananas"]
["Level 3",1313,"Plantains and others"]
["Level 3",1314,"Dates"]
["Level 3",1315,"Figs"]
["Level 3",1316,"Mangoes"]
["Level 3",1317,"Papayas"]
["Level 3",1318,"Pineapples"]
["Level 3",1319,"Other tropical and subtropical fruits, n.e.c."]
["Level 2",132,"Citrus fruits"]
["Level 3",1321,"Pomelos and grapefruits"]
["Level 3",1322,"Lemons and Limes"]
["Level 3",1323,"Oranges"]
["Level 3",1324,"Tangerines, mandarines, clementines"]
["Level 3",1329,"Other citrus fruit, n.e.c."]
["Level 2",133,"Grapes"]
["Level 3",1330,"Grapes"]
["Level 2",134,"Berries and the fruits of the genus vaccinium"]
["Level 3",1341,"Currants and gooseberries"]
["Level 3",1342,"Kiwi fruit"]
["Level 3",1343,"Raspberries, blackberries, mulberries and loganberries"]
["Level 3",1344,"Strawberries"]
["Level 3",1349,"Other berries, fruits of the genus vaccinium n.e.c."]
["Level 2",135,"Pome fruits and stone fruits"]
["Level 3",1351,"Apples"]
["Level 3",1352,"Pears and quinces"]
["Level 3",1353,"Apricots"]
["Level 3",1354,"Cherries"]
["Level 3",1355,"Peaches and nectarines"]
["Level 3",1356,"Plums and sloes"]
["Level 3",1359,"Other pome fruits and stone fruits, n.e.c."]
["Level 2",136,"Fruit seeds"]
["Level 3",1360,"Fruit seeds"]
["Level 2",137,"Nuts (excluding wild edible nuts and groundnuts), in shell"]
["Level 3",1371,"Almonds, in shell"]
["Level 3",1372,"Cashew nuts, in shell"]
["Level 3",1373,"Chestnuts, in shell"]
["Level 3",1374,"Hazelnuts, in shell"]
["Level 3",1375,"Pistachios, in shell"]
["Level 3",1376,"Walnuts, in shell"]
["Level 3",1377,"Brazil nuts, in shell"]
["Level 3",1379,"Other nuts (excluding wild edible nuts and groundnuts), in shell"]
["Level 2",139,"Other fruits, n.e.c."]
["Level 3",1391,"Locust beans (carobs)"]
["Level 3",1399,"Other fruits, n.e.c."]
["Level 1",14,"Oilseeds and oleaginous fruits"]
["Level 2",141,"Soya beans"]
["Level 3",1411,"Soya beans, seed for planting"]
["Level 3",1412,"Soya beans, other"]
["Level 2",142,"Groundnuts in shell"]
["Level 3",1421,"Groundnuts in shell, seed for planting"]
["Level 3",1422,"Groundnuts in shell, other"]
["Level 2",143,"Cottonseed"]
["Level 3",1431,"Cottonseed, seed for planting"]
["Level 3",1432,"Cottonseed, other"]
["Level 2",144,"Other oilseeds"]
["Level 3",1441,"Linseed"]
["Level 3",1442,"Mustard seed"]
["Level 3",1443,"Rape or colza seed"]
["Level 3",1444,"Sesame seed"]
["Level 3",1445,"Sunflower seed"]
["Level 3",1446,"Safflower seed"]
["Level 3",1449,"Other oil seeds, n.e.c."]
["Level 2",145,"Olives"]
["Level 3",1450,"Olives"]
["Level 2",146,"Coconuts, in shell"]
["Level 3",1460,"Coconuts, in shell"]
["Level 2",149,"Other oleaginous fruits"]
["Level 3",1491,"Palm nuts and kernels"]
["Level 3",1499,"Other oleaginous fruits, n.e.c."]
["Level 1",15,"Edible roots and tubers with high starch or inulin content"]
["Level 2",151,"Potatoes"]
["Level 3",1510,"Potatoes"]
["Level 2",159,"Other edible roots and tubers with high starch or inulin content"]
["Level 3",1591,"Sweet potatoes"]
["Level 3",1592,"Cassava"]
["Level 3",1593,"Yams"]
["Level 3",1599,"Edible roots and tubers with high starch or inulin content, n.e.c."]
["Level 1",16,"Stimulant, spice and aromatic crops"]
["Level 2",161,"Coffee, green"]
["Level 3",1610,"Coffee, green"]
["Level 2",162,"Tea leaves"]
["Level 3",1620,"Tea leaves"]
["Level 2",163,"Maté leaves"]
["Level 3",1630,"Maté leaves"]
["Level 2",164,"Cocoa beans"]
["Level 3",1640,"Cocoa beans"]
["Level 2",165,"Spice and aromatic crops, raw"]
["Level 3",1651,"Pepper (Piper spp.), raw"]
["Level 3",1652,"Chillies and peppers, dry (Capsicum spp., Pimenta), raw"]
["Level 3",1653,"Nutmeg, mace, cardamoms, raw"]
["Level 3",1654,"Anise, badian, coriander, cumin, caraway, fennel and juniper berries, raw"]
["Level 3",1655,"Cinnamon (canella), raw"]
["Level 3",1656,"Cloves (whole stems), raw"]
["Level 3",1657,"Ginger, raw"]
["Level 3",1658,"Vanilla, raw"]
["Level 3",1659,"Hop cones"]
["Level 2",169,"Stimulant, spice and aromatic crops, n.e.c."]
["Level 3",1690,"Stimulant, spice and aromatic crops, n.e.c."]
["Level 1",17,"Pulses (dried leguminous vegetables)"]
["Level 2",170,"Pulses (dried leguminous vegetables)"]
["Level 3",1701,"Beans, dry"]
["Level 3",1702,"Broad beans, dry"]
["Level 3",1703,"Chick peas, dry"]
["Level 3",1704,"Lentils, dry"]
["Level 3",1705,"Peas, dry"]
["Level 3",1709,"Pulses, n.e.c."]
["Level 1",18,"Sugar crops"]
["Level 2",180,"Sugar crops"]
["Level 3",1801,"Sugar beet"]
["Level 3",1802,"Sugar cane"]
["Level 3",1803,"Sugar beet seeds"]
["Level 3",1809,"Other sugar crops n.e.c."]
["Level 1",19,"Forage products, fibres, living plants, cut flowers and flower buds, unmanufactured tobacco, and natural rubber"]
["Level 2",191,"Forage products"]
["Level 3",1911,"Maize for forage and silage"]
["Level 3",1912,"Alfalfa for forage and silage"]
["Level 3",1913,"Cereal straw, husks, unprepared, ground, pressed, or in the form of pellets"]
["Level 3",1919,"Forage products, n.e.c."]
["Level 2",192,"Fibre crops"]
["Level 3",1921,"Cotton, whether or not ginned"]
["Level 3",1922,"Jute, kenaf, and other textile bast fibres, raw or retted, except flax, true hemp and ramie"]
["Level 3",1929,"Other fibre crops, raw, n.e.c."]
["Level 2",193,"Plants and parts of plants used primarily in perfumery, in pharmacy, or for insecticidal, fungicidal or similar purposes"]
["Level 3",1930,"Plants and parts of plants used primarily in perfumery, in pharmacy, or for insecticidal, fungicidal or similar purposes"]
["Level 2",194,"Beet seeds (excluding sugar beet seeds) and seeds of forage plants"]
["Level 3",1940,"Beet seeds (excluding sugar beet seeds) and seeds of forage plants"]
["Level 2",195,"Natural rubber in primary forms or in plates, sheets or strip"]
["Level 3",1950,"Natural rubber in primary forms or in plates, sheets or strip"]
["Level 2",196,"Living plants; cut flowers and flower buds; flower seeds"]
["Level 3",1961,"Live plants; bulbs, tubers and roots; cuttings and slips; mushroom spawn"]
["Level 3",1962,"Cut flowers and flower buds including bouquets, wreaths, floral baskets and similar articles"]
["Level 3",1963,"Flower seeds"]
["Level 2",197,"Unmanufactured tobacco"]
["Level 3",1970,"Unmanufactured tobacco"]
["Level 2",199,"Other raw vegetable materials, n.e.c."]
["Level 3",1990,"Other raw vegetable materials, n.e.c."]
["Division",2,"Live animals and animal products (excluding meat)"]
["Level 1",21,"Live animals"]
["Level 2",211,"Bovine animals, live"]
["Level 3",2111,"Cattle"]
["Level 3",2112,"Buffalo"]
["Level 2",212,"Other ruminants"]
["Level 3",2121,"Camels and camelids"]
["Level 3",2122,"Sheep"]
["Level 3",2123,"Goats"]
["Level 3",2129,"Other ruminants, n.e.c."]
["Level 2",213,"Horses and other equines"]
["Level 3",2130,"Horses and other equines"]
["Level 2",214,"Swine / pigs"]
["Level 3",2140,"Swine / pigs"]
["Level 2",215,"Poultry"]
["Level 3",2151,"Chickens"]
["Level 3",2152,"Turkeys"]
["Level 3",2153,"Geese"]
["Level 3",2154,"Ducks"]
["Level 3",2155,"Guinea fowls"]
["Level 2",219,"Other live animals"]
["Level 3",2191,"Rabbits and hares"]
["Level 3",2192,"Other mammals"]
["Level 3",2193,"Ostriches and emus"]
["Level 3",2194,"Other birds"]
["Level 3",2195,"Reptiles"]
["Level 3",2196,"Bees"]
["Level 3",2199,"Other live animals, n.e.c."]
["Level 1",22,"Raw milk"]
["Level 2",221,"Raw milk from bovine animals"]
["Level 3",2211,"Raw milk of cattle"]
["Level 3",2212,"Raw milk of buffalo"]
["Level 2",229,"Other raw milk"]
["Level 3",2291,"Raw milk of sheep"]
["Level 3",2292,"Raw milk of goats"]
["Level 3",2293,"Raw milk of camel"]
["Level 3",2299,"Other raw milk n.e.c."]
["Level 1",23,"Eggs of hens or other birds in shell, fresh"]
["Level 2",231,"Hen eggs in shell, fresh"]
["Level 3",2310,"Hen eggs in shell, fresh"]
["Level 2",232,"Eggs from other birds in shell, fresh, n.e.c."]
["Level 3",2320,"Eggs from other birds in shell, fresh, n.e.c."]
["Level 2",233,"Eggs for hatching"]
["Level 3",2330,"Eggs for hatching"]
["Level 1",24,"Reproductive materials of animals"]
["Level 2",241,"Semen"]
["Level 3",2411,"Bovine semen"]
["Level 3",2419,"Semen, n.e.c."]
["Level 2",242,"Embryos"]
["Level 3",2420,"Embryos"]
["Level 1",29,"Other animal products"]
["Level 2",291,"Natural honey"]
["Level 3",2910,"Natural honey"]
["Level 2",292,"Snails, fresh, chilled, frozen, dried, salted or in brine, except sea snails"]
["Level 3",2920,"Snails, fresh, chilled, frozen, dried, salted or in brine, except sea snails"]
["Level 2",293,"Edible products of animal origin n.e.c."]
["Level 3",2930,"Edible products of animal origin n.e.c."]
["Level 2",294,"Raw animal materials used in textiles"]
["Level 3",2941,"Shorn wool, greasy, including fleece-washed shorn wool"]
["Level 3",2942,"Pulled wool, greasy, including fleece-washed pulled wool; coarse animal hair"]
["Level 3",2943,"Fine animal hair, not carded or combed"]
["Level 3",2944,"Silk-worm cocoons suitable for reeling"]
["Level 2",295,"Hides, skins and furskins, raw"]
["Level 3",2951,"Raw hides and skins of bovine animals"]
["Level 3",2952,"Raw hides and skins of equine animals"]
["Level 3",2953,"Raw hides and skins of sheep or lambs"]
["Level 3",2954,"Raw hides and skins of goats or kids"]
["Level 3",2955,"Raw furskins"]
["Level 3",2959,"Raw skins of other animals"]
["Level 2",296,"Insect waxes and spermaceti, whether or not refined or coloured"]
["Level 3",2960,"Insect waxes and spermaceti, whether or not refined or coloured"]
["Division",3,"Forestry and logging products"]
["Level 1",31,"Wood in the rough"]
["Level 2",311,"Logs of coniferous wood"]
["Level 3",3110,"Logs of coniferous wood"]
["Level 2",312,"Logs of non-coniferous wood"]
["Level 3",3120,"Logs of non-coniferous wood"]
["Level 2",313,"Fuel wood, in logs, in billets, in twigs, in faggots or in similar forms"]
["Level 3",3130,"Fuel wood, in logs, in billets, in twigs, in faggots or in similar forms"]
["Level 1",32,"Non-wood forest products"]
["Level 2",321,"Natural gums and resins, gums-resins and oleoresins"]
["Level 3",3211,"Balata, gutta-percha, guayule, chicle and similar natural gums in primary forms or in plates, sheets or strip"]
["Level 3",3219,"Lac, resins, balsams, natural gums and other resins n.e.c."]
["Level 2",322,"Natural cork, raw or simply prepared"]
["Level 3",3220,"Natural cork, raw or simply prepared"]
["Level 2",323,"Wild edible products"]
["Level 3",3230,"Wild edible products"]
["Level 2",324,"Parts of plants, without flowers or flower buds, and grasses, mosses and lichens, suitable for ornamental purposes"]
["Level 3",3241,"Christmas trees"]
["Level 3",3249,"Other parts of plants, without flowers or flower buds, and grasses, mosses and lichens, suitable for ornamental purposes"]
["Level 2",325,"Vegetable materials of a kind used primarily for plaiting or as stuffing or padding; raw vegetable materials of a kind used primarily for dyeing or tanning; vegetable products n.e.c."]
["Level 3",3250,"Vegetable materials of a kind used primarily for plaiting or as stuffing or padding; raw vegetable materials of a kind used primarily for dyeing or tanning; vegetable products n.e.c."]
["Division",4,"Fish and other fishing products"]
["Level 1",41,"Fishes, live, fresh or chilled"]
["Level 2",411,"Fish, live"]
["Level 3",4111,"Ornamental fish"]
["Level 3",4119,"Other live fish"]
["Level 2",412,"Fish, fresh or chilled"]
["Level 3",4120,"Fish, fresh or chilled"]
["Level 1",42,"Crustaceans, not frozen; oysters; other molluscs and aquatic invertebrates, live, fresh or chilled"]
["Level 2",421,"Crustaceans, not frozen"]
["Level 3",4210,"Crustaceans, not frozen"]
["Level 2",422,"Oysters"]
["Level 3",4220,"Oysters"]
["Level 2",429,"Other molluscs and aquatic invertebrates, live, fresh or chilled"]
["Level 3",4291,"Other molluscs, live, fresh or chilled"]
["Level 3",4299,"Other aquatic invertebrates, live, fresh or chilled"]
["Level 1",49,"Other aquatic plants and animals"]
["Level 2",491,"Coral and similar products, shells of molluscs, crustaceans or echinoderms and cuttle-bone"]
["Level 3",4910,"Coral and similar products, shells of molluscs, crustaceans or echinoderms and cuttle-bone"]
["Level 2",492,"Natural sponges of aquatic animal origin"]
["Level 3",4920,"Natural sponges of aquatic animal origin"]
["Level 2",493,"Seaweeds and other algae, fresh, frozen or dried, whether or not ground"]
["Level 3",4930,"Seaweeds and other algae, fresh, frozen or dried, whether or not ground"]
["Section",1,"Ores and minerals; electricity, gas and water"]
["Division",11,"Coal and lignite; peat"]
["Level 1",110,"Coal and lignite; peat"]
["Level 2",1101,"Coal, not agglomerated"]
["Level 3",11010,"Coal, not agglomerated"]
["Level 2",1102,"Briquettes and similar solid fuels manufactured from coal"]
["Level 3",11020,"Briquettes and similar solid fuels manufactured from coal"]
["Level 2",1103,"Lignite, not agglomerated"]
["Level 3",11030,"Lignite, not agglomerated"]
["Level 2",1104,"Lignite, agglomerated"]
["Level 3",11040,"Lignite, agglomerated"]
["Level 2",1105,"Peat"]
["Level 3",11050,"Peat"]
["Division",12,"Crude petroleum and natural gas"]
["Level 1",120,"Crude petroleum and natural gas"]
["Level 2",1201,"Petroleum oils and oils obtained from bituminous minerals, crude"]
["Level 3",12010,"Petroleum oils and oils obtained from bituminous minerals, crude"]
["Level 2",1202,"Natural gas, liquefied or in the gaseous state"]
["Level 3",12020,"Natural gas, liquefied or in the gaseous state"]
["Level 2",1203,"Bituminous or oil shale and tar sands"]
["Level 3",12030,"Bituminous or oil shale and tar sands"]
["Division",13,"Uranium and thorium ores and concentrates"]
["Level 1",130,"Uranium and thorium ores and concentrates"]
["Level 2",1300,"Uranium and thorium ores and concentrates"]
["Level 3",13000,"Uranium and thorium ores and concentrates"]
["Division",14,"Metal ores"]
["Level 1",141,"Iron ores and concentrates, other than roasted iron pyrites"]
["Level 2",1410,"Iron ores and concentrates, other than roasted iron pyrites"]
["Level 3",14100,"Iron ores and concentrates, other than roasted iron pyrites"]
["Level 1",142,"Non-ferrous metal ores and concentrates (other than uranium or thorium ores and concentrates)"]
["Level 2",1421,"Copper, ores and concentrates"]
["Level 3",14210,"Copper, ores and concentrates"]
["Level 2",1422,"Nickel ores and concentrates"]
["Level 3",14220,"Nickel ores and concentrates"]
["Level 2",1423,"Aluminium ores and concentrates"]
["Level 3",14230,"Aluminium ores and concentrates"]
["Level 2",1424,"Precious metal ores and concentrates"]
["Level 3",14240,"Precious metal ores and concentrates"]
["Level 2",1429,"Other non-ferrous metal ores and concentrates (other than uranium or thorium ores and concentrates)"]
["Level 3",14290,"Other non-ferrous metal ores and concentrates (other than uranium or thorium ores and concentrates)"]
["Division",15,"Stone, sand and clay"]
["Level 1",151,"Monumental or building stone"]
["Level 2",1511,"Slate"]
["Level 3",15110,"Slate"]
["Level 2",1512,"Marble and other calcareous monumental or building stone"]
["Level 3",15120,"Marble and other calcareous monumental or building stone"]
["Level 2",1513,"Granite, sandstone and other monumental or building stone"]
["Level 3",15130,"Granite, sandstone and other monumental or building stone"]
["Level 1",152,"Gypsum; anhydrite; limestone flux; limestone and other calcareous stone, of a kind used for the manufacture of lime or cement"]
["Level 2",1520,"Gypsum; anhydrite; limestone flux; limestone and other calcareous stone, of a kind used for the manufacture of lime or cement"]
["Level 3",15200,"Gypsum; anhydrite; limestone flux; limestone and other calcareous stone, of a kind used for the manufacture of lime or cement"]
["Level 1",153,"Sands, pebbles, gravel, broken or crushed stone, natural bitumen and asphalt"]
["Level 2",1531,"Natural sands"]
["Level 3",15310,"Natural sands"]
["Level 2",1532,"Pebbles, gravel, broken or crushed stone, macadam; granules, chippings and powder of stone"]
["Level 3",15320,"Pebbles, gravel, broken or crushed stone, macadam; granules, chippings and powder of stone"]
["Level 2",1533,"Bitumen and asphalt, natural; asphaltites and asphaltic rock"]
["Level 3",15330,"Bitumen and asphalt, natural; asphaltites and asphaltic rock"]
["Level 1",154,"Clays"]
["Level 2",1540,"Clays"]
["Level 3",15400,"Clays"]
["Division",16,"Other minerals"]
["Level 1",161,"Chemical and fertilizer minerals"]
["Level 2",1611,"Natural calcium phosphates, natural aluminium calcium phosphates and phosphatic chalk"]
["Level 3",16110,"Natural calcium phosphates, natural aluminium calcium phosphates and phosphatic chalk"]
["Level 2",1612,"Unroasted iron pyrites"]
["Level 3",16120,"Unroasted iron pyrites"]
["Level 2",1619,"Other chemical minerals"]
["Level 3",16190,"Other chemical minerals"]
["Level 1",162,"Salt and pure sodium chloride; sea water"]
["Level 2",1620,"Salt and pure sodium chloride; sea water"]
["Level 3",16200,"Salt and pure sodium chloride; sea water"]
["Level 1",163,"Precious and semi-precious stones; pumice stone; emery; natural abrasives; other minerals"]
["Level 2",1631,"Precious stones (including diamonds, but not industrial diamonds) and semi-precious stones, unworked or simply sawn or roughly shaped"]
["Level 3",16310,"Precious stones (including diamonds, but not industrial diamonds) and semi-precious stones, unworked or simply sawn or roughly shaped"]
["Level 2",1632,"Industrial diamonds, unworked or simply sawn, cleaved or bruted; pumice stone; emery; natural corundum, natural garnet and other natural abrasives"]
["Level 3",16320,"Industrial diamonds, unworked or simply sawn, cleaved or bruted; pumice stone; emery; natural corundum, natural garnet and other natural abrasives"]
["Level 2",1633,"Chalk and dolomite"]
["Level 3",16330,"Chalk and dolomite"]
["Level 2",1639,"Other minerals n.e.c."]
["Level 3",16390,"Other minerals n.e.c."]
["Division",17,"Electricity, town gas, steam and hot water"]
["Level 1",171,"Electrical energy"]
["Level 2",1710,"Electrical energy"]
["Level 3",17100,"Electrical energy"]
["Level 1",172,"Coal gas, water gas, producer gas and similar gases, other than petroleum gases and other gaseous hydrocarbons"]
["Level 2",1720,"Coal gas, water gas, producer gas and similar gases, other than petroleum gases and other gaseous hydrocarbons"]
["Level 3",17200,"Coal gas, water gas, producer gas and similar gases, other than petroleum gases and other gaseous hydrocarbons"]
["Level 1",173,"Steam and hot water"]
["Level 2",1730,"Steam and hot water"]
["Level 3",17300,"Steam and hot water"]
["Level 1",174,"Ice and snow"]
["Level 2",1740,"Ice and snow"]
["Level 3",17400,"Ice and snow"]
["Division",18,"Natural water"]
["Level 1",180,"Natural water"]
["Level 2",1800,"Natural water"]
["Level 3",18000,"Natural water"]
["Section",2,"Food products, beverages and tobacco; textiles, apparel and leather products"]
["Division",21,"Meat, fish, fruit, vegetables, oils and fats"]
["Level 1",211,"Meat and meat products"]
["Level 2",2111,"Meat of mammals, fresh or chilled"]
["Level 3",21111,"Meat of cattle, fresh or chilled"]
["Level 3",21112,"Meat of buffalo, fresh or chilled"]
["Level 3",21113,"Meat of pigs, fresh or chilled"]
["Level 3",21114,"Meat of rabbits and hares, fresh or chilled"]
["Level 3",21115,"Meat of sheep, fresh or chilled"]
["Level 3",21116,"Meat of goat, fresh or chilled"]
["Level 3",21117,"Meat of camels and camelids, fresh or chilled"]
["Level 3",21118,"Meat of horses and other equines, fresh or chilled"]
["Level 3",21119,"Other meat of mammals, fresh or chilled"]
["Level 2",2112,"Meat of poultry, fresh or chilled"]
["Level 3",21121,"Meat of chickens, fresh or chilled"]
["Level 3",21122,"Meat of ducks, fresh or chilled"]
["Level 3",21123,"Meat of geese, fresh or chilled"]
["Level 3",21124,"Meat of turkeys, fresh or chilled"]
["Level 3",21125,"Meat of guinea fowl, fresh or chilled"]
["Level 2",2113,"Meat of mammals, frozen"]
["Level 3",21131,"Meat of cattle, frozen"]
["Level 3",21132,"Meat of buffalo, frozen"]
["Level 3",21133,"Meat of pigs, frozen"]
["Level 3",21134,"Meat of rabbits and hares, frozen"]
["Level 3",21135,"Meat of sheep, frozen"]
["Level 3",21136,"Meat of goat, frozen"]
["Level 3",21137,"Meat of camels and camelids, frozen"]
["Level 3",21138,"Meat of horses and other equines, frozen"]
["Level 3",21139,"Other meat of mammals, frozen"]
["Level 2",2114,"Meat of poultry, frozen"]
["Level 3",21141,"Meat of chickens, frozen"]
["Level 3",21142,"Meat of ducks, frozen"]
["Level 3",21143,"Meat of geese, frozen"]
["Level 3",21144,"Meat of turkeys, frozen"]
["Level 3",21145,"Meat of guinea fowl, frozen"]
["Level 2",2115,"Edible offal of mammals, fresh, chilled or frozen"]
["Level 3",21151,"Edible offal of cattle, fresh, chilled or frozen"]
["Level 3",21152,"Edible offal of buffalo, fresh, chilled or frozen"]
["Level 3",21153,"Edible offal of pigs, fresh, chilled or frozen"]
["Level 3",21155,"Edible offal of sheep, fresh, chilled or frozen"]
["Level 3",21156,"Edible offal of goat, fresh, chilled or frozen"]
["Level 3",21159,"Edible offal of mammals, fresh, chilled or frozen, n.e.c."]
["Level 2",2116,"Edible offal of poultry, fresh, chilled or frozen"]
["Level 3",21160,"Edible offal of poultry, fresh, chilled or frozen"]
["Level 2",2117,"Preserves and preparations of meat, meat offal or blood"]
["Level 3",21171,"Pig meat, cuts, salted, dried or smoked (bacon and ham)"]
["Level 3",21172,"Bovine meat, salted, dried or smoked"]
["Level 3",21173,"Other meat and edible meat offal, salted, in brine, dried or smoked; edible flours and meals of meat or meat offal"]
["Level 3",21174,"Sausages and similar products of meat, offal or blood"]
["Level 3",21175,"Extracts and juices of meat, fish, crustaceans, molluscs or other aquatic invertebrates"]
["Level 3",21176,"Prepared dishes and meals based on meat"]
["Level 3",21179,"Other prepared or preserved meat, meat offal or blood"]
["Level 2",2118,"Flours, meals and pellets of meat or meat offal, inedible; greaves"]
["Level 3",21180,"Flours, meals and pellets of meat or meat offal, inedible; greaves"]
["Level 2",2119,"Other meat and edible offal, fresh, chilled or frozen"]
["Level 3",21190,"Other meat and edible offal, fresh, chilled or frozen"]
["Level 1",212,"Prepared and preserved fish, crustaceans, molluscs and other aquatic invertebrates"]
["Level 2",2121,"Fish, frozen (excluding fish fillets and fish meat)"]
["Level 3",21210,"Fish, frozen (excluding fish fillets and fish meat)"]
["Level 2",2122,"Fish fillets and meat; fish livers and roes"]
["Level 3",21221,"Fish fillets and fish meat (whether or not minced), fresh or chilled"]
["Level 3",21222,"Fish fillets, frozen"]
["Level 3",21223,"Fish meat, whether or not minced, frozen"]
["Level 3",21224,"Fish fillets, dried, salted or in brine, but not smoked"]
["Level 3",21225,"Fish livers and roes, fresh or chilled"]
["Level 3",21226,"Fish livers and roes, frozen"]
["Level 3",21227,"Fish livers and roes dried, smoked, salted or in brine"]
["Level 2",2123,"Fish, dried, whether or not salted, or in brine; smoked incl. fillets; edible fish meal"]
["Level 3",21231,"Fish, dried, but not smoked; salted, but not dried or smoked; or in brine"]
["Level 3",21232,"Fish including fillets, smoked"]
["Level 3",21233,"Edible fish meal"]
["Level 2",2124,"Fish, otherwise prepared or preserved; caviar and caviar substitutes"]
["Level 3",21241,"Prepared dishes and meals based on fish, molluscs and crustaceans"]
["Level 3",21242,"Fish, otherwise prepared or preserved"]
["Level 3",21243,"Caviar and caviar substitutes"]
["Level 2",2125,"Crustaceans, frozen"]
["Level 3",21250,"Crustaceans, frozen"]
["Level 2",2126,"Molluscs and other aquatic invertebrates, frozen, dried, salted or in brine"]
["Level 3",21261,"Molluscs, frozen, dried, salted or in brine"]
["Level 3",21269,"Other aquatic invertebrates, frozen, dried, salted or in brine"]
["Level 2",2127,"Crustaceans, otherwise prepared or preserved"]
["Level 3",21270,"Crustaceans, otherwise prepared or preserved"]
["Level 2",2128,"Molluscs and other aquatic invertebrates, otherwise prepared or preserved"]
["Level 3",21280,"Molluscs and other aquatic invertebrates, otherwise prepared or preserved"]
["Level 2",2129,"Flours, meals and pellets, inedible, and other products n.e.c., of fish or of crustaceans, molluscs or other aquatic invertebrates; dead fish, crustaceans, molluscs or other aquatic invertebrates unfit for human consumption"]
["Level 3",21291,"Flours, meals and pellets, inedible, of fish, crustaceans, molluscs or other aquatic invertebrates"]
["Level 3",21299,"Products n.e.c. of fish, crustaceans, molluscs or other aquatic invertebrates; dead fish, crustaceans, molluscs or other aquatic invertebrates unfit for human consumption"]
["Level 1",213,"Prepared and preserved vegetables, pulses and potatoes"]
["Level 2",2131,"Frozen vegetables, pulses and potatoes"]
["Level 3",21311,"Beans, frozen"]
["Level 3",21312,"Peas, frozen"]
["Level 3",21313,"Potatoes, frozen"]
["Level 3",21319,"Other vegetables and pulses, frozen"]
["Level 2",2132,"Vegetable juices"]
["Level 3",21321,"Tomato juice"]
["Level 3",21329,"Other vegetable juices"]
["Level 2",2133,"Vegetables provisionally preserved"]
["Level 3",21330,"Vegetables provisionally preserved"]
["Level 2",2134,"Vegetables, pulses and potatoes, preserved by vinegar or acetic acid"]
["Level 3",21340,"Vegetables, pulses and potatoes, preserved by vinegar or acetic acid"]
["Level 2",2139,"Other prepared and preserved vegetables, pulses and potatoes"]
["Level 3",21391,"Prepared dishes and meals based on vegetables, pulses and potatoes"]
["Level 3",21392,"Flour, meal, powder, flakes, granules and pellets of potatoes"]
["Level 3",21393,"Dried vegetables"]
["Level 3",21394,"Potatoes, otherwise prepared or preserved"]
["Level 3",21395,"Beans, otherwise prepared or preserved, not frozen"]
["Level 3",21396,"Peas, otherwise prepared or preserved, not frozen"]
["Level 3",21397,"Mushrooms and truffles, otherwise prepared or preserved"]
["Level 3",21399,"Other vegetables and pulses, preserved other than by vinegar, acetic acid or sugar, n.e.c."]
["Level 1",214,"Prepared and preserved fruit and nuts"]
["Level 2",2141,"Dried fruit"]
["Level 3",21411,"Raisins"]
["Level 3",21412,"Plums, dried"]
["Level 3",21419,"Other dried fruit, n.e.c."]
["Level 2",2142,"Shelled nuts"]
["Level 3",21421,"Groundnuts, shelled"]
["Level 3",21422,"Almonds, shelled"]
["Level 3",21423,"Hazelnuts, shelled"]
["Level 3",21424,"Cashew nuts, shelled"]
["Level 3",21429,"Other shelled nuts"]
["Level 2",2143,"Fruit juices"]
["Level 3",21431,"Orange juice"]
["Level 3",21432,"Grapefruit juice"]
["Level 3",21433,"Pineapple juice"]
["Level 3",21434,"Grape juice"]
["Level 3",21435,"Apple juice"]
["Level 3",21439,"Other fruit juices, n.e.c."]
["Level 2",2149,"Other prepared and preserved fruit and nuts (except by sugar)"]
["Level 3",21491,"Pineapples, otherwise prepared or preserved"]
["Level 3",21492,"Peaches, otherwise prepared or preserved"]
["Level 3",21493,"Fruits and nuts, uncooked or cooked, frozen"]
["Level 3",21494,"Jams, fruit jellies, marmalades, fruit or nut purree and fruit or nut pastes"]
["Level 3",21495,"Nuts, groundnuts and other seeds, roasted, salted or otherwise prepared n.e.c."]
["Level 3",21496,"Fruit and nuts, provisionally preserved, not for immediate consumption"]
["Level 3",21499,"Other prepared and preserved fruit and nuts, n.e.c."]
["Level 1",215,"Animal and vegetable oils and fats"]
["Level 2",2151,"Animal fats, unrendered"]
["Level 3",21511,"Fats, of pig and poultry, unrendered"]
["Level 3",21512,"Cattle fat, unrendered"]
["Level 3",21513,"Buffalo fat, unrendered"]
["Level 3",21514,"Sheep fat, unrendered"]
["Level 3",21515,"Goat fat, unrendered"]
["Level 3",21519,"Other animal fats, unrendered, n.e.c."]
["Level 2",2152,"Animal fats and oils, rendered"]
["Level 3",21521,"Pig fat, rendered"]
["Level 3",21522,"Poultry fat, rendered"]
["Level 3",21523,"Tallow"]
["Level 3",21524,"Fish-liver oils and their fractions"]
["Level 3",21525,"Fats and oils and their fractions, of fish, other than liver oils"]
["Level 3",21526,"Fats and oils and their fractions, of marine mammals"]
["Level 3",21529,"Other animal fats, rendered"]
["Level 2",2153,"Vegetable oils, crude"]
["Level 3",21531,"Soya bean oil, crude"]
["Level 3",21532,"Groundnut oil, crude"]
["Level 3",21533,"Sunflower-seed oil, crude"]
["Level 3",21534,"Rapeseed oil, crude"]
["Level 3",21535,"Palm oil, crude"]
["Level 3",21536,"Coconut oil, crude"]
["Level 3",21537,"Olive oil, crude"]
["Level 3",21538,"Cottonseed oil, crude"]
["Level 3",21539,"Other vegetable oils, crude, n.e.c."]
["Level 2",2154,"Vegetable oils, refined"]
["Level 3",21541,"Soya bean oil, refined"]
["Level 3",21542,"Groundnut oil, refined"]
["Level 3",21543,"Sunflower-seed oil, refined"]
["Level 3",21544,"Rapeseed oil, refined"]
["Level 3",21545,"Palm oil, refined"]
["Level 3",21546,"Coconut oil, refined"]
["Level 3",21547,"Olive oil, refined"]
["Level 3",21548,"Cottonseed oil, refined"]
["Level 3",21549,"Other vegetable oils, refined, n.e.c."]
["Level 2",2155,"Margarine and similar preparations"]
["Level 3",21550,"Margarine and similar preparations"]
["Level 2",2159,"Other animal and vegetable oils and fats, refined, n.e.c."]
["Level 3",21590,"Other animal and vegetable oils and fats, refined, n.e.c."]
["Level 1",216,"Cotton linters"]
["Level 2",2160,"Cotton linters"]
["Level 3",21600,"Cotton linters"]
["Level 1",217,"Oil-cake and other residues resulting from the extraction of vegetable fats or oils; flours and meals of oil seeds or oleaginous fruits, except those of mustard; vegetable waxes, except triglycerides; degras; residues resulting from the treatment of fatty"]
["Level 2",2171,"Oil-cake and other solid residues, of vegetable fats or oils"]
["Level 3",21710,"Oil-cake and other solid residues, of vegetable fats or oils"]
["Level 2",2172,"Flours and meals of oil seeds or oleaginous fruits, except those of mustard"]
["Level 3",21720,"Flours and meals of oil seeds or oleaginous fruits, except those of mustard"]
["Level 2",2173,"Vegetable waxes (other than triglycerides), insect waxes and spermaceti; degras; residues resulting from the treatment of fatty substances or animal or vegetable waxes"]
["Level 3",21731,"Vegetable waxes (other than triglycerides)"]
["Level 3",21732,"Degras; residues resulting from the treatment of fatty substances or animal or vegetable waxes"]
["Division",22,"Dairy products and egg products"]
["Level 1",221,"Processed liquid milk and cream"]
["Level 2",2211,"Processed liquid milk"]
["Level 3",22110,"Processed liquid milk"]
["Level 2",2212,"Cream, fresh"]
["Level 3",22120,"Cream, fresh"]
["Level 2",2213,"Whey"]
["Level 3",22130,"Whey"]
["Level 1",222,"Other dairy products"]
["Level 2",2221,"Milk and cream in solid forms"]
["Level 3",22211,"Whole milk powder"]
["Level 3",22212,"Skim milk and whey powder"]
["Level 3",22219,"Other milk and cream in solid forms, n.e.c."]
["Level 2",2222,"Milk and cream, concentrated or containing added sugar or other sweetening matter, other than in solid forms"]
["Level 3",22221,"Evaporated milk"]
["Level 3",22222,"Condensed milk"]
["Level 3",22229,"Milk and cream, n.e.c."]
["Level 2",2223,"Yoghurt and other fermented or acidified milk and cream"]
["Level 3",22230,"Yoghurt and other fermented or acidified milk and cream"]
["Level 2",2224,"Butter and other fats and oils derived from milk"]
["Level 3",22241,"Butter and other fats and oils derived from milk of cattle"]
["Level 3",22242,"Butter and other fats and oils derived from milk of buffalo"]
["Level 3",22249,"Butter and other fats and oils derived from other milk"]
["Level 2",2225,"Cheese, fresh or processed"]
["Level 3",22251,"Cheese from milk of cattle, fresh or processed"]
["Level 3",22252,"Cheese from milk of buffalo, fresh or processed"]
["Level 3",22253,"Cheese from milk of sheep, fresh or processed"]
["Level 3",22254,"Cheese from milk of goats, fresh or processed"]
["Level 3",22259,"Cheese, fresh or processed, n.e.c."]
["Level 2",2226,"Casein"]
["Level 3",22260,"Casein"]
["Level 2",2227,"Ice cream and other edible ice"]
["Level 3",22270,"Ice cream and other edible ice"]
["Level 2",2229,"Dairy products n.e.c."]
["Level 3",22290,"Dairy products n.e.c."]
["Level 1",223,"Eggs, in shell, preserved or cooked"]
["Level 2",2230,"Eggs, in shell, preserved or cooked"]
["Level 3",22300,"Eggs, in shell, preserved or cooked"]
["Division",23,"Grain mill products, starches and starch products; other food products"]
["Level 1",231,"Grain mill products"]
["Level 2",2311,"Wheat and meslin flour"]
["Level 3",23110,"Wheat and meslin flour"]
["Level 2",2312,"Other cereal flours"]
["Level 3",23120,"Other cereal flours"]
["Level 2",2313,"Groats, meal and pellets of wheat and other cereals"]
["Level 3",23130,"Groats, meal and pellets of wheat and other cereals"]
["Level 2",2314,"Other cereal grain products (including corn flakes)"]
["Level 3",23140,"Other cereal grain products (including corn flakes)"]
["Level 2",2316,"Rice, semi- or wholly milled, or husked"]
["Level 3",23161,"Rice, semi- or wholly milled"]
["Level 3",23162,"Husked rice"]
["Level 2",2317,"Other vegetable flours and meals"]
["Level 3",23170,"Other vegetable flours and meals"]
["Level 2",2318,"Mixes and doughs for the preparation of bakers' wares"]
["Level 3",23180,"Mixes and doughs for the preparation of bakers' wares"]
["Level 1",232,"Starches and starch products; sugars and sugar syrups n.e.c."]
["Level 2",2321,"Glucose and glucose syrup; fructose and fructose syrup; lactose and lactose syrup; invert sugar; sugars and sugar syrups n.e.c.; artificial honey; caramel"]
["Level 3",23210,"Glucose and glucose syrup; fructose and fructose syrup; lactose and lactose syrup; invert sugar; sugars and sugar syrups n.e.c.; artificial honey; caramel"]
["Level 2",2322,"Starches; inulin; wheat gluten; dextrins and other modified starches"]
["Level 3",23220,"Starches; inulin; wheat gluten; dextrins and other modified starches"]
["Level 2",2323,"Tapioca and substitutes therefor prepared from starch, in the form of flakes, grains, siftings or similar forms"]
["Level 3",23230,"Tapioca and substitutes therefor prepared from starch, in the form of flakes, grains, siftings or similar forms"]
["Level 1",233,"Preparations used in animal feeding"]
["Level 2",2331,"Preparations used in animal feeding"]
["Level 3",23311,"Dog or cat food, put up for retail sale"]
["Level 3",23319,"Preparations used in animal feeding n.e.c."]
["Level 2",2332,"Lucerne (alfalfa) meal and pellets"]
["Level 3",23320,"Lucerne (alfalfa) meal and pellets"]
["Level 1",234,"Bakery products"]
["Level 2",2341,"Crispbread; rusks, toasted bread and similar toasted products"]
["Level 3",23410,"Crispbread; rusks, toasted bread and similar toasted products"]
["Level 2",2342,"Gingerbread and the like; sweet biscuits; waffles and wafers"]
["Level 3",23420,"Gingerbread and the like; sweet biscuits; waffles and wafers"]
["Level 2",2343,"Pastry goods and cakes"]
["Level 3",23430,"Pastry goods and cakes"]
["Level 2",2349,"Bread and other bakers' wares"]
["Level 3",23490,"Bread and other bakers' wares"]
["Level 1",235,"Sugar"]
["Level 2",2351,"Raw cane or beet sugar"]
["Level 3",23511,"Cane sugar"]
["Level 3",23512,"Beet sugar"]
["Level 2",2352,"Refined sugar"]
["Level 3",23520,"Refined sugar"]
["Level 2",2353,"Refined cane or beet sugar, in solid form, containing added flavouring or colouring matter; maple sugar and maple syrup"]
["Level 3",23530,"Refined cane or beet sugar, in solid form, containing added flavouring or colouring matter; maple sugar and maple syrup"]
["Level 2",2354,"Molasses"]
["Level 3",23540,"Molasses"]
["Level 1",236,"Cocoa, chocolate and sugar confectionery"]
["Level 2",2361,"Cocoa paste, whether or not defatted"]
["Level 3",23610,"Cocoa paste, whether or not defatted"]
["Level 2",2362,"Cocoa butter, fat and oil"]
["Level 3",23620,"Cocoa butter, fat and oil"]
["Level 2",2363,"Cocoa powder, not sweetened"]
["Level 3",23630,"Cocoa powder, not sweetened"]
["Level 2",2364,"Cocoa powder, sweetened"]
["Level 3",23640,"Cocoa powder, sweetened"]
["Level 2",2365,"Chocolate and other food preparations containing cocoa (except sweetened cocoa powder), in bulk forms"]
["Level 3",23650,"Chocolate and other food preparations containing cocoa (except sweetened cocoa powder), in bulk forms"]
["Level 2",2366,"Chocolate and other food preparations containing cocoa (except sweetened cocoa powder), other than in bulk forms"]
["Level 3",23660,"Chocolate and other food preparations containing cocoa (except sweetened cocoa powder), other than in bulk forms"]
["Level 2",2367,"Sugar confectionery (including white chocolate), not containing cocoa; vegetables, fruit, nuts, fruit-peel and other parts of plants, preserved by sugar"]
["Level 3",23670,"Sugar confectionery (including white chocolate), not containing cocoa; vegetables, fruit, nuts, fruit-peel and other parts of plants, preserved by sugar"]
["Level 1",237,"Macaroni, noodles, couscous and similar farinaceous products"]
["Level 2",2371,"Uncooked pasta, not stuffed or otherwise prepared"]
["Level 3",23710,"Uncooked pasta, not stuffed or otherwise prepared"]
["Level 2",2372,"Pasta, cooked, stuffed or otherwise prepared; couscous"]
["Level 3",23721,"Pasta, cooked, stuffed or otherwise prepared (but not as a complete dish); couscous, except as a complete dish"]
["Level 3",23722,"Prepared dishes containing stuffed pasta; prepared couscous dishes"]
["Level 1",239,"Food products n.e.c."]
["Level 2",2391,"Coffee and tea"]
["Level 3",23911,"Coffee, decaffeinated or roasted"]
["Level 3",23912,"Coffee substitutes containing coffee; extracts, essences and concentrates of coffee, and preparations with a basis thereof or with a basis of coffee; roasted chicory and other roasted coffee substitutes, and extracts, essences and concentrates thereof"]
["Level 3",23913,"Green tea (not fermented), black tea (fermented) and partly fermented tea, in immediate packings of a content not exceeding 3 kg"]
["Level 3",23914,"Extracts, essences and concentrates of tea or mate, and preparations with a basis thereof or with a basis of tea or maté"]
["Level 2",2392,"Spices and aromatics, processed"]
["Level 3",23921,"Pepper (piper spp.), processed"]
["Level 3",23922,"Chillies and peppers, dry (capsicum spp., pimenta), processed"]
["Level 3",23923,"Nutmeg, mace, cardamoms, processed"]
["Level 3",23924,"Anise, badian, coriander, cumin, caraway, fennel and juniper berries, processed"]
["Level 3",23925,"Cinnamon (canella), processed"]
["Level 3",23926,"Cloves (whole stems), processed"]
["Level 3",23927,"Ginger, processed"]
["Level 3",23928,"Vanilla, processed"]
["Level 2",2399,"Other food products"]
["Level 3",23991,"Homogenized preparations of meat, vegetables, fruit or nuts; preparations of milk, flour, meal, starch or malt extract, for infant use n.e.c.; homogenized composite food preparations"]
["Level 3",23992,"Soups and broths and preparations thereof"]
["Level 3",23993,"Eggs, not in shell, and egg yolks, fresh or preserved; egg albumin"]
["Level 3",23994,"Vinegar and substitutes therefor obtained from acetic acid"]
["Level 3",23995,"Sauces; mixed condiments; mustard flour and meal; prepared mustard"]
["Level 3",23996,"Yeasts (active or inactive); other single-cell micro-organisms, dead; prepared baking powders"]
["Level 3",23997,"Other prepared dishes and meals"]
["Level 3",23999,"Other food products n.e.c."]
["Division",24,"Beverages"]
["Level 1",241,"Ethyl alcohol; spirits, liqueurs and other spirituous beverages"]
["Level 2",2411,"Undenatured ethyl alcohol of an alcoholic strength by volume of 80% vol or higher"]
["Level 3",24110,"Undenatured ethyl alcohol of an alcoholic strength by volume of 80% vol or higher"]
["Level 2",2413,"Undenatured ethyl alcohol of an alcoholic strength by volume of less than 80% vol; spirits, liqueurs and other spirituous beverages"]
["Level 3",24131,"Spirits, liqueurs and other spirituous beverages of an alcoholic strength by volume of about 40% vol"]
["Level 3",24139,"Other spirituous beverages and undenatured ethyl alcohol of an alcoholic strength by volume of less than 80% vol"]
["Level 1",242,"Wines"]
["Level 2",2421,"Wine of fresh grapes, whether or not flavoured; grape must"]
["Level 3",24211,"Sparkling wine of fresh grapes"]
["Level 3",24212,"Wine of fresh grapes, except sparkling wine; grape must"]
["Level 2",2422,"Vermouth and other wine of fresh grapes flavoured with plats or aromatic substances"]
["Level 3",24220,"Vermouth and other wine of fresh grapes flavoured with plats or aromatic substances"]
["Level 2",2423,"Cider, perry, mead and other fermented beverages, except wine of fresh grapes and beer made from malt"]
["Level 3",24230,"Cider, perry, mead and other fermented beverages, except wine of fresh grapes and beer made from malt"]
["Level 1",243,"Malt liquors and malt"]
["Level 2",2431,"Beer made from malt"]
["Level 3",24310,"Beer made from malt"]
["Level 2",2432,"Malt, whether or not roasted"]
["Level 3",24320,"Malt, whether or not roasted"]
["Level 1",244,"Soft drinks; bottled mineral waters"]
["Level 2",2441,"Bottled waters, not sweetened or flavoured"]
["Level 3",24410,"Bottled waters, not sweetened or flavoured"]
["Level 2",2449,"Other non-alcoholic caloric beverages"]
["Level 3",24490,"Other non-alcoholic caloric beverages"]
["Division",25,"Tobacco products"]
["Level 1",250,"Tobacco products"]
["Level 2",2501,"Cured stemmed/stripped tobacco leaves"]
["Level 3",25010,"Cured stemmed/stripped tobacco leaves"]
["Level 2",2502,"Cigars, cheroots, cigarillos and cigarettes of tobacco or tobacco substitutes"]
["Level 3",25020,"Cigars, cheroots, cigarillos and cigarettes of tobacco or tobacco substitutes"]
["Level 2",2509,"Other manufactured tobacco and manufactured tobacco substitutes; \"homogenized\" or \"reconstituted\" tobacco; tobacco extracts and essences"]
["Level 3",25090,"Other manufactured tobacco and manufactured tobacco substitutes; \"homogenized\" or \"reconstituted\" tobacco; tobacco extracts and essences"]
["Division",26,"Yarn and thread; woven and tufted textile fabrics"]
["Level 1",261,"Natural textile fibres prepared for spinning"]
["Level 2",2611,"Raw silk (not thrown)"]
["Level 3",26110,"Raw silk (not thrown)"]
["Level 2",2613,"Wool, degreased or carbonized, not carded or combed"]
["Level 3",26130,"Wool, degreased or carbonized, not carded or combed"]
["Level 2",2614,"Noils of wool or of fine animal hair"]
["Level 3",26140,"Noils of wool or of fine animal hair"]
["Level 2",2615,"Wool and fine or coarse animal hair, carded or combed"]
["Level 3",26150,"Wool and fine or coarse animal hair, carded or combed"]
["Level 2",2616,"Cotton, carded or combed"]
["Level 3",26160,"Cotton, carded or combed"]
["Level 2",2617,"Jute and other textile bast fibres (except flax, true hemp and ramie), processed but not spun; tow and waste of these fibres"]
["Level 3",26170,"Jute and other textile bast fibres (except flax, true hemp and ramie), processed but not spun; tow and waste of these fibres"]
["Level 2",2619,"Other vegetable textile fibres, processed but not spun; tow and waste of these fibres"]
["Level 3",26190,"Other vegetable textile fibres, processed but not spun; tow and waste of these fibres"]
["Level 1",262,"Man-made textile staple fibres processed for spinning"]
["Level 2",2621,"Synthetic staple fibres, carded, combed or otherwise processed for spinning"]
["Level 3",26210,"Synthetic staple fibres, carded, combed or otherwise processed for spinning"]
["Level 2",2622,"Artificial staple fibres, carded, combed or otherwise processed for spinning"]
["Level 3",26220,"Artificial staple fibres, carded, combed or otherwise processed for spinning"]
["Level 1",263,"Textile yarn and thread of natural fibres"]
["Level 2",2631,"Silk yarn and yarn spun from silk waste; silk-worn gut"]
["Level 3",26310,"Silk yarn and yarn spun from silk waste; silk-worn gut"]
["Level 2",2632,"Yarn of wool, containing 85% or more by weight of wool, not put up for retail sale"]
["Level 3",26320,"Yarn of wool, containing 85% or more by weight of wool, not put up for retail sale"]
["Level 2",2633,"Yarn of wool, containing less than 85% by weight of wool, not put up for retail sale"]
["Level 3",26330,"Yarn of wool, containing less than 85% by weight of wool, not put up for retail sale"]
["Level 2",2634,"Yarn of wool, not put up for retail sale; yarn of fine or coarse animal hair or of horse hair (including gimped horsehair yarn), whether or not put up for retail sale"]
["Level 3",26340,"Yarn of wool, not put up for retail sale; yarn of fine or coarse animal hair or of horse hair (including gimped horsehair yarn), whether or not put up for retail sale"]
["Level 2",2635,"Cotton sewing thread"]
["Level 3",26350,"Cotton sewing thread"]
["Level 2",2636,"Cotton yarn (other than sewing thread), containing 85% or more by weight of cotton"]
["Level 3",26360,"Cotton yarn (other than sewing thread), containing 85% or more by weight of cotton"]
["Level 2",2637,"Cotton yarn (other than sewing thread), containing less than 85% by weight of cotton"]
["Level 3",26370,"Cotton yarn (other than sewing thread), containing less than 85% by weight of cotton"]
["Level 2",2638,"Yarn of vegetable textile fibres other than cotton (including flax, jute, coir and true hemp); paper yarn"]
["Level 3",26380,"Yarn of vegetable textile fibres other than cotton (including flax, jute, coir and true hemp); paper yarn"]
["Level 1",264,"Textile yarn and thread of man-made filaments or staple fibres"]
["Level 2",2641,"Sewing thread of man-made filaments or staple fibres"]
["Level 3",26410,"Sewing thread of man-made filaments or staple fibres"]
["Level 2",2642,"Yarn of man-made filaments, multiple or cabled (other than sewing thread, high tenacity yarn of polyamides, polyesters or viscose rayon), not put up for retail sale; man-made filament yarn (other than sewing thread), put up for retail sale"]
["Level 3",26420,"Yarn of man-made filaments, multiple or cabled (other than sewing thread, high tenacity yarn of polyamides, polyesters or viscose rayon), not put up for retail sale; man-made filament yarn (other than sewing thread), put up for retail sale"]
["Level 2",2643,"Yarn (other than sewing thread) of synthetic staple fibres, containing 85% or more by weight of such fibres"]
["Level 3",26430,"Yarn (other than sewing thread) of synthetic staple fibres, containing 85% or more by weight of such fibres"]
["Level 2",2644,"Yarn (other than sewing thread) of synthetic staple fibres, containing less than 85% by weight of such fibres"]
["Level 3",26440,"Yarn (other than sewing thread) of synthetic staple fibres, containing less than 85% by weight of such fibres"]
["Level 2",2645,"Yarn (other than sewing thread) of artificial staple fibres, containing 85% or more by weight of such fibres, not put up for retail sale"]
["Level 3",26450,"Yarn (other than sewing thread) of artificial staple fibres, containing 85% or more by weight of such fibres, not put up for retail sale"]
["Level 2",2646,"Yarn (other than sewing thread) of artificial staple fibres, containing less than 85% by weight of such fibres, not put up for retail sale; yarn (other than sewing thread) of artificial staple fibres, put up for retail sale"]
["Level 3",26460,"Yarn (other than sewing thread) of artificial staple fibres, containing less than 85% by weight of such fibres, not put up for retail sale; yarn (other than sewing thread) of artificial staple fibres, put up for retail sale"]
["Level 1",265,"Woven fabrics (except special fabrics) of natural fibres other than cotton"]
["Level 2",2651,"Woven fabrics of silk or of silk waste"]
["Level 3",26510,"Woven fabrics of silk or of silk waste"]
["Level 2",2652,"Woven fabrics of carded wool or of carded fine animal hair, containing 85% or more by weight of wool or fine animal hair"]
["Level 3",26520,"Woven fabrics of carded wool or of carded fine animal hair, containing 85% or more by weight of wool or fine animal hair"]
["Level 2",2653,"Woven fabrics of combed wool or of combed fine animal hair, containing 85% or more by weight of wool or fine animal hair"]
["Level 3",26530,"Woven fabrics of combed wool or of combed fine animal hair, containing 85% or more by weight of wool or fine animal hair"]
["Level 2",2654,"Woven fabrics of wool or fine animal hair, containing less than 85% by weight of wool or fine animal hair"]
["Level 3",26540,"Woven fabrics of wool or fine animal hair, containing less than 85% by weight of wool or fine animal hair"]
["Level 2",2655,"Woven fabrics of coarse animal hair or of horsehair"]
["Level 3",26550,"Woven fabrics of coarse animal hair or of horsehair"]
["Level 2",2656,"Woven fabrics of flax"]
["Level 3",26560,"Woven fabrics of flax"]
["Level 2",2657,"Woven fabrics of jute and other textile bast fibres (except flax, true hemp and ramie)"]
["Level 3",26570,"Woven fabrics of jute and other textile bast fibres (except flax, true hemp and ramie)"]
["Level 2",2659,"Woven fabrics of other vegetable textile fibres; woven fabrics of paper yarn"]
["Level 3",26590,"Woven fabrics of other vegetable textile fibres; woven fabrics of paper yarn"]
["Level 1",266,"Woven fabrics (except special fabrics) of cotton"]
["Level 2",2661,"Woven fabrics of cotton, containing 85% or more by weight of cotton, weighing not more than 200 g/m2"]
["Level 3",26610,"Woven fabrics of cotton, containing 85% or more by weight of cotton, weighing not more than 200 g/m2"]
["Level 2",2662,"Woven fabrics of cotton, containing 85% or more by weight of cotton, weighing more than 200 g/m2"]
["Level 3",26620,"Woven fabrics of cotton, containing 85% or more by weight of cotton, weighing more than 200 g/m2"]
["Level 2",2663,"Woven fabrics of cotton, containing less than 85% by weight of cotton, mixed mainly or solely with man-made fibres"]
["Level 3",26630,"Woven fabrics of cotton, containing less than 85% by weight of cotton, mixed mainly or solely with man-made fibres"]
["Level 2",2669,"Other woven fabrics of cotton"]
["Level 3",26690,"Other woven fabrics of cotton"]
["Level 1",267,"Woven fabrics (except special fabrics) of man-made filaments and staple fibres"]
["Level 2",2671,"Woven fabrics of man-made filament yarn, obtained from high tenacity yarn of nylon or other polyamides, of polyesters or of viscose rayon; woven fabrics of synthetic filament yarn, obtained from strip or the like; woven fabrics of synthetic filament yarn,"]
["Level 3",26710,"Woven fabrics of man-made filament yarn, obtained from high tenacity yarn of nylon or other polyamides, of polyesters or of viscose rayon; woven fabrics of synthetic filament yarn, obtained from strip or the like; woven fabrics of synthetic filament yarn,"]
["Level 2",2672,"Other woven fabrics of man-made filament yarn, containing 85% or more by weight of such filaments"]
["Level 3",26720,"Other woven fabrics of man-made filament yarn, containing 85% or more by weight of such filaments"]
["Level 2",2673,"Other woven fabrics of man-made filament yarn"]
["Level 3",26730,"Other woven fabrics of man-made filament yarn"]
["Level 2",2674,"Woven fabrics of synthetic staple fibres, containing 85% or more by weight of synthetic staple fibres"]
["Level 3",26740,"Woven fabrics of synthetic staple fibres, containing 85% or more by weight of synthetic staple fibres"]
["Level 2",2675,"Woven fabrics of artificial staple fibres, containing 85% or more by weight of artificial staple fibres"]
["Level 3",26750,"Woven fabrics of artificial staple fibres, containing 85% or more by weight of artificial staple fibres"]
["Level 2",2676,"Woven fabrics of man-made staple fibres, containing less than 85% of such fibres, mixed mainly or solely with cotton"]
["Level 3",26760,"Woven fabrics of man-made staple fibres, containing less than 85% of such fibres, mixed mainly or solely with cotton"]
["Level 2",2677,"Woven fabrics of man-made staple fibres, containing less than 85% of such fibres, mixed mainly or solely with wool or fine animal hair"]
["Level 3",26770,"Woven fabrics of man-made staple fibres, containing less than 85% of such fibres, mixed mainly or solely with wool or fine animal hair"]
["Level 2",2679,"Other woven fabrics of man-made staple fibres"]
["Level 3",26790,"Other woven fabrics of man-made staple fibres"]
["Level 1",268,"Special fabrics"]
["Level 2",2681,"Woven pile fabrics and chenille fabrics (other than terry towelling and narrow fabrics) of cotton"]
["Level 3",26810,"Woven pile fabrics and chenille fabrics (other than terry towelling and narrow fabrics) of cotton"]
["Level 2",2682,"Woven pile fabrics and chenille fabrics (other than terry towelling and narrow fabrics) of man-made fibres"]
["Level 3",26820,"Woven pile fabrics and chenille fabrics (other than terry towelling and narrow fabrics) of man-made fibres"]
["Level 2",2683,"Other woven pile fabrics and chenille fabrics (other than terry towelling and narrow fabrics)"]
["Level 3",26830,"Other woven pile fabrics and chenille fabrics (other than terry towelling and narrow fabrics)"]
["Level 2",2684,"Terry towelling and similar woven terry fabrics (other than narrow fabrics) of cotton"]
["Level 3",26840,"Terry towelling and similar woven terry fabrics (other than narrow fabrics) of cotton"]
["Level 2",2685,"Other terry towelling and similar woven terry fabrics (other than narrow fabrics)"]
["Level 3",26850,"Other terry towelling and similar woven terry fabrics (other than narrow fabrics)"]
["Level 2",2686,"Gauze (other than narrow fabrics)"]
["Level 3",26860,"Gauze (other than narrow fabrics)"]
["Level 2",2688,"Tufted textile fabrics, other than carpets"]
["Level 3",26880,"Tufted textile fabrics, other than carpets"]
["Level 2",2689,"Woven fabrics (including narrow fabrics) of glass fibres"]
["Level 3",26890,"Woven fabrics (including narrow fabrics) of glass fibres"]
["Division",27,"Textile articles other than apparel"]
["Level 1",271,"Made-up textile articles"]
["Level 2",2711,"Blankets and travelling rugs (except electric blankets)"]
["Level 3",27110,"Blankets and travelling rugs (except electric blankets)"]
["Level 2",2712,"Bed linen, table linen, toilet linen and kitchen linen"]
["Level 3",27120,"Bed linen, table linen, toilet linen and kitchen linen"]
["Level 2",2713,"Curtains (including drapes) and interior blinds; curtain or bed valances"]
["Level 3",27130,"Curtains (including drapes) and interior blinds; curtain or bed valances"]
["Level 2",2714,"Other furnishing articles n.e.c.; sets of woven fabric and yarn for making up into rugs, tapestries, embroidered table cloths or serviettes, or similar textile articles, put up in packings for retail sale"]
["Level 3",27140,"Other furnishing articles n.e.c.; sets of woven fabric and yarn for making up into rugs, tapestries, embroidered table cloths or serviettes, or similar textile articles, put up in packings for retail sale"]
["Level 2",2715,"Sacks and bags, of a kind used for the packing of goods"]
["Level 3",27150,"Sacks and bags, of a kind used for the packing of goods"]
["Level 2",2716,"Tarpaulins, sails for boats etc., awnings, sunblinds, tents and camping goods (including pneumatic mattresses)"]
["Level 3",27160,"Tarpaulins, sails for boats etc., awnings, sunblinds, tents and camping goods (including pneumatic mattresses)"]
["Level 2",2717,"Parachutes"]
["Level 3",27170,"Parachutes"]
["Level 2",2718,"Quilts, eiderdowns, cushions, pouffes, pillows, sleeping bags and the like, fitted with springs or stuffed or internally fitted with any material or of cellular rubber or plastics"]
["Level 3",27180,"Quilts, eiderdowns, cushions, pouffes, pillows, sleeping bags and the like, fitted with springs or stuffed or internally fitted with any material or of cellular rubber or plastics"]
["Level 2",2719,"Other made-up textile articles (including floor-cloths, dish-cloths, dusters and similar cleaning cloths, life-jackets and life-belts)"]
["Level 3",27190,"Other made-up textile articles (including floor-cloths, dish-cloths, dusters and similar cleaning cloths, life-jackets and life-belts)"]
["Level 1",272,"Carpets and other textile floor coverings"]
["Level 2",2721,"Carpets and other textile floor coverings, knotted"]
["Level 3",27210,"Carpets and other textile floor coverings, knotted"]
["Level 2",2722,"Carpets and other textile floor coverings, woven, not tufted or flocked"]
["Level 3",27220,"Carpets and other textile floor coverings, woven, not tufted or flocked"]
["Level 2",2723,"Carpets and other textile floor coverings, tufted"]
["Level 3",27230,"Carpets and other textile floor coverings, tufted"]
["Level 2",2729,"Other carpets and textile floor coverings (including those of felt)"]
["Level 3",27290,"Other carpets and textile floor coverings (including those of felt)"]
["Level 1",273,"Twine, cordage, ropes and cables and articles thereof (including netting)"]
["Level 2",2731,"Twine, cordage, rope and cables"]
["Level 3",27310,"Twine, cordage, rope and cables"]
["Level 2",2732,"Knotted netting of twine, cordage or rope; made up nets of textile materials; articles of yarn, strip, twine, cordage, rope or cables n.e.c."]
["Level 3",27320,"Knotted netting of twine, cordage or rope; made up nets of textile materials; articles of yarn, strip, twine, cordage, rope or cables n.e.c."]
["Level 1",279,"Textiles n.e.c."]
["Level 2",2791,"Tulles, lace, narrow woven fabrics, trimmings and embroidery"]
["Level 3",27911,"Narrow woven fabrics; narrow fabrics of warp without weft assembled by adhesive (bolducs); labels, badges and similar articles of textile materials, not embroidered; braids in the piece; ornamental trimmings in the piece, without embroidery, other than kn"]
["Level 3",27912,"Tulles and other net fabrics, except woven, knitted or crocheted fabrics; lace in the piece, in strips or in motifs"]
["Level 3",27913,"Embroidery in the piece, in strips or in motifs"]
["Level 2",2792,"Felt and nonwovens"]
["Level 3",27921,"Felt"]
["Level 3",27922,"Nonwovens"]
["Level 2",2799,"Other textile articles"]
["Level 3",27991,"Wadding of textile materials and articles thereof; textile fibres not exceeding 5 mm in length (flock), textile dust and mill neps"]
["Level 3",27992,"Rubber thread and cord, textile covered; textile yarn and strip, impregnated or covered with rubber or plastics"]
["Level 3",27993,"Metallized yarn"]
["Level 3",27994,"Woven fabrics of metal thread or metallized yarn n.e.c."]
["Level 3",27995,"Gimped yarn and strip; chenille yarn; loop wale-yarn"]
["Level 3",27996,"Tyre cord fabric of high tenacity yarn of nylon or other polyamides, polyesters or viscose rayon"]
["Level 3",27997,"Textile fabrics, impregnated, coated or covered n.e.c."]
["Level 3",27998,"Textile products and articles for technical uses (including wicks, gas mantles, hosepiping, transmission or conveyor belts, bolting cloth and straining cloth)"]
["Level 3",27999,"Quilted textile products in the piece n.e.c."]
["Division",28,"Knitted or crocheted fabrics; wearing apparel"]
["Level 1",281,"Knitted or crocheted fabrics"]
["Level 2",2811,"Pile fabrics and terry fabrics, knitted or crocheted"]
["Level 3",28110,"Pile fabrics and terry fabrics, knitted or crocheted"]
["Level 2",2819,"Other knitted or crocheted fabrics"]
["Level 3",28190,"Other knitted or crocheted fabrics"]
["Level 1",282,"Wearing apparel, except fur apparel"]
["Level 2",2821,"Panty hose, tights, stockings, socks and other hosiery, knitted or crocheted"]
["Level 3",28210,"Panty hose, tights, stockings, socks and other hosiery, knitted or crocheted"]
["Level 2",2822,"Wearing apparel, knitted or crocheted"]
["Level 3",28221,"Men's or boys' suits, coats, jackets, trousers, shorts and the like, knitted or crocheted"]
["Level 3",28222,"Men's or boys' shirts, underpants, pyjamas, dressing gowns and similar articles, knitted or crocheted"]
["Level 3",28223,"Women's or girls' suits, coats, jackets, dresses, skirts, trousers, shorts and the like, knitted or crocheted"]
["Level 3",28224,"Women's or girls' blouses, shirts, petticoats, panties, nightdresses, dressing gowns and similar articles, knitted or crocheted"]
["Level 3",28225,"T-shirts, singlets and other vests, knitted or crocheted"]
["Level 3",28226,"Jerseys, pullovers, cardigans, waistcoats and similar articles, knitted or crocheted"]
["Level 3",28227,"Babies' garments and clothing accessories, knitted or crocheted"]
["Level 3",28228,"Track suits, ski suits, swimwear and other garments, knitted or crocheted n.e.c."]
["Level 3",28229,"Gloves, shawls, scarves, veils, ties, cravats and other made-up clothing accessories, knitted or crocheted; knitted or crocheted parts of garments or of clothing accessories"]
["Level 2",2823,"Wearing apparel, of textile fabric, not knitted or crocheted; brassieres, corsets, suspenders and similar articles, whether or not knitted or crocheted"]
["Level 3",28231,"Men's or boys' suits, coats, jackets, trousers, shorts and the like, of textile fabric, not knitted or crocheted"]
["Level 3",28232,"Men's or boys' shirts, singlets, underpants, pyjamas, dressing gowns and similar articles, of textile fabric, not knitted or crocheted"]
["Level 3",28233,"Women's or girls' suits, coats, jackets, dresses, skirts, trousers, shorts and the like, of textile fabric, not knitted or crocheted"]
["Level 3",28234,"Women's or girls' blouses, shirts, singlets, petticoats, panties, nightdresses, dressing gowns and similar articles, of textile fabric, not knitted or crocheted"]
["Level 3",28235,"Babies' garments and clothing accessories, of textile fabric, not knitted or crocheted"]
["Level 3",28236,"Track suits, ski suits, swimwear and other garments, of textile fabric, not knitted or crocheted n.e.c."]
["Level 3",28237,"Brassieres, girdles, corsets, braces, suspenders, garters and similar articles and parts thereof, whether or not knitted or crocheted"]
["Level 3",28238,"Handkerchiefs, shawls, scarves, veils, ties, cravats, gloves and other made-up clothing accessories, of textile fabric, not knitted or crocheted; parts of garments or of clothing accessories, of textile fabric, not knitted or crocheted n.e.c."]
["Level 2",2824,"Apparel and clothing accessories, of leather, composition leather or plastics"]
["Level 3",28241,"Apparel of leather or of composition leather"]
["Level 3",28242,"Clothing accessories of leather or of composition leather, except sports gloves"]
["Level 3",28243,"Apparel and clothing accessories of plastics (incl. gloves)"]
["Level 2",2825,"Garments made up of felt or nonwovens; garments made up of textile fabrics impregnated or coated with plastics, rubber or other materials"]
["Level 3",28250,"Garments made up of felt or nonwovens; garments made up of textile fabrics impregnated or coated with plastics, rubber or other materials"]
["Level 2",2826,"Hats and headgear"]
["Level 3",28261,"Hat-forms, hat bodies and hoods of felt; plateaux and manchons of felt; hat-shapes, plaited or made by assembling strips of any material"]
["Level 3",28262,"Hats and other headgear, of felt, or plaited or made by assembling strips of any material, or knitted or crocheted or made up from lace or other textile fabric in the piece; hair-nets"]
["Level 3",28269,"Other headgear except headgear of rubber or of plastics, safety headgear and asbestos headgear; head-bands, linings, covers, hat foundations, hat frames, peaks and chinstraps, for headgear"]
["Level 1",283,"Tanned or dressed furskins and artificial fur; articles thereof (except headgear)"]
["Level 2",2831,"Tanned or dressed furskins"]
["Level 3",28310,"Tanned or dressed furskins"]
["Level 2",2832,"Articles of apparel, clothing accessories and other articles of furskin (except headgear)"]
["Level 3",28320,"Articles of apparel, clothing accessories and other articles of furskin (except headgear)"]
["Level 2",2833,"Artificial fur and articles thereof (except headgear)"]
["Level 3",28330,"Artificial fur and articles thereof (except headgear)"]
["Division",29,"Leather and leather products; footwear"]
["Level 1",291,"Tanned or dressed leather; composition leather"]
["Level 2",2911,"Chamois leather; patent leather and patent laminated leather; metallized leather"]
["Level 3",29110,"Chamois leather; patent leather and patent laminated leather; metallized leather"]
["Level 2",2912,"Other leather, of bovine or equine animals, without hair on"]
["Level 3",29120,"Other leather, of bovine or equine animals, without hair on"]
["Level 2",2913,"Other leather, without hair on (including sheep, lamb, goat or kid skin leather); composition leather with a basis of leather or leather fibre"]
["Level 3",29130,"Other leather, without hair on (including sheep, lamb, goat or kid skin leather); composition leather with a basis of leather or leather fibre"]
["Level 1",292,"Luggage, handbags and the like; saddlery and harness; other articles of leather"]
["Level 2",2921,"Saddlery and harness, for any animal, of any material"]
["Level 3",29210,"Saddlery and harness, for any animal, of any material"]
["Level 2",2922,"Luggage, handbags and the like, of leather, composition leather, plastic sheeting, textile materials, vulcanized fibre or paperboard; travel sets for personal toilet, sewing or shoe or clothes cleaning"]
["Level 3",29220,"Luggage, handbags and the like, of leather, composition leather, plastic sheeting, textile materials, vulcanized fibre or paperboard; travel sets for personal toilet, sewing or shoe or clothes cleaning"]
["Level 2",2923,"Watch straps, except of metal"]
["Level 3",29230,"Watch straps, except of metal"]
["Level 2",2929,"Other articles of leather or composition leather (including articles of a kind used in machinery or mechanical appliances or for other technical uses) n.e.c."]
["Level 3",29290,"Other articles of leather or composition leather (including articles of a kind used in machinery or mechanical appliances or for other technical uses) n.e.c."]
["Level 1",293,"Footwear, with outer soles and uppers of rubber or plastics, or with uppers of leather or textile materials, other than sports footwear, footwear incorporating a protective metal toe- cap and miscellaneous special footwear"]
["Level 2",2931,"Waterproof footwear, with outer soles and uppers of rubber or plastics, other than footwear incorporating a protective metal toe-cap"]
["Level 3",29310,"Waterproof footwear, with outer soles and uppers of rubber or plastics, other than footwear incorporating a protective metal toe-cap"]
["Level 2",2932,"Footwear with outer soles and uppers of rubber or plastics, other than waterproof footwear or sports footwear"]
["Level 3",29320,"Footwear with outer soles and uppers of rubber or plastics, other than waterproof footwear or sports footwear"]
["Level 2",2933,"Footwear with uppers of leather, other than sports footwear, footwear incorporating a protective metal toe-cap and miscellaneous special footwear"]
["Level 3",29330,"Footwear with uppers of leather, other than sports footwear, footwear incorporating a protective metal toe-cap and miscellaneous special footwear"]
["Level 2",2934,"Footwear with uppers of textile materials, other than sports footwear"]
["Level 3",29340,"Footwear with uppers of textile materials, other than sports footwear"]
["Level 1",294,"Sports footwear, except skating boots"]
["Level 2",2941,"Ski-boots, snowboard boots and cross-country ski footwear"]
["Level 3",29410,"Ski-boots, snowboard boots and cross-country ski footwear"]
["Level 2",2942,"Tennis shoes, basketball shoes, gym shoes, training shoes and the like"]
["Level 3",29420,"Tennis shoes, basketball shoes, gym shoes, training shoes and the like"]
["Level 2",2949,"Other sports footwear, except skating boots"]
["Level 3",29490,"Other sports footwear, except skating boots"]
["Level 1",295,"Other footwear, except asbestos footwear, orthopaedic footwear and skating boots"]
["Level 2",2951,"Footwear incorporating a protective metal toe-cap, except those covered in subclass 29320"]
["Level 3",29510,"Footwear incorporating a protective metal toe-cap, except those covered in subclass 29320"]
["Level 2",2952,"Wooden footwear, miscellaneous special footwear and other footwear n.e.c."]
["Level 3",29520,"Wooden footwear, miscellaneous special footwear and other footwear n.e.c."]
["Level 1",296,"Parts of footwear; removable insoles, heel cushions and similar articles; gaiters, leggings and similar articles, and parts thereof"]
["Level 2",2960,"Parts of footwear; removable insoles, heel cushions and similar articles; gaiters, leggings and similar articles, and parts thereof"]
["Level 3",29600,"Parts of footwear; removable insoles, heel cushions and similar articles; gaiters, leggings and similar articles, and parts thereof"]
["Section",3,"Other transportable goods, except metal products, machinery and equipment"]
["Division",31,"Products of wood, cork, straw and plaiting materials"]
["Level 1",311,"Wood, sawn or chipped lengthwise, sliced or peeled, of a thickness exceeding 6 mm; railway or tramway sleepers (cross-ties) of wood, not impregnated"]
["Level 2",3110,"Wood, sawn or chipped lengthwise, sliced or peeled, of a thickness exceeding 6 mm; railway or tramway sleepers (cross-ties) of wood, not impregnated"]
["Level 3",31100,"Wood, sawn or chipped lengthwise, sliced or peeled, of a thickness exceeding 6 mm; railway or tramway sleepers (cross-ties) of wood, not impregnated"]
["Level 1",312,"Wood continuously shaped along any of its edges or faces; wood wool; wood flour; wood in chips or particles"]
["Level 2",3121,"Wood, continuously shaped along any of its edges or faces (including strips and friezes for parquet flooring, not assembled, and beadings and mouldings)"]
["Level 3",31210,"Wood, continuously shaped along any of its edges or faces (including strips and friezes for parquet flooring, not assembled, and beadings and mouldings)"]
["Level 2",3122,"Wood wool; wood flour"]
["Level 3",31220,"Wood wool; wood flour"]
["Level 2",3123,"Wood in chips or particles"]
["Level 3",31230,"Wood in chips or particles"]
["Level 1",313,"Wood in the rough, including those treated with paint, stains, creosote or other preservatives; railway or tramway sleepers (cross-ties) of wood, impregnated"]
["Level 2",3131,"Wood in the rough, treated with paint, stains, creosote or other preservatives"]
["Level 3",31310,"Wood in the rough, treated with paint, stains, creosote or other preservatives"]
["Level 2",3132,"Railway or tramway sleepers (cross-ties) of wood, impregnated"]
["Level 3",31320,"Railway or tramway sleepers (cross-ties) of wood, impregnated"]
["Level 2",3133,"Other wood in the rough (including split poles and pickets)"]
["Level 3",31330,"Other wood in the rough (including split poles and pickets)"]
["Level 1",314,"Boards and panels"]
["Level 2",3141,"Plywood consisting solely of sheets of wood, except of bamboo"]
["Level 3",31410,"Plywood consisting solely of sheets of wood, except of bamboo"]
["Level 2",3142,"Other plywood, veneered panels and similar laminated wood, except of bamboo"]
["Level 3",31420,"Other plywood, veneered panels and similar laminated wood, except of bamboo"]
["Level 2",3143,"Particle board and similar board of wood or other ligneous materials"]
["Level 3",31430,"Particle board and similar board of wood or other ligneous materials"]
["Level 2",3144,"Fibreboard of wood or other ligneous materials"]
["Level 3",31440,"Fibreboard of wood or other ligneous materials"]
["Level 2",3145,"Plywood, veneer panels and similar laminated wood of bamboo"]
["Level 3",31450,"Plywood, veneer panels and similar laminated wood of bamboo"]
["Level 1",315,"Veneer sheets; sheets for plywood; densified wood"]
["Level 2",3151,"Veneer sheets and sheets for plywood and other wood sawn lengthwise, sliced or peeled, of a thickness not exceeding 6 mm"]
["Level 3",31510,"Veneer sheets and sheets for plywood and other wood sawn lengthwise, sliced or peeled, of a thickness not exceeding 6 mm"]
["Level 2",3152,"Densified wood"]
["Level 3",31520,"Densified wood"]
["Level 1",316,"Builders' joinery and carpentry of wood (including cellular wood panels, assembled parquet panels, shingles and shakes)"]
["Level 2",3160,"Builders' joinery and carpentry of wood (including cellular wood panels, assembled parquet panels, shingles and shakes)"]
["Level 3",31600,"Builders' joinery and carpentry of wood (including cellular wood panels, assembled parquet panels, shingles and shakes)"]
["Level 1",317,"Packing cases, boxes, crates, drums and similar packings, of wood; cable-drums of wood; pallets, box pallets and other load boards, of wood; casks, barrels, vats, tubs and other coopers' products and parts thereof, of wood (including staves)"]
["Level 2",3170,"Packing cases, boxes, crates, drums and similar packings, of wood; cable-drums of wood; pallets, box pallets and other load boards, of wood; casks, barrels, vats, tubs and other coopers' products and parts thereof, of wood (including staves)"]
["Level 3",31700,"Packing cases, boxes, crates, drums and similar packings, of wood; cable-drums of wood; pallets, box pallets and other load boards, of wood; casks, barrels, vats, tubs and other coopers' products and parts thereof, of wood (including staves)"]
["Level 1",319,"Other products of wood; articles of cork, plaiting materials and straw"]
["Level 2",3191,"Other products of wood"]
["Level 3",31911,"Tools, tool bodies, tool handles, broom or brush bodies and handles, boot or shoe lasts and trees, of wood"]
["Level 3",31912,"Tableware and kitchenware, of wood"]
["Level 3",31913,"Wood marquetry and inlaid wood; cases for jewellery or cutlery, and similar articles, of wood; statuettes and other ornaments, of wood"]
["Level 3",31914,"Wooden frames for paintings, photographs, mirrors or similar objects, and other articles of wood"]
["Level 2",3192,"Articles of cork and straw or other plaiting materials; basketware and wickerwork"]
["Level 3",31921,"Natural cork, debacked or roughly squared, or in blocks, plates, sheets or strip; crushed, granulated or ground cork; waste cork"]
["Level 3",31922,"Articles of natural cork; agglomerated cork and articles thereof"]
["Level 3",31923,"Manufactures of straw, of esparto or of other plaiting materials; basketware and wickerwork"]
["Division",32,"Pulp, paper and paper products; printed matter and related articles"]
["Level 1",321,"Pulp, paper and paperboard"]
["Level 2",3211,"Pulps of wood or other fibrous cellulosic material"]
["Level 3",32111,"Chemical wood pulp, dissolving grades"]
["Level 3",32112,"Chemical wood pulp, other than dissolving grades"]
["Level 3",32113,"Mechanical wood pulp; semi-chemical wood pulp; pulps of fibrous cellulosic material other than wood"]
["Level 2",3212,"Newsprint, hand-made paper and other uncoated paper and paperboard of a kind used for graphic purposes, and punch card stock and punch tape paper"]
["Level 3",32121,"Newsprint"]
["Level 3",32122,"Hand-made paper and paperboard"]
["Level 3",32129,"Other uncoated paper and paperboard, of a kind used for writing, printing or other graphic purposes, and punch card stock and punch tape paper"]
["Level 2",3213,"Toilet tissue stock, uncoated kraftliner and other uncoated paper and paperboard; miscellaneous other papers"]
["Level 3",32131,"Toilet or facial tissue stock, towel or napkin stock and similar paper, cellulose wadding and webs of cellulose fibres"]
["Level 3",32132,"Kraftliner, uncoated"]
["Level 3",32133,"Other uncoated kraft paper and paperboard; sack kraft paper, creped or crinkled"]
["Level 3",32134,"Fluting paper, including straw and semi-chemical"]
["Level 3",32135,"Testliner (recycled liner board)"]
["Level 3",32136,"Sulphite wrapping paper, filter paper and paperboard, felt paper and other paper and paperboard; cigarette paper not cut to size or in the form of booklets or tubes"]
["Level 3",32137,"Vegetable parchment, greaseproof papers, tracing papers and glassine and other glazed transparent or translucent papers"]
["Level 2",3214,"Processed paper and paperboard"]
["Level 3",32141,"Composite paper and paperboard, not surface-coated or impregnated"]
["Level 3",32142,"Paper and paperboard, creped, crinkled, embossed or perforated n.e.c."]
["Level 3",32143,"Paper and paperboard coated with kaolin or with other inorganic substances"]
["Level 3",32149,"Other paper and paperboard, cellulose wadding and webs of cellulose fibres, coated, impregnated, gummed or adhesive, covered, surface-coloured, surface-decorated or printed, in rolls or sheets"]
["Level 2",3215,"Corrugated paper and paperboard and containers of paper and paperboard"]
["Level 3",32151,"Corrugated paper and paperboard"]
["Level 3",32152,"Sacks and bags of paper"]
["Level 3",32153,"Cartons, boxes, cases, record sleeves and other packing containers (except bags) of paper, paperboard, cellulose wadding or webs of cellulose fibres; box files, letter trays, and similar articles, of paper or paperboard of a kind used in offices, shops or"]
["Level 2",3219,"Other paper and paperboard products"]
["Level 3",32191,"Carbon paper, self-copy paper and other copying or transfer papers, not in bulk sizes; duplicator stencils and offset plates, of paper"]
["Level 3",32192,"Envelopes, letter cards, plain postcards and correspondence cards of paper or paperboard; boxes, pouches, wallets and writing compendiums, of paper or paperboard, containing paper stationery"]
["Level 3",32193,"Toilet paper, handkerchiefs, towels, serviettes, napkins for babies, tampons, and similar household, sanitary or hospital articles, and articles of apparel, of paper pulp, paper, cellulose wadding or webs of cellulose fibres"]
["Level 3",32194,"Wallpaper and similar wall coverings; window transparencies of paper"]
["Level 3",32195,"Textile wall coverings"]
["Level 3",32197,"Labels of paper or paperboard"]
["Level 3",32198,"Filter blocks, slabs and plates, of paper pulp"]
["Level 3",32199,"Other paper, paperboard, cellulose wadding and webs of cellulose fibres, cut to size or shape; cigarette paper, in booklets or tubes, or in rolls of a width not exceeding 5 cm; other articles of paper pulp, paper, paperboard, cellulose wadding or webs of "]
["Level 1",322,"Books, in print"]
["Level 2",3221,"Educational textbooks, in print"]
["Level 3",32210,"Educational textbooks, in print"]
["Level 2",3222,"General reference books, in print"]
["Level 3",32220,"General reference books, in print"]
["Level 2",3223,"Directories, in print"]
["Level 3",32230,"Directories, in print"]
["Level 2",3229,"Other books, in print"]
["Level 3",32291,"Professional, technical and scholarly books, in print"]
["Level 3",32292,"Children's books, in print"]
["Level 3",32299,"Other books n.e.c., in print"]
["Level 1",323,"Newspapers and periodicals, daily, in print"]
["Level 2",3230,"Newspapers and periodicals, daily, in print"]
["Level 3",32300,"Newspapers and periodicals, daily, in print"]
["Level 1",324,"Newspapers and periodicals, other than daily, in print"]
["Level 2",3241,"General interest newspapers and periodicals, other than daily, in print"]
["Level 3",32410,"General interest newspapers and periodicals, other than daily, in print"]
["Level 2",3242,"Business, professional or academic newspapers and periodicals, other than daily, in print"]
["Level 3",32420,"Business, professional or academic newspapers and periodicals, other than daily, in print"]
["Level 2",3249,"Other newspapers and periodicals, other than daily, in print"]
["Level 3",32490,"Other newspapers and periodicals, other than daily, in print"]
["Level 1",325,"Printed maps; music, printed or in manuscript; postcards, greeting cards, pictures and plans"]
["Level 2",3251,"Maps and hydrographic or similar charts (including wall maps, topographical plans and globes), printed, other than in book-form"]
["Level 3",32511,"Maps and hydrographic or similar charts (including wall maps, topographical plans and maps for globes), printed, other than in book-form"]
["Level 3",32512,"Globes"]
["Level 2",3252,"Music, printed or in manuscript"]
["Level 3",32520,"Music, printed or in manuscript"]
["Level 2",3253,"Printed or illustrated postcards; printed cards bearing personal greetings or messages, with or without envelopes or trimmings"]
["Level 3",32530,"Printed or illustrated postcards; printed cards bearing personal greetings or messages, with or without envelopes or trimmings"]
["Level 2",3254,"Printed pictures, designs and photographs"]
["Level 3",32540,"Printed pictures, designs and photographs"]
["Level 2",3255,"Plans and drawings for architectural, engineering, industrial, commercial, topographical or similar purposes, being originals drawn by hand; hand-written texts; photographic reproductions and carbon copies of the foregoing"]
["Level 3",32550,"Plans and drawings for architectural, engineering, industrial, commercial, topographical or similar purposes, being originals drawn by hand; hand-written texts; photographic reproductions and carbon copies of the foregoing"]
["Level 1",326,"Stamps, cheque forms, banknotes, stock certificates, brochures and leaflets, advertising material and other printed matter"]
["Level 2",3261,"Unused postage, revenue or similar stamps; stamp-impressed paper; cheque forms; banknotes, stock, share or bond certificates and similar documents of title"]
["Level 3",32610,"Unused postage, revenue or similar stamps; stamp-impressed paper; cheque forms; banknotes, stock, share or bond certificates and similar documents of title"]
["Level 2",3262,"Trade advertising material, commercial catalogues and the like"]
["Level 3",32620,"Trade advertising material, commercial catalogues and the like"]
["Level 2",3263,"Transfers (decalcomanias) and printed calendars"]
["Level 3",32630,"Transfers (decalcomanias) and printed calendars"]
["Level 2",3269,"Other printed matter"]
["Level 3",32690,"Other printed matter"]
["Level 1",327,"Registers, account books, notebooks, letter pads, diaries and similar articles, blotting-pads, binders, file covers, forms and other articles of stationery, of paper or paperboard"]
["Level 2",3270,"Registers, account books, notebooks, letter pads, diaries and similar articles, blotting-pads, binders, file covers, forms and other articles of stationery, of paper or paperboard"]
["Level 3",32700,"Registers, account books, notebooks, letter pads, diaries and similar articles, blotting-pads, binders, file covers, forms and other articles of stationery, of paper or paperboard"]
["Level 1",328,"Composed type, prepared printing plates or cylinders, impressed lithographic stones or other impressed media for use in printing"]
["Level 2",3280,"Composed type, prepared printing plates or cylinders, impressed lithographic stones or other impressed media for use in printing"]
["Level 3",32800,"Composed type, prepared printing plates or cylinders, impressed lithographic stones or other impressed media for use in printing"]
["Division",33,"Coke oven products; refined petroleum products; nuclear fuel"]
["Level 1",331,"Coke and semi-coke of coal, of lignite or of peat; retort carbon"]
["Level 2",3310,"Coke and semi-coke of coal, of lignite or of peat; retort carbon"]
["Level 3",33100,"Coke and semi-coke of coal, of lignite or of peat; retort carbon"]
["Level 1",332,"Tar distilled from coal, from lignite or from peat, and other mineral tars"]
["Level 2",3320,"Tar distilled from coal, from lignite or from peat, and other mineral tars"]
["Level 3",33200,"Tar distilled from coal, from lignite or from peat, and other mineral tars"]
["Level 1",333,"Petroleum oils and oils obtained from bituminous materials, other than crude; preparations n.e.c. containing by weight 70% or more of these oils, such oils being the basic constituents of the preparations"]
["Level 2",3331,"Motor spirit (gasolene), including aviation spirit"]
["Level 3",33310,"Motor spirit (gasolene), including aviation spirit"]
["Level 2",3332,"Spirit type (gasolene type) jet fuel"]
["Level 3",33320,"Spirit type (gasolene type) jet fuel"]
["Level 2",3333,"Other light petroleum oils and light oils obtained from bituminous minerals (other than crude); light preparations n.e.c. containing not less than 70% by weight of petroleum oils or oils obtained from bituminous minerals (other than crude), these oils bei"]
["Level 3",33330,"Other light petroleum oils and light oils obtained from bituminous minerals (other than crude); light preparations n.e.c. containing not less than 70% by weight of petroleum oils or oils obtained from bituminous minerals (other than crude), these oils bei"]
["Level 2",3334,"Kerosene and kerosene type jet fuel"]
["Level 3",33341,"Kerosene"]
["Level 3",33342,"Kerosene type jet fuel"]
["Level 2",3335,"Other medium petroleum oils and medium oils obtained from bituminous minerals (not kerosene), other than crude; medium preparations n.e.c. containing not less than 70% by weight of petroleum oils or oils obtained from bituminous minerals (other than crude"]
["Level 3",33350,"Other medium petroleum oils and medium oils obtained from bituminous minerals (not kerosene), other than crude; medium preparations n.e.c. containing not less than 70% by weight of petroleum oils or oils obtained from bituminous minerals (other than crude"]
["Level 2",3336,"Gas oils"]
["Level 3",33360,"Gas oils"]
["Level 2",3337,"Fuel oils n.e.c."]
["Level 3",33370,"Fuel oils n.e.c."]
["Level 2",3338,"Lubricating petroleum oils and oils obtained from bituminous minerals, other heavy petroleum oils and heavy oils obtained from bituminous minerals (other than crude), and heavy preparations n.e.c. containing not less than 70% by weight of petroleum oils o"]
["Level 3",33380,"Lubricating petroleum oils and oils obtained from bituminous minerals, other heavy petroleum oils and heavy oils obtained from bituminous minerals (other than crude), and heavy preparations n.e.c. containing not less than 70% by weight of petroleum oils o"]
["Level 1",334,"Petroleum gases and other gaseous hydrocarbons, except natural gas"]
["Level 2",3341,"Propane and butanes, liquefied"]
["Level 3",33410,"Propane and butanes, liquefied"]
["Level 2",3342,"Ethylene, propylene, butylene, butadiene and other petroleum gases or gaseous hydrocarbons, except natural gas"]
["Level 3",33420,"Ethylene, propylene, butylene, butadiene and other petroleum gases or gaseous hydrocarbons, except natural gas"]
["Level 1",335,"Petroleum jelly; paraffin wax, micro- crystalline petroleum wax, slack wax, ozokerite, lignite wax, peat wax, other mineral waxes, and similar products; petroleum coke, petroleum bitumen and other residues of petroleum oils or of oils obtained from bitumi"]
["Level 2",3350,"Petroleum jelly; paraffin wax, micro- crystalline petroleum wax, slack wax, ozokerite, lignite wax, peat wax, other mineral waxes, and similar products; petroleum coke, petroleum bitumen and other residues of petroleum oils or of oils obtained from bitumi"]
["Level 3",33500,"Petroleum jelly; paraffin wax, micro- crystalline petroleum wax, slack wax, ozokerite, lignite wax, peat wax, other mineral waxes, and similar products; petroleum coke, petroleum bitumen and other residues of petroleum oils or of oils obtained from bitumi"]
["Level 1",336,"Radioactive elements and isotopes and compounds; alloys, dispersions, ceramic products and mixtures containing these elements, isotopes or compounds; radioactive residues"]
["Level 2",3361,"Natural uranium and its compounds; alloys, dispersions, ceramic products and mixtures containing natural uranium and its compounds"]
["Level 3",33610,"Natural uranium and its compounds; alloys, dispersions, ceramic products and mixtures containing natural uranium and its compounds"]
["Level 2",3362,"Uranium enriched in U235 and its compounds; plutonium and its compounds; alloys, dispersions, ceramic products and mixtures containing uranium enriched in U235, plutonium or compounds of these products"]
["Level 3",33620,"Uranium enriched in U235 and its compounds; plutonium and its compounds; alloys, dispersions, ceramic products and mixtures containing uranium enriched in U235, plutonium or compounds of these products"]
["Level 2",3363,"Uranium depleted in U235 and its compounds; thorium and its compounds; alloys, dispersions, ceramic products and mixtures containing uranium depleted in U235, thorium or compounds of these products"]
["Level 3",33630,"Uranium depleted in U235 and its compounds; thorium and its compounds; alloys, dispersions, ceramic products and mixtures containing uranium depleted in U235, thorium or compounds of these products"]
["Level 2",3369,"Other radioactive elements and isotopes and compounds; alloys, dispersions, ceramic products and mixtures containing these elements, isotopes or compounds; radioactive residues"]
["Level 3",33690,"Other radioactive elements and isotopes and compounds; alloys, dispersions, ceramic products and mixtures containing these elements, isotopes or compounds; radioactive residues"]
["Level 1",337,"Fuel elements (cartridges), for or of nuclear reactors"]
["Level 2",3371,"Fuel elements (cartridges), non-irradiated, for nuclear reactors"]
["Level 3",33710,"Fuel elements (cartridges), non-irradiated, for nuclear reactors"]
["Level 2",3372,"Spent (irradiated) fuel elements (cartridges) of nuclear reactors"]
["Level 3",33720,"Spent (irradiated) fuel elements (cartridges) of nuclear reactors"]
["Division",34,"Basic chemicals"]
["Level 1",341,"Basic organic chemicals"]
["Level 2",3411,"Hydrocarbons and their halogenated, sulphonated, nitrated or nitrosated derivatives"]
["Level 3",34110,"Hydrocarbons and their halogenated, sulphonated, nitrated or nitrosated derivatives"]
["Level 2",3412,"Industrial monocarboxylic fatty acids; acid oils from refining"]
["Level 3",34120,"Industrial monocarboxylic fatty acids; acid oils from refining"]
["Level 2",3413,"Alcohols, phenols, phenol-alcohols, and their halogenated, sulphonated, nitrated or nitrosated derivatives; industrial fatty alcohols"]
["Level 3",34131,"Ethyl alcohol and other spirits, denatured, of any strength"]
["Level 3",34139,"Other alcohols, phenols, phenol-alcohols, and their halogenated, sulphonated, nitrated or nitrosated derivatives; industrial fatty alcohols"]
["Level 2",3414,"Carboxylic acids and their anhydrides, halides, peroxides and peroxyacids and their halogenated, sulphonated, nitrated or nitrosated derivatives, except salicylic acid and its salts and esters and their salts"]
["Level 3",34140,"Carboxylic acids and their anhydrides, halides, peroxides and peroxyacids and their halogenated, sulphonated, nitrated or nitrosated derivatives, except salicylic acid and its salts and esters and their salts"]
["Level 2",3415,"Amine-function compounds; oxygen-function amino-compounds, except lysine and its esters and salts thereof and glutamic acid and its salts; ureines and their derivatives and salts thereof; carboxyimide-function compounds and imine-compounds; nitrile-functi"]
["Level 3",34150,"Amine-function compounds; oxygen-function amino-compounds, except lysine and its esters and salts thereof and glutamic acid and its salts; ureines and their derivatives and salts thereof; carboxyimide-function compounds and imine-compounds; nitrile-functi"]
["Level 2",3416,"Organo-sulphur compounds and other organo-inorganic compounds; heterocyclic compounds n.e.c.; nucleic acids and their salts"]
["Level 3",34160,"Organo-sulphur compounds and other organo-inorganic compounds; heterocyclic compounds n.e.c.; nucleic acids and their salts"]
["Level 2",3417,"Ethers, alcohol peroxides, ether peroxides, epoxides, acetals and hemiacetals, and their halogenated, sulphonated, nitrated or nitrosated derivatives; aldehyde-function compounds; ketone-function compounds and quinone-function compounds; enzymes; prepared"]
["Level 3",34170,"Ethers, alcohol peroxides, ether peroxides, epoxides, acetals and hemiacetals, and their halogenated, sulphonated, nitrated or nitrosated derivatives; aldehyde-function compounds; ketone-function compounds and quinone-function compounds; enzymes; prepared"]
["Level 2",3418,"Phosphoric esters and their salts or esters of other inorganic acids (excluding esters of hydrogen halides) and their salts; and their halogenated, sulphonated, nitrated or nitrosated derivatives"]
["Level 3",34180,"Phosphoric esters and their salts or esters of other inorganic acids (excluding esters of hydrogen halides) and their salts; and their halogenated, sulphonated, nitrated or nitrosated derivatives"]
["Level 1",342,"Basic inorganic chemicals n.e.c."]
["Level 2",3421,"Hydrogen, nitrogen, oxygen, carbon dioxide and rare gases; inorganic oxygen compounds of non-metals n.e.c."]
["Level 3",34210,"Hydrogen, nitrogen, oxygen, carbon dioxide and rare gases; inorganic oxygen compounds of non-metals n.e.c."]
["Level 2",3422,"Zinc oxide; zinc peroxide; chromium oxides and hydroxides; manganese oxides; iron oxides and hydroxides; earth colours; cobalt oxides and hydroxides; titanium oxides; lead oxides; red lead and orange lead; inorganic bases n.e.c.; metal oxides, hydroxides "]
["Level 3",34220,"Zinc oxide; zinc peroxide; chromium oxides and hydroxides; manganese oxides; iron oxides and hydroxides; earth colours; cobalt oxides and hydroxides; titanium oxides; lead oxides; red lead and orange lead; inorganic bases n.e.c.; metal oxides, hydroxides "]
["Level 2",3423,"Chemical elements n.e.c.; inorganic acids; inorganic oxygen compounds of boron, silicon and carbon; halogen or sulphur compounds of non-metals; sodium hydroxide; hydroxide and peroxide of magnesium; oxides, hydroxides and peroxides of strontium or barium;"]
["Level 3",34231,"Chemical elements n.e.c.; inorganic acids except phosphoric, nitric and sulphonitric; inorganic oxygen compounds of boron, silicon and carbon; halogen or sulphur compounds of non-metals; sodium hydroxide; hydroxide and peroxide of magnesium; oxides, hydro"]
["Level 3",34232,"Phosphoric acid"]
["Level 3",34233,"Nitric acid, sulphonitric acids"]
["Level 2",3424,"Phosphates of triammonium; salts and peroxysalts of inorganic acids and metals n.e.c."]
["Level 3",34240,"Phosphates of triammonium; salts and peroxysalts of inorganic acids and metals n.e.c."]
["Level 2",3425,"Salts of oxometallic or peroxometallic acids; colloidal precious metals and compounds thereof; inorganic and organic compounds of mercury; other inorganic chemicals n.e.c.; compressed air; amalgams"]
["Level 3",34250,"Salts of oxometallic or peroxometallic acids; colloidal precious metals and compounds thereof; inorganic and organic compounds of mercury; other inorganic chemicals n.e.c.; compressed air; amalgams"]
["Level 2",3426,"Isotopes n.e.c. and compounds thereof (including heavy water)"]
["Level 3",34260,"Isotopes n.e.c. and compounds thereof (including heavy water)"]
["Level 2",3427,"Cyanides, cyanide oxides and complex cyanides; fulminates, cyanates and thiocyanates; silicates; borates; perborates"]
["Level 3",34270,"Cyanides, cyanide oxides and complex cyanides; fulminates, cyanates and thiocyanates; silicates; borates; perborates"]
["Level 2",3428,"Hydrogen peroxide; phosphides; carbides; hydrides, nitrides, azides, silicides and borides"]
["Level 3",34280,"Hydrogen peroxide; phosphides; carbides; hydrides, nitrides, azides, silicides and borides"]
["Level 2",3429,"Compounds of rare earth metals, of yttrium or of scandium"]
["Level 3",34290,"Compounds of rare earth metals, of yttrium or of scandium"]
["Level 1",343,"Tanning or dyeing extracts; tannins and their derivatives; colouring matter n.e.c."]
["Level 2",3431,"Synthetic organic colouring matter and preparations based thereon; synthetic organic products of a kind used as fluorescent brightening agents or as luminophores; colour lakes and preparations based thereon"]
["Level 3",34310,"Synthetic organic colouring matter and preparations based thereon; synthetic organic products of a kind used as fluorescent brightening agents or as luminophores; colour lakes and preparations based thereon"]
["Level 2",3432,"Tanning extracts of vegetable origin; tannins and their salts, ethers, esters and other derivatives; colouring matter of vegetable or animal origin, except animal black; preparations based on colouring matter of vegetable or animal origin"]
["Level 3",34320,"Tanning extracts of vegetable origin; tannins and their salts, ethers, esters and other derivatives; colouring matter of vegetable or animal origin, except animal black; preparations based on colouring matter of vegetable or animal origin"]
["Level 2",3433,"Synthetic organic tanning substances; inorganic tanning substances; tanning preparations; enzymatic preparations for pre-tanning"]
["Level 3",34330,"Synthetic organic tanning substances; inorganic tanning substances; tanning preparations; enzymatic preparations for pre-tanning"]
["Level 2",3434,"Colouring matter n.e.c.; inorganic products of a kind used as luminophores"]
["Level 3",34340,"Colouring matter n.e.c.; inorganic products of a kind used as luminophores"]
["Level 1",344,"Activated natural mineral products; animal black; tall oil; terpenic oils produced by the treatment of coniferous woods; crude dipentene; crude para-cymene; pine oil; rosin and resin acids, and derivatives thereof; rosin spirit and rosin oils; rum gums; w"]
["Level 2",3440,"Activated natural mineral products; animal black; tall oil; terpenic oils produced by the treatment of coniferous woods; crude dipentene; crude para-cymene; pine oil; rosin and resin acids, and derivatives thereof; rosin spirit and rosin oils; rum gums; w"]
["Level 3",34400,"Activated natural mineral products; animal black; tall oil; terpenic oils produced by the treatment of coniferous woods; crude dipentene; crude para-cymene; pine oil; rosin and resin acids, and derivatives thereof; rosin spirit and rosin oils; rum gums; w"]
["Level 1",345,"Miscellaneous basic chemical products"]
["Level 2",3451,"Wood charcoal"]
["Level 3",34510,"Wood charcoal"]
["Level 2",3452,"Sulphur, except sublimed sulphur, precipitated sulphur and colloidal sulphur"]
["Level 3",34520,"Sulphur, except sublimed sulphur, precipitated sulphur and colloidal sulphur"]
["Level 2",3453,"Roasted iron pyrites"]
["Level 3",34530,"Roasted iron pyrites"]
["Level 2",3454,"Oils and other products of the distillation of high temperature coal tar, and similar products; pitch and pitch coke, obtained from mineral tars"]
["Level 3",34540,"Oils and other products of the distillation of high temperature coal tar, and similar products; pitch and pitch coke, obtained from mineral tars"]
["Level 2",3455,"Animal or vegetable fats and oils and their fractions, chemically modified, except those hydrogenated, inter-esterified, re-esterified or elaidinized; inedible mixtures or preparations of animal or vegetable fats or oils"]
["Level 3",34550,"Animal or vegetable fats and oils and their fractions, chemically modified, except those hydrogenated, inter-esterified, re-esterified or elaidinized; inedible mixtures or preparations of animal or vegetable fats or oils"]
["Level 2",3456,"Synthetic or reconstructed precious or semi-precious stones, unworked"]
["Level 3",34560,"Synthetic or reconstructed precious or semi-precious stones, unworked"]
["Level 2",3457,"Glycerol"]
["Level 3",34570,"Glycerol"]
["Level 1",346,"Fertilizers and pesticides"]
["Level 2",3461,"Mineral or chemical fertilizers, nitrogenous"]
["Level 3",34611,"Urea"]
["Level 3",34612,"Ammonium sulphate"]
["Level 3",34613,"Ammonium nitrate"]
["Level 3",34614,"Double salts and mixtures of calcium nitrate and ammonium nitrate"]
["Level 3",34615,"Mixtures of ammonium nitrate with calcium carbonate or other inorganic non-fertilizing substances"]
["Level 3",34619,"Other nitrogenous fertilizers and mixtures, n.e.c."]
["Level 2",3462,"Mineral or chemical fertilizers, phosphatic"]
["Level 3",34621,"Superphosphate"]
["Level 3",34629,"Other phosphatic fertilizers, n.e.c."]
["Level 2",3463,"Mineral or chemical fertilizers, potassic"]
["Level 3",34631,"Potassium chloride (muriate of potash)"]
["Level 3",34632,"Potassium sulphate (sulphate of potash)"]
["Level 3",34639,"Carnallite, sylvite and other potassic fertilizers, n.e.c."]
["Level 2",3464,"Mineral or chemical fertilizers containing at least two nutrients of nitrogen, phosphate and potash"]
["Level 3",34641,"Fertilizers containing three nutrients: nitrogen, phosphorus and potassium"]
["Level 3",34642,"Diammonium hydrogenorthophosphate (diammonium phosphate)"]
["Level 3",34643,"Monoammonium phosphate"]
["Level 3",34644,"Fertilizers containing two nutrients: nitrogen and phosphorus"]
["Level 3",34645,"Fertilizers containing two nutrients: phosphorus and potassium"]
["Level 3",34646,"Potassium nitrate"]
["Level 3",34649,"Other mineral or chemical fertilizers containing at least two nutrients (nitrogen, phosphate, potash), n.e.c."]
["Level 2",3465,"Other fertilizers"]
["Level 3",34651,"Ammonia, anhydrous"]
["Level 3",34652,"Ammonia, in aqueous solution"]
["Level 3",34653,"Ammonium chloride; nitrites"]
["Level 3",34654,"Excreta of animals useful for manure/fertilizer and fuel preparation"]
["Level 3",34659,"Fertilizers n.e.c."]
["Level 2",3466,"Insecticides, fungicides, herbicides and disinfectants"]
["Level 3",34661,"Insecticides"]
["Level 3",34662,"Fungicides"]
["Level 3",34663,"Herbicides, anti-sprouting products and plant-growth regulators"]
["Level 3",34664,"Disinfectants"]
["Level 3",34666,"Hazardous pesticides"]
["Level 3",34669,"Other insecticides, fungicides, herbicides and disinfectants"]
["Level 1",347,"Plastics in primary forms"]
["Level 2",3471,"Polymers of ethylene, in primary forms"]
["Level 3",34710,"Polymers of ethylene, in primary forms"]
["Level 2",3472,"Polymers of styrene, in primary forms"]
["Level 3",34720,"Polymers of styrene, in primary forms"]
["Level 2",3473,"Polymers of vinyl chloride or other halogenated olefins, in primary forms"]
["Level 3",34730,"Polymers of vinyl chloride or other halogenated olefins, in primary forms"]
["Level 2",3474,"Polyacetals, other polyethers and epoxide resins, in primary forms; polycarbonates, alkyd resins, polyallyl esters and other polyesters, in primary forms"]
["Level 3",34740,"Polyacetals, other polyethers and epoxide resins, in primary forms; polycarbonates, alkyd resins, polyallyl esters and other polyesters, in primary forms"]
["Level 2",3479,"Other plastics in primary forms; ion exchangers"]
["Level 3",34790,"Other plastics in primary forms; ion exchangers"]
["Level 1",348,"Synthetic rubber and factice derived from oils, and mixtures thereof with natural rubber and similar natural gums, in primary forms or in plates, sheets or strip"]
["Level 2",3480,"Synthetic rubber and factice derived from oils, and mixtures thereof with natural rubber and similar natural gums, in primary forms or in plates, sheets or strip"]
["Level 3",34800,"Synthetic rubber and factice derived from oils, and mixtures thereof with natural rubber and similar natural gums, in primary forms or in plates, sheets or strip"]
["Division",35,"Other chemical products; man-made fibres"]
["Level 1",351,"Paints and varnishes and related products; artists' colours; ink"]
["Level 2",3511,"Paints and varnishes and related products"]
["Level 3",35110,"Paints and varnishes and related products"]
["Level 2",3512,"Artists', students' or signboard painters' colours, modifying tints, amusement colours and the like"]
["Level 3",35120,"Artists', students' or signboard painters' colours, modifying tints, amusement colours and the like"]
["Level 2",3513,"Printing ink"]
["Level 3",35130,"Printing ink"]
["Level 2",3514,"Writing or drawing ink and other inks"]
["Level 3",35140,"Writing or drawing ink and other inks"]
["Level 1",352,"Pharmaceutical products"]
["Level 2",3521,"Salicylic acid and its salts and esters"]
["Level 3",35210,"Salicylic acid and its salts and esters"]
["Level 2",3522,"Lysine and its esters and salts thereof; glutamic acid and its salts; quaternary ammonium salts and hydroxides; lecithins and other phosphoaminolipids; acyclic amides and their derivatives and salts thereof; cyclic amides (except ureines) and their deriva"]
["Level 3",35220,"Lysine and its esters and salts thereof; glutamic acid and its salts; quaternary ammonium salts and hydroxides; lecithins and other phosphoaminolipids; acyclic amides and their derivatives and salts thereof; cyclic amides (except ureines) and their deriva"]
["Level 2",3523,"Lactones n.e.c., heterocyclic compounds with nitrogen hetero-atom(s) only, containing an unfused pyrazole ring, a pyrimidine ring, a piperazine ring, an unfused triazine ring or a phenothiazine ring system not further fused; hydantoin and its derivatives;"]
["Level 3",35230,"Lactones n.e.c., heterocyclic compounds with nitrogen hetero-atom(s) only, containing an unfused pyrazole ring, a pyrimidine ring, a piperazine ring, an unfused triazine ring or a phenothiazine ring system not further fused; hydantoin and its derivatives;"]
["Level 2",3524,"Sugars, chemically pure n.e.c.; sugar ethers and sugar esters and their salts n.e.c."]
["Level 3",35240,"Sugars, chemically pure n.e.c.; sugar ethers and sugar esters and their salts n.e.c."]
["Level 2",3525,"Provitamins, vitamins and hormones; glycosides and vegetable alkaloids and their salts, ethers, esters and other derivatives; antibiotics"]
["Level 3",35250,"Provitamins, vitamins and hormones; glycosides and vegetable alkaloids and their salts, ethers, esters and other derivatives; antibiotics"]
["Level 2",3526,"Medicaments, for therapeutic or prophylactic uses"]
["Level 3",35260,"Medicaments, for therapeutic or prophylactic uses"]
["Level 2",3527,"Other pharmaceutical products"]
["Level 3",35270,"Other pharmaceutical products"]
["Level 2",3529,"Other articles for medical or surgical purposes"]
["Level 3",35290,"Other articles for medical or surgical purposes"]
["Level 1",353,"Soap, cleaning preparations, perfumes and toilet preparations"]
["Level 2",3531,"Organic surface active agents, except soap"]
["Level 3",35310,"Organic surface active agents, except soap"]
["Level 2",3532,"Soap and detergents, perfume and toilet preparations"]
["Level 3",35321,"Soap; organic surface-active products and preparations for use as soap; paper, wadding, felt and nonwovens, impregnated, coated or covered with soap or detergent"]
["Level 3",35322,"Detergents and washing preparations"]
["Level 3",35323,"Perfume and toilet preparations"]
["Level 2",3533,"Cleaning and polishing preparations"]
["Level 3",35331,"Preparations for perfuming or deodorizing rooms"]
["Level 3",35332,"Artificial waxes and prepared waxes"]
["Level 3",35333,"Polishes and creams, for footwear, furniture, floors, coachwork, glass or metal"]
["Level 3",35334,"Scouring pastes and powders and other scouring preparations"]
["Level 1",354,"Chemical products n.e.c."]
["Level 2",3541,"Essential oils and concentrates, aqueous distillates and aqueous solutions thereof; resinoids; terpenic by-products of the deterpenation of essential oils; mixtures of odoriferous substances of a kind used as raw materials in industry"]
["Level 3",35410,"Essential oils and concentrates, aqueous distillates and aqueous solutions thereof; resinoids; terpenic by-products of the deterpenation of essential oils; mixtures of odoriferous substances of a kind used as raw materials in industry"]
["Level 2",3542,"Glues and gelatine, peptones and their derivatives, and related products; caseinates and other casein derivatives; albuminates and other albumin derivatives"]
["Level 3",35420,"Glues and gelatine, peptones and their derivatives, and related products; caseinates and other casein derivatives; albuminates and other albumin derivatives"]
["Level 2",3543,"Lubricating preparations and preparations of a kind used for the oil or grease treatment of materials, except of petroleum; prepared additives for mineral oils; prepared liquids for hydraulic transmission, except of petroleum; anti-freezing preparations a"]
["Level 3",35430,"Lubricating preparations and preparations of a kind used for the oil or grease treatment of materials, except of petroleum; prepared additives for mineral oils; prepared liquids for hydraulic transmission, except of petroleum; anti-freezing preparations a"]
["Level 2",3544,"Modelling pastes; \"dental wax\" or \"dental impression compounds\"; other preparations for use in dentistry with a basis of plaster; preparations and charges for fire-extinguishers; charged fire-extinguishing grenades; prepared culture media for development "]
["Level 3",35440,"Modelling pastes; \"dental wax\" or \"dental impression compounds\"; other preparations for use in dentistry with a basis of plaster; preparations and charges for fire-extinguishers; charged fire-extinguishing grenades; prepared culture media for development "]
["Level 2",3545,"Prepared explosives; safety fuses; detonating fuses; percussion or detonating caps; igniters; electric detonators"]
["Level 3",35450,"Prepared explosives; safety fuses; detonating fuses; percussion or detonating caps; igniters; electric detonators"]
["Level 2",3546,"Pyrotechnic articles"]
["Level 3",35460,"Pyrotechnic articles"]
["Level 2",3547,"Chemical elements and compounds doped for use in electronics"]
["Level 3",35470,"Chemical elements and compounds doped for use in electronics"]
["Level 2",3549,"Other chemical products n.e.c."]
["Level 3",35490,"Other chemical products n.e.c."]
["Level 1",355,"Man-made fibres"]
["Level 2",3551,"Synthetic filament tow and staple fibres, not carded or combed"]
["Level 3",35510,"Synthetic filament tow and staple fibres, not carded or combed"]
["Level 2",3552,"Synthetic filament yarn (except sewing thread and multiple or cabled yarn), not put up for retail sale"]
["Level 3",35520,"Synthetic filament yarn (except sewing thread and multiple or cabled yarn), not put up for retail sale"]
["Level 2",3553,"Synthetic monofilament and strip"]
["Level 3",35530,"Synthetic monofilament and strip"]
["Level 2",3554,"Artificial filament tow and staple fibres, not carded or combed"]
["Level 3",35540,"Artificial filament tow and staple fibres, not carded or combed"]
["Level 2",3555,"Artificial filament yarn (except sewing thread and multiple or cabled yarn), not put up for retail sale"]
["Level 3",35550,"Artificial filament yarn (except sewing thread and multiple or cabled yarn), not put up for retail sale"]
["Level 2",3556,"Artificial monofilament and strip"]
["Level 3",35560,"Artificial monofilament and strip"]
["Division",36,"Rubber and plastics products"]
["Level 1",361,"Rubber tyres and tubes"]
["Level 2",3611,"New pneumatic tyres, inner tubes, solid or cushion tyres, interchangeable tyre treads, tyre flaps and \"camel-back\", of rubber"]
["Level 3",36111,"New pneumatic tyres, of rubber, of a kind used on motor cars"]
["Level 3",36112,"New pneumatic tyres, of rubber, of a kind used on motorcycles or bicycles"]
["Level 3",36113,"Other new pneumatic tyres, of rubber"]
["Level 3",36114,"Inner tubes, solid or cushion tyres, interchangeable tyre treads and tyre flaps, of rubber"]
["Level 3",36115,"\"Camel-back\" strips for retreading rubber tyres"]
["Level 2",3612,"Retreaded pneumatic tyres, of rubber"]
["Level 3",36120,"Retreaded pneumatic tyres, of rubber"]
["Level 1",362,"Other rubber products"]
["Level 2",3621,"Reclaimed rubber"]
["Level 3",36210,"Reclaimed rubber"]
["Level 2",3622,"Unvulcanized compounded rubber, in primary forms or in plates, sheets or strip; unvulcanized rubber in forms other than primary forms or plates, sheets or strip (except \"camel-back\" strips for retreading rubber tyres); articles of unvulcanized rubber; thr"]
["Level 3",36220,"Unvulcanized compounded rubber, in primary forms or in plates, sheets or strip; unvulcanized rubber in forms other than primary forms or plates, sheets or strip (except \"camel-back\" strips for retreading rubber tyres); articles of unvulcanized rubber; thr"]
["Level 2",3623,"Tubes, pipes and hoses of vulcanized rubber other than hard rubber"]
["Level 3",36230,"Tubes, pipes and hoses of vulcanized rubber other than hard rubber"]
["Level 2",3624,"Conveyor or transmission belts or belting, of vulcanized rubber"]
["Level 3",36240,"Conveyor or transmission belts or belting, of vulcanized rubber"]
["Level 2",3625,"Rubberized textile fabrics, except tyre cord fabric"]
["Level 3",36250,"Rubberized textile fabrics, except tyre cord fabric"]
["Level 2",3626,"Articles of apparel and clothing accessories (including gloves) of vulcanized rubber other than hard rubber"]
["Level 3",36260,"Articles of apparel and clothing accessories (including gloves) of vulcanized rubber other than hard rubber"]
["Level 2",3627,"Articles of vulcanized rubber n.e.c.; hard rubber; articles of hard rubber"]
["Level 3",36270,"Articles of vulcanized rubber n.e.c.; hard rubber; articles of hard rubber"]
["Level 1",363,"Semi-manufactures of plastics"]
["Level 2",3631,"Monofilament of which any cross-sectional dimension exceeds 1 mm, rods, sticks and profile shapes, of plastics"]
["Level 3",36310,"Monofilament of which any cross-sectional dimension exceeds 1 mm, rods, sticks and profile shapes, of plastics"]
["Level 2",3632,"Tubes, pipes and hoses, and fittings therefor, of plastics"]
["Level 3",36320,"Tubes, pipes and hoses, and fittings therefor, of plastics"]
["Level 2",3633,"Plates, sheets, film, foil and strip, of plastics, not self-adhesive, non-cellular and not reinforced, laminated, supported or similarly combined with other materials"]
["Level 3",36330,"Plates, sheets, film, foil and strip, of plastics, not self-adhesive, non-cellular and not reinforced, laminated, supported or similarly combined with other materials"]
["Level 2",3639,"Other plates, sheets, film, foil and strip, of plastics"]
["Level 3",36390,"Other plates, sheets, film, foil and strip, of plastics"]
["Level 1",364,"Packaging products of plastics"]
["Level 2",3641,"Sacks and bags, of plastics"]
["Level 3",36410,"Sacks and bags, of plastics"]
["Level 2",3649,"Other articles for the conveyance or packing of goods, of plastics; stoppers, lids, caps and other closures, of plastics"]
["Level 3",36490,"Other articles for the conveyance or packing of goods, of plastics; stoppers, lids, caps and other closures, of plastics"]
["Level 1",369,"Other plastics products"]
["Level 2",3691,"Floor coverings of plastics, in rolls or in the form of tiles; wall or ceiling coverings of plastics"]
["Level 3",36910,"Floor coverings of plastics, in rolls or in the form of tiles; wall or ceiling coverings of plastics"]
["Level 2",3692,"Self-adhesive plates, sheets, film, foil, tape, strip and other flat shapes, of plastics"]
["Level 3",36920,"Self-adhesive plates, sheets, film, foil, tape, strip and other flat shapes, of plastics"]
["Level 2",3693,"Baths, wash-basins, lavatory pans and covers, flushing cisterns and similar sanitary ware, of plastics"]
["Level 3",36930,"Baths, wash-basins, lavatory pans and covers, flushing cisterns and similar sanitary ware, of plastics"]
["Level 2",3694,"Tableware, kitchenware, other household articles and toilet articles, of plastics"]
["Level 3",36940,"Tableware, kitchenware, other household articles and toilet articles, of plastics"]
["Level 2",3695,"Builders' ware of plastics n.e.c."]
["Level 3",36950,"Builders' ware of plastics n.e.c."]
["Level 2",3696,"Parts n.e.c. of lamps, lighting fittings, illuminated signs, illuminated name-plates and the like, of plastics"]
["Level 3",36960,"Parts n.e.c. of lamps, lighting fittings, illuminated signs, illuminated name-plates and the like, of plastics"]
["Level 2",3697,"Safety headgear; other headgear of rubber or plastics"]
["Level 3",36971,"Safety headgear"]
["Level 3",36972,"Other headgear of rubber or plastics"]
["Level 2",3698,"Electrical insulating fittings of plastics"]
["Level 3",36980,"Electrical insulating fittings of plastics"]
["Level 2",3699,"Articles of plastics n.e.c."]
["Level 3",36990,"Articles of plastics n.e.c."]
["Division",37,"Glass and glass products and other non-metallic products n.e.c."]
["Level 1",371,"Glass and glass products"]
["Level 2",3711,"Unworked glass, flat glass and pressed or moulded glass for construction; glass mirrors"]
["Level 3",37111,"Glass in the mass, in balls (except microspheres), rods or tubes, unworked; waste and scrap of glass"]
["Level 3",37112,"Unworked cast, rolled, drawn or blown glass, in sheets"]
["Level 3",37113,"Float glass and surface ground or polished glass, in sheets"]
["Level 3",37114,"Glass in sheets, bent, edge-worked, engraved, drilled, enamelled or otherwise worked, but not framed, etc."]
["Level 3",37115,"Safety glass"]
["Level 3",37116,"Glass mirrors; multiple walled insulating units of glass"]
["Level 3",37117,"Paving blocks, bricks, tiles and other articles of pressed or moulded glass, of a kind used for building or construction purposes; leaded lights and the like; multicellular or foam glass in blocks, plates or similar forms"]
["Level 2",3712,"Glass fibres and articles thereof, except woven fabrics"]
["Level 3",37121,"Slivers, rovings, yarn and chopped strands, of glass"]
["Level 3",37129,"Voiles, webs, mats, mattresses, boards and other articles of glass fibres, except woven fabrics"]
["Level 2",3719,"Other glass articles"]
["Level 3",37191,"Bottles, jars, phials and other containers, of glass, of a kind used for the conveyance or packing of goods, except ampoules; stoppers, lids and other closures, of glass"]
["Level 3",37192,"Glass envelopes, open, and glass parts thereof, for electric lamps, cathode-ray tubes or the like"]
["Level 3",37193,"Glassware of a kind used for table, kitchen, toilet, office, indoor decoration or similar purposes (except bottles, jars and the like, of glass, and ornaments of lamp-worked glass)"]
["Level 3",37194,"Clock or watch glasses and similar glasses; glasses for spectacles, not optically worked; hollow glass spheres and their segments for the manufacture of such glasses"]
["Level 3",37195,"Laboratory, hygienic or pharmaceutical glassware; ampoules of glass"]
["Level 3",37196,"Parts n.e.c. of lamps, lighting fittings, illuminated signs, illuminated name-plates and the like, of glass"]
["Level 3",37197,"Electrical insulators of glass"]
["Level 3",37199,"Articles of glass n.e.c. (including glass inners for vacuum flasks, signalling glassware, glass cubes for mosaics, glass beads, glass microspheres and ornaments of lamp-worked glass)"]
["Level 1",372,"Non-structural ceramic ware"]
["Level 2",3721,"Ceramic sinks, baths, water closet pans, flushing cisterns and similar sanitary fixtures"]
["Level 3",37210,"Ceramic sinks, baths, water closet pans, flushing cisterns and similar sanitary fixtures"]
["Level 2",3722,"Ceramic household and ornamental articles"]
["Level 3",37221,"Ceramic tableware, kitchenware, other household articles and toilet articles"]
["Level 3",37222,"Statuettes and other ornamental ceramic articles"]
["Level 2",3729,"Other non-structural ceramic wares"]
["Level 3",37291,"Ceramic wares for laboratory, chemical or other technical uses; ceramic troughs, tubs and similar receptacles of a kind used in agriculture; ceramic pots, jars and similar articles of a kind used for the conveyance or packing of goods"]
["Level 3",37292,"Electrical insulators of ceramics; insulating fittings, for electrical machines, appliances or equipment, of ceramics"]
["Level 3",37299,"Other non-structural ceramic articles n.e.c."]
["Level 1",373,"Refractory products and structural non-refractory clay products"]
["Level 2",3731,"Bricks, blocks, tiles and other ceramic goods of siliceous earths"]
["Level 3",37310,"Bricks, blocks, tiles and other ceramic goods of siliceous earths"]
["Level 2",3732,"Refractory bricks, blocks, tiles and similar refractory ceramic constructional goods, other than those of siliceous earths"]
["Level 3",37320,"Refractory bricks, blocks, tiles and similar refractory ceramic constructional goods, other than those of siliceous earths"]
["Level 2",3733,"Refractory cements, mortars, concretes and similar compositions n.e.c."]
["Level 3",37330,"Refractory cements, mortars, concretes and similar compositions n.e.c."]
["Level 2",3734,"Unfired refractory products; other refractory ceramic goods"]
["Level 3",37340,"Unfired refractory products; other refractory ceramic goods"]
["Level 2",3735,"Non-refractory ceramic building bricks, flooring blocks, support or filler tiles, roofing tiles, chimney-pots, cowls, chimney liners, architectural ornaments and other ceramic construction goods"]
["Level 3",37350,"Non-refractory ceramic building bricks, flooring blocks, support or filler tiles, roofing tiles, chimney-pots, cowls, chimney liners, architectural ornaments and other ceramic construction goods"]
["Level 2",3736,"Non-refractory ceramic pipes, conduits, guttering and pipe fittings"]
["Level 3",37360,"Non-refractory ceramic pipes, conduits, guttering and pipe fittings"]
["Level 2",3737,"Ceramic flags and paving, hearth or wall tiles; ceramic mosaic cubes and the like"]
["Level 3",37370,"Ceramic flags and paving, hearth or wall tiles; ceramic mosaic cubes and the like"]
["Level 1",374,"Plaster, lime and cement"]
["Level 2",3741,"Plasters"]
["Level 3",37410,"Plasters"]
["Level 2",3742,"Quicklime, slaked lime and hydraulic lime"]
["Level 3",37420,"Quicklime, slaked lime and hydraulic lime"]
["Level 2",3743,"Cement clinkers"]
["Level 3",37430,"Cement clinkers"]
["Level 2",3744,"Portland cement, aluminous cement, slag cement and similar hydraulic cements, except in the form of clinkers"]
["Level 3",37440,"Portland cement, aluminous cement, slag cement and similar hydraulic cements, except in the form of clinkers"]
["Level 2",3745,"Calcinated or agglomerated dolomite"]
["Level 3",37450,"Calcinated or agglomerated dolomite"]
["Level 1",375,"Articles of concrete, cement and plaster"]
["Level 2",3751,"Non-refractory mortars and concretes"]
["Level 3",37510,"Non-refractory mortars and concretes"]
["Level 2",3752,"Boards, blocks and similar articles of vegetable fibre, straw or wood waste agglomerated with mineral binders"]
["Level 3",37520,"Boards, blocks and similar articles of vegetable fibre, straw or wood waste agglomerated with mineral binders"]
["Level 2",3753,"Articles of plaster or of compositions based on plaster"]
["Level 3",37530,"Articles of plaster or of compositions based on plaster"]
["Level 2",3754,"Tiles, flagstones, bricks and similar articles, of cement, concrete or artificial stone"]
["Level 3",37540,"Tiles, flagstones, bricks and similar articles, of cement, concrete or artificial stone"]
["Level 2",3755,"Prefabricated structural components for building or civil engineering, of cement, concrete or artificial stone"]
["Level 3",37550,"Prefabricated structural components for building or civil engineering, of cement, concrete or artificial stone"]
["Level 2",3756,"Other articles of cement, concrete or artificial stone"]
["Level 3",37560,"Other articles of cement, concrete or artificial stone"]
["Level 2",3757,"Articles of asbestos-cement, cellulose fibre-cement or the like"]
["Level 3",37570,"Articles of asbestos-cement, cellulose fibre-cement or the like"]
["Level 1",376,"Monumental or building stone and articles thereof"]
["Level 2",3761,"Marble, travertine and alabaster, worked, and articles thereof (except setts, curbstones, flagstones, tiles, cubes and similar articles); artificially coloured granules, chippings and powder of marble, travertine and alabaster"]
["Level 3",37610,"Marble, travertine and alabaster, worked, and articles thereof (except setts, curbstones, flagstones, tiles, cubes and similar articles); artificially coloured granules, chippings and powder of marble, travertine and alabaster"]
["Level 2",3769,"Other worked monumental or building stone and articles thereof; other artificially coloured granules, chippings and powder of natural stone; articles of agglomerated slate"]
["Level 3",37690,"Other worked monumental or building stone and articles thereof; other artificially coloured granules, chippings and powder of natural stone; articles of agglomerated slate"]
["Level 1",379,"Other non-metallic mineral products n.e.c."]
["Level 2",3791,"Millstones, grindstones, grinding wheels and the like, without frameworks, for working stones, and parts thereof, of natural stone, of agglomerated natural or artificial abrasives, or of ceramics; natural or artificial abrasive powder or grain, on a base "]
["Level 3",37910,"Millstones, grindstones, grinding wheels and the like, without frameworks, for working stones, and parts thereof, of natural stone, of agglomerated natural or artificial abrasives, or of ceramics; natural or artificial abrasive powder or grain, on a base "]
["Level 2",3792,"Fabricated asbestos fibres; mixtures with a basis of asbestos or with a basis of asbestos and magnesium carbonate; articles of such mixtures, or of asbestos"]
["Level 3",37920,"Fabricated asbestos fibres; mixtures with a basis of asbestos or with a basis of asbestos and magnesium carbonate; articles of such mixtures, or of asbestos"]
["Level 2",3793,"Articles of asphalt or of similar material"]
["Level 3",37930,"Articles of asphalt or of similar material"]
["Level 2",3794,"Bituminous mixtures based on natural and artificial stone materials and bitumen, natural asphalt or related substances as a binder"]
["Level 3",37940,"Bituminous mixtures based on natural and artificial stone materials and bitumen, natural asphalt or related substances as a binder"]
["Level 2",3795,"Artificial graphite; colloidal or semi-colloidal graphite; preparations based on graphite or other carbon in the form of semi-manufactures"]
["Level 3",37950,"Artificial graphite; colloidal or semi-colloidal graphite; preparations based on graphite or other carbon in the form of semi-manufactures"]
["Level 2",3796,"Artificial corundum"]
["Level 3",37960,"Artificial corundum"]
["Level 2",3799,"Non-metallic mineral products n.e.c. (including mineral wool, expanded mineral materials, worked mica, articles of mica, non-electrical articles of graphite or other carbon and articles of peat)"]
["Level 3",37990,"Non-metallic mineral products n.e.c. (including mineral wool, expanded mineral materials, worked mica, articles of mica, non-electrical articles of graphite or other carbon and articles of peat)"]
["Division",38,"Furniture; other transportable goods n.e.c."]
["Level 1",381,"Furniture"]
["Level 2",3811,"Seats"]
["Level 3",38111,"Seats, primarily with metal frames"]
["Level 3",38112,"Seats, primarily with wooden frames"]
["Level 3",38119,"Other seats"]
["Level 2",3812,"Other furniture, of a kind used in offices"]
["Level 3",38121,"Other metal furniture, of a kind used in offices"]
["Level 3",38122,"Other wooden furniture, of a kind used in offices"]
["Level 2",3813,"Other wooden furniture, of a kind used in the kitchen"]
["Level 3",38130,"Other wooden furniture, of a kind used in the kitchen"]
["Level 2",3814,"Other furniture n.e.c"]
["Level 3",38140,"Other furniture n.e.c"]
["Level 2",3815,"Mattress supports; mattresses, fitted with springs or stuffed or internally fitted with any material or of cellular rubber or plastics, whether or not covered"]
["Level 3",38150,"Mattress supports; mattresses, fitted with springs or stuffed or internally fitted with any material or of cellular rubber or plastics, whether or not covered"]
["Level 2",3816,"Parts of furniture"]
["Level 3",38160,"Parts of furniture"]
["Level 1",382,"Jewellery and related articles"]
["Level 2",3821,"Pearls, natural or cultured and unworked"]
["Level 3",38210,"Pearls, natural or cultured and unworked"]
["Level 2",3822,"Cultured pearls, precious or semi-precious stones, and synthetic or reconstructed precious or semi-precious stones (except industrial diamonds and piezo-electric quartz), worked (except simply sawn, cleaved, bruted or roughly shaped), but not strung, moun"]
["Level 3",38220,"Cultured pearls, precious or semi-precious stones, and synthetic or reconstructed precious or semi-precious stones (except industrial diamonds and piezo-electric quartz), worked (except simply sawn, cleaved, bruted or roughly shaped), but not strung, moun"]
["Level 2",3823,"Industrial diamonds, worked; dust and powder of natural or synthetic precious or semi-precious stones"]
["Level 3",38230,"Industrial diamonds, worked; dust and powder of natural or synthetic precious or semi-precious stones"]
["Level 2",3824,"Jewellery and other articles of precious metal or of metal clad with precious metal; articles of natural or cultured pearls or precious or semi-precious stones (natural, synthetic or reconstructed)"]
["Level 3",38240,"Jewellery and other articles of precious metal or of metal clad with precious metal; articles of natural or cultured pearls or precious or semi-precious stones (natural, synthetic or reconstructed)"]
["Level 2",3825,"Coin"]
["Level 3",38250,"Coin"]
["Level 1",383,"Musical instruments"]
["Level 2",3831,"Pianos and other keyboard stringed musical instruments"]
["Level 3",38310,"Pianos and other keyboard stringed musical instruments"]
["Level 2",3832,"Other string musical instruments"]
["Level 3",38320,"Other string musical instruments"]
["Level 2",3833,"Wind musical instruments (including pipe organs, accordians and brass-wind instruments)"]
["Level 3",38330,"Wind musical instruments (including pipe organs, accordians and brass-wind instruments)"]
["Level 2",3834,"Musical instruments, the sound of which is produced, or must be amplified, electrically"]
["Level 3",38340,"Musical instruments, the sound of which is produced, or must be amplified, electrically"]
["Level 2",3835,"Other musical instruments (including percussion instruments, musical boxes and fairground organs); decoy calls; whistles, call horns and other mouth-blown sound signalling instruments"]
["Level 3",38350,"Other musical instruments (including percussion instruments, musical boxes and fairground organs); decoy calls; whistles, call horns and other mouth-blown sound signalling instruments"]
["Level 2",3836,"Parts and accessories of musical instruments; metronomes, tuning forks and pitch pipes"]
["Level 3",38360,"Parts and accessories of musical instruments; metronomes, tuning forks and pitch pipes"]
["Level 1",384,"Sports goods"]
["Level 2",3841,"Snow-skis and other snow-ski equipment; ice-skates and roller-skates"]
["Level 3",38410,"Snow-skis and other snow-ski equipment; ice-skates and roller-skates"]
["Level 2",3842,"Water-skis, surf-boards, sailboards and other water-sport equipment"]
["Level 3",38420,"Water-skis, surf-boards, sailboards and other water-sport equipment"]
["Level 2",3843,"Gymnasium or athletics articles and equipment"]
["Level 3",38430,"Gymnasium or athletics articles and equipment"]
["Level 2",3844,"Other articles and equipment for sports or outdoor games"]
["Level 3",38440,"Other articles and equipment for sports or outdoor games"]
["Level 2",3845,"Fishing rods and other line fishing tackle; fish landing nets, butterfly nets and similar nets; decoy \"birds\" and similar hunting or shooting requisites"]
["Level 3",38450,"Fishing rods and other line fishing tackle; fish landing nets, butterfly nets and similar nets; decoy \"birds\" and similar hunting or shooting requisites"]
["Level 1",385,"Games and toys"]
["Level 2",3851,"Dolls' carriages; wheeled toys designed to be ridden by children"]
["Level 3",38510,"Dolls' carriages; wheeled toys designed to be ridden by children"]
["Level 2",3852,"Dolls representing human beings; toys representing animals or non-human creatures"]
["Level 3",38520,"Dolls representing human beings; toys representing animals or non-human creatures"]
["Level 2",3853,"Parts and accessories of dolls representing human beings"]
["Level 3",38530,"Parts and accessories of dolls representing human beings"]
["Level 2",3854,"Toy electric trains and tracks, signals and other accessories therefor; reduced-size (\"scale\") model assembly kits and other construction sets and constructional toys"]
["Level 3",38540,"Toy electric trains and tracks, signals and other accessories therefor; reduced-size (\"scale\") model assembly kits and other construction sets and constructional toys"]
["Level 2",3855,"Puzzles"]
["Level 3",38550,"Puzzles"]
["Level 2",3856,"Other toys (including toy musical instruments)"]
["Level 3",38560,"Other toys (including toy musical instruments)"]
["Level 2",3857,"Playing cards"]
["Level 3",38570,"Playing cards"]
["Level 2",3858,"Video games of a kind used with a television receiver"]
["Level 3",38581,"Video game consoles"]
["Level 3",38582,"Software cartridges for video game consoles"]
["Level 2",3859,"Other articles for funfair, table or parlour games (including articles for billiards, pintables, special tables for casino games and automatic bowling alley equipment), except video games of a kind used with a television receiver"]
["Level 3",38590,"Other articles for funfair, table or parlour games (including articles for billiards, pintables, special tables for casino games and automatic bowling alley equipment), except video games of a kind used with a television receiver"]
["Level 1",386,"Roundabouts, swings, shooting galleries and other fairground amusements"]
["Level 2",3860,"Roundabouts, swings, shooting galleries and other fairground amusements"]
["Level 3",38600,"Roundabouts, swings, shooting galleries and other fairground amusements"]
["Level 1",387,"Prefabricated buildings"]
["Level 2",3870,"Prefabricated buildings"]
["Level 3",38701,"Prefabricated buildings, of wood"]
["Level 3",38702,"Prefabricated buildings, of metal"]
["Level 3",38703,"Prefabricated buildings, of plastics"]
["Level 3",38704,"Prefabricated buildings, of concrete"]
["Level 1",389,"Other manufactured articles n.e.c."]
["Level 2",3891,"Pens, pencils, stamps, typewriter or similar ribbons, ink-pads and similar articles"]
["Level 3",38911,"Pens, duplicating stylos, pencils, pen-holders, pencil-holders and similar holders, and parts thereof; crayons, pencil leads, pastels, drawing charcoals and chalks"]
["Level 3",38912,"Date, sealing or numbering stamps, and the like, designed for operating in the hand; hand-operated composing sticks and hand printing sets incorporating such sticks; typewriter or similar ribbons, prepared for giving impressions; ink-pads"]
["Level 2",3892,"Umbrellas, sun-umbrellas, walking-sticks, seat-sticks, whips, riding-crops, buttons, press-fasteners, snap-fasteners, press-studs, slide fasteners and parts thereof; button blanks"]
["Level 3",38921,"Umbrellas, sun-umbrellas, walking-sticks, seat-sticks, whips, riding-crops and the like"]
["Level 3",38922,"Parts, trimmings and accessories of umbrellas, sun-umbrellas, walking-sticks, seat-sticks, whips, riding-crops and the like"]
["Level 3",38923,"Press-fasteners, snap-fasteners, press-studs and parts therefor; buttons; slide fasteners"]
["Level 3",38924,"Button moulds and other parts of buttons; button blanks; parts of slide fasteners"]
["Level 2",3893,"Linoleum"]
["Level 3",38930,"Linoleum"]
["Level 2",3894,"Photographic plates, film, paper, paperboard and textiles, exposed"]
["Level 3",38941,"Photographic plates, film, paper, paperboard and textiles, exposed but not developed"]
["Level 3",38942,"Photographic plates and film, exposed and developed, other than cinematographic film"]
["Level 2",3895,"Motion picture film, exposed and developed, whether or not incorporating sound track or consisting only of sound track"]
["Level 3",38950,"Motion picture film, exposed and developed, whether or not incorporating sound track or consisting only of sound track"]
["Level 2",3896,"Paintings, drawings and pastels; original engravings, prints and lithographs; original sculptures and statuary, in any material; postage or revenue stamps, stamp-postmarks, first-day covers, postal stationery (stamped paper) and the like; collections and "]
["Level 3",38961,"Paintings, drawings and pastels; original engravings, prints and lithographs; original sculptures and statuary, in any material"]
["Level 3",38962,"Postage or revenue stamps, stamp-postmarks, first-day covers, postal stationery (stamped paper) and the like"]
["Level 3",38963,"Collections and collectors' pieces of zoological, botanical, mineralogical, anatomical, historical, ethnographic or numismatic interest; antiques"]
["Level 2",3897,"Human hair; wool or other animal hair or other textile materials; wigs, false beards, eyebrows and eyelashes, switches and the like; articles of human hair n.e.c.; horsehair"]
["Level 3",38971,"Human hair, unworked, whether or not washed or scoured; waste of human hair"]
["Level 3",38972,"Human hair, dressed, thinned, bleached or otherwise worked; wool or other animal hair or other textile materials, prepared for use in making wigs or the like; wigs, false beards, eyebrows and eyelashes, switches and the like, of human or animal hair or of"]
["Level 2",3899,"Other articles"]
["Level 3",38991,"Festive, carnival or other entertainment articles, including conjuring tricks and novelty jokes"]
["Level 3",38992,"Baby carriages and parts thereof"]
["Level 3",38993,"Brooms, brushes, hand-operated mechanical floor sweepers (not motorized), mops and feather dusters; prepared knots and tufts for broom or brush making; paint pads and rollers; squeegees (other than roller squeegees)"]
["Level 3",38994,"Cigarette lighters and other lighters; smoking pipes and cigar or cigarette holders, and parts thereof; combs, hair-slides and the like; hairpins, curling pins, curling grips, hair-curlers and the like (except electro-thermic apparatus), and parts thereof"]
["Level 3",38995,"Parts of cigarette lighters and other lighters (except flints and wicks); pyrophoric alloys; articles of combustible materials n.e.c."]
["Level 3",38996,"Instruments, apparatus and models, designed for demonstrational purposes, unsuitable for other uses"]
["Level 3",38997,"Imitation jewellery"]
["Level 3",38998,"Matches"]
["Level 3",38999,"Articles n.e.c. (including candles, tapers, skins of birds with their feathers, artificial flowers, entertainment articles, hand sieves, hand riddles, vacuum flasks, tailors dummies, animated displays used for shop window dressing, and parts n.e.c.)"]
["Division",39,"Wastes or scraps"]
["Level 1",391,"Wastes from food and tobacco industry"]
["Level 2",3911,"Raw offal, inedible (including pigs' bristles, horse hair, animal guts, bird skins, feathers, bones and ivory)"]
["Level 3",39110,"Raw offal, inedible (including pigs' bristles, horse hair, animal guts, bird skins, feathers, bones and ivory)"]
["Level 2",3912,"Bran and other residues from the working of cereals or legumes; vegetable materials and vegetable waste, vegetable residues and by-products, whether or not in the form of pellets, of a kind used in animal feeding n.e.c."]
["Level 3",39120,"Bran and other residues from the working of cereals or legumes; vegetable materials and vegetable waste, vegetable residues and by-products, whether or not in the form of pellets, of a kind used in animal feeding n.e.c."]
["Level 2",3913,"Residues of starch manufacture and similar residues"]
["Level 3",39130,"Residues of starch manufacture and similar residues"]
["Level 2",3914,"Beet-pulp, bagasse and other waste of sugar manufacture"]
["Level 3",39140,"Beet-pulp, bagasse and other waste of sugar manufacture"]
["Level 2",3915,"Cocoa shells, husks, skins and other cocoa waste; coffee husks and skins"]
["Level 3",39150,"Cocoa shells, husks, skins and other cocoa waste; coffee husks and skins"]
["Level 2",3916,"Brewing or distilling dregs and waste"]
["Level 3",39160,"Brewing or distilling dregs and waste"]
["Level 2",3917,"Wine lees; argol"]
["Level 3",39170,"Wine lees; argol"]
["Level 2",3918,"Tobacco refuse"]
["Level 3",39180,"Tobacco refuse"]
["Level 1",392,"Non-metal wastes or scraps"]
["Level 2",3921,"Miscellaneous textile wastes"]
["Level 3",39211,"Silk waste"]
["Level 3",39212,"Waste of wool or of fine or coarse animal hair"]
["Level 3",39213,"Garnetted stock of wool or of fine or coarse animal hair"]
["Level 3",39214,"Cotton waste, except garnetted stock"]
["Level 3",39215,"Other cotton waste; garnetted stock"]
["Level 3",39216,"Waste of man-made fibres"]
["Level 3",39217,"Worn clothing and other worn textile articles"]
["Level 3",39218,"Rags, scrap twine, cordage, rope and cables and worn out articles of twine, cordage, rope or cables, of textile materials"]
["Level 2",3922,"Waste of leather, leather dust, powder and flour"]
["Level 3",39220,"Waste of leather, leather dust, powder and flour"]
["Level 2",3923,"Residual lyes from the manufacture of wood pulp, including lignin sulphonates, but excluding tall oil"]
["Level 3",39230,"Residual lyes from the manufacture of wood pulp, including lignin sulphonates, but excluding tall oil"]
["Level 2",3924,"Waste and scrap of paper or paperboard"]
["Level 3",39240,"Waste and scrap of paper or paperboard"]
["Level 2",3925,"Waste, parings and scrap of rubber (except hard rubber) and powders and granules obtained therefrom"]
["Level 3",39250,"Waste, parings and scrap of rubber (except hard rubber) and powders and granules obtained therefrom"]
["Level 2",3926,"Used pneumatic tyres of rubber"]
["Level 3",39260,"Used pneumatic tyres of rubber"]
["Level 2",3927,"Waste, parings and scrap of plastics"]
["Level 3",39270,"Waste, parings and scrap of plastics"]
["Level 2",3928,"Sawdust and wood waste and scrap"]
["Level 3",39280,"Sawdust and wood waste and scrap"]
["Level 2",3929,"Other non-metal waste or scrap"]
["Level 3",39290,"Other non-metal waste or scrap"]
["Level 1",393,"Metal wastes or scraps"]
["Level 2",3931,"Slag, dross, scalings and other waste from the manufacture of iron or steel"]
["Level 3",39310,"Slag, dross, scalings and other waste from the manufacture of iron or steel"]
["Level 2",3932,"Ash and residue (except from the manufacture of iron or steel), containing metals or metallic compounds, except precious metals"]
["Level 3",39320,"Ash and residue (except from the manufacture of iron or steel), containing metals or metallic compounds, except precious metals"]
["Level 2",3933,"Waste and scrap of precious metal"]
["Level 3",39331,"Waste and scrap of gold or of metal clad with gold"]
["Level 3",39332,"Waste and scrap of precious metal (except gold) or of metal clad with precious metal (except gold)"]
["Level 3",39333,"Ash containing precious metal or precious metal compounds"]
["Level 2",3934,"Ferrous waste and scrap"]
["Level 3",39340,"Ferrous waste and scrap"]
["Level 2",3935,"Remelting scrap ingots of iron or steel"]
["Level 3",39350,"Remelting scrap ingots of iron or steel"]
["Level 2",3936,"Waste and scrap of other metals"]
["Level 3",39361,"Waste and scrap of copper"]
["Level 3",39362,"Waste and scrap of nickel"]
["Level 3",39363,"Waste and scrap of aluminium"]
["Level 3",39364,"Waste and scrap of lead"]
["Level 3",39365,"Waste and scrap of zinc"]
["Level 3",39366,"Waste and scrap of tin"]
["Level 3",39367,"Waste and scrap of tungsten, molybdenum, tantalum, magnesium, cobalt, cadmium, titanium, zirconium, beryllium and thallium"]
["Level 3",39368,"Waste and scrap of antimony and chromium"]
["Level 2",3937,"Vessels and other floating structures for breaking up"]
["Level 3",39370,"Vessels and other floating structures for breaking up"]
["Level 2",3938,"Waste and scrap of primary cells, primary batteries and electric accumulators; spent primary cells, primary batteries and electric accumulators"]
["Level 3",39380,"Waste and scrap of primary cells, primary batteries and electric accumulators; spent primary cells, primary batteries and electric accumulators"]
["Level 1",399,"Other wastes and scraps"]
["Level 2",3991,"Municipal waste"]
["Level 3",39910,"Municipal waste"]
["Level 2",3992,"Sewage sludge"]
["Level 3",39920,"Sewage sludge"]
["Level 2",3993,"Clinical waste, including pharmaceutical waste"]
["Level 3",39931,"Pharmaceutical waste"]
["Level 3",39939,"Other clinical waste"]
["Level 2",3994,"Waste organic solvents"]
["Level 3",39940,"Waste organic solvents"]
["Level 2",3995,"Wastes from chemical or allied industries"]
["Level 3",39950,"Wastes from chemical or allied industries"]
["Level 2",3999,"Other wastes n.e.c."]
["Level 3",39990,"Other wastes n.e.c."]
["Section",4,"Metal products, machinery and equipment"]
["Division",41,"Basic metals"]
["Level 1",411,"Basic iron and steel"]
["Level 2",4111,"Primary materials of the iron and steel industry"]
["Level 3",41111,"Pig iron and spiegeleisen in pigs, blocks or other primary forms"]
["Level 3",41112,"Ferro-manganese"]
["Level 3",41113,"Ferro-chromium"]
["Level 3",41114,"Ferro-nickel"]
["Level 3",41115,"Other ferro-alloys"]
["Level 3",41116,"Ferrous products obtained by direct reduction of iron ore and other spongy ferrous products, in lumps, pellets or similar forms; iron having a minimum purity by weight of 99.94%, in lumps, pellets or similar forms"]
["Level 3",41117,"Granules and powders, of pig iron and spiegeleisen, or steel"]
["Level 2",4112,"Crude steel"]
["Level 3",41121,"Non-alloy steel in ingots or other primary forms, and semi-finished products of non-alloy steel"]
["Level 3",41122,"Alloy steel in ingots or other primary forms and semi-finished products of alloy steel"]
["Level 1",412,"Products of iron or steel"]
["Level 2",4121,"Flat-rolled products of steel, not further worked than hot-rolled"]
["Level 3",41211,"Flat-rolled products of non-alloy steel, not further worked than hot-rolled, of a width of 600 mm or more"]
["Level 3",41212,"Flat-rolled products of non-alloy steel, not further worked than hot-rolled, of a width of less than 600 mm"]
["Level 3",41213,"Flat-rolled products of alloy steel (except of silicon-electrical steel), not further worked than hot-rolled, of a width of 600 mm or more"]
["Level 3",41214,"Flat-rolled products of alloy steel (except of silicon-electrical or high-speed steel), not further worked than hot-rolled, of a width of less than 600 mm"]
["Level 2",4122,"Flat-rolled products of steel, not further worked than cold-rolled"]
["Level 3",41221,"Flat-rolled products of non-alloy steel, not further worked than cold-rolled, of a width of 600 mm or more"]
["Level 3",41222,"Flat-rolled products of non-alloy steel, not further worked than cold-rolled, of a width of less than 600 mm"]
["Level 3",41223,"Flat-rolled products of alloy steel (except of silicon-electrical steel), not further worked than cold-rolled, of a width of 600 mm or more"]
["Level 3",41224,"Flat-rolled products of alloy steel (except of silicon-electrical or high-speed steel), not further worked than cold-rolled, of a width of less than 600 mm"]
["Level 2",4123,"Flat-rolled products of steel, further worked than hot-rolled or cold-rolled; flat-rolled products of silicon-electrical and high-speed steel, whether or not further worked"]
["Level 3",41231,"Flat-rolled products of non-alloy steel, clad, plated, coated or otherwise further worked"]
["Level 3",41232,"Flat-rolled products of stainless steel, further worked"]
["Level 3",41233,"Flat-rolled products of silicon-electrical steel"]
["Level 3",41234,"Flat-rolled products of high-speed steel of a width of less than 600 mm, not further worked than hot- or cold-rolled"]
["Level 3",41239,"Flat-rolled products of alloy steel, n.e.c., further worked"]
["Level 2",4124,"Bars and rods, hot-rolled, of iron or steel"]
["Level 3",41241,"Bars and rods, hot-rolled, in irregularly wound coils, of iron or non-alloy steel"]
["Level 3",41242,"Other bars and rods of iron or non-alloy steel, not further worked than forged, hot-rolled, hot-drawn or extruded, but including those twisted after rolling"]
["Level 3",41243,"Bars and rods, hot-rolled, in irregularly wound coils, of alloy steel"]
["Level 3",41244,"Bars and rods of alloy steel, not further worked than forged, hot-rolled, hot-drawn or extruded (except bars or rods of high-speed steel or silico-manganese steel)"]
["Level 2",4125,"Angles, shapes and sections, not further worked than hot-rolled, hot-drawn or extruded, of iron or non-alloy steel; sheet piling of steel; welded angles, shapes and sections, of steel; railway or tramway track construction material of steel"]
["Level 3",41251,"Angles, shapes and sections, not further worked than hot-rolled, hot-drawn or extruded, of iron or non-alloy steel"]
["Level 3",41252,"Sheet piling of iron or steel and welded angles, shapes and sections of iron or steel"]
["Level 3",41253,"Railway or tramway track construction material of iron or steel"]
["Level 2",4126,"Bars, rods, angles, shapes and sections, cold-processed or further worked, of iron or steel; angles, shapes and sections, hot-rolled, hot-drawn or extruded, of alloy steel; steel wire"]
["Level 3",41261,"Bars and rods, cold-formed, cold-finished or further worked, of iron or non-alloy steel"]
["Level 3",41262,"Angles, shapes and sections, cold-formed, cold-finished or further worked, of iron or non-alloy steel"]
["Level 3",41263,"Wire of iron or non-alloy steel"]
["Level 3",41264,"Bars and rods, cold-formed or cold-finished, of alloy steel (except bars or rods of high-speed steel or silico-manganese steel)"]
["Level 3",41265,"Bars and rods of alloy steel, further worked than hot- or cold-processed"]
["Level 3",41266,"Angles, shapes and sections, of alloy steel"]
["Level 3",41267,"Wire of alloy steel"]
["Level 2",4127,"Bars and rods of high-speed steel and silico-manganese steel; hollow drill bars and rods of steel"]
["Level 3",41271,"Bars and rods of high-speed steel"]
["Level 3",41272,"Bars and rods of silico-manganese steel"]
["Level 3",41273,"Hollow drill bars and rods, of steel"]
["Level 2",4128,"Tubes, pipes and hollow profiles, of steel"]
["Level 3",41281,"Line pipe of a kind used for oil or gas pipelines, seamless, of steel"]
["Level 3",41282,"Casing, tubing and drill pipe, of a kind used in the drilling for oil or gas, seamless, of steel"]
["Level 3",41283,"Other tubes and pipes, of circular cross-section, seamless"]
["Level 3",41284,"Tubes and pipes, of non-circular cross-section and hollow profiles, seamless, of steel"]
["Level 3",41285,"Line pipe of a kind used for oil or gas pipelines, welded, of steel"]
["Level 3",41286,"Casing and tubing, of a kind used in the drilling for oil or gas, welded, of steel"]
["Level 3",41287,"Other tubes and pipes, of circular cross-section, welded, of steel"]
["Level 3",41288,"Tubes and pipes, of non-circular cross-section, welded, of steel"]
["Level 3",41289,"Other tubes and pipes, such as open seam, riveted or similarly closed"]
["Level 2",4129,"Tubes, pipes and hollow profiles of cast-iron and cast-steel and related fittings; tube or pipe fittings of steel other than cast"]
["Level 3",41291,"Tubes, pipes and hollow profiles of cast-iron; tubes and pipes of centrifugally cast-steel"]
["Level 3",41292,"Tube or pipe fittings, of cast-iron or of cast-steel"]
["Level 3",41293,"Tube or pipe fittings, of steel other than cast-steel"]
["Level 1",413,"Basic precious metals and metals clad with precious metals"]
["Level 2",4131,"Silver (including silver plated with gold or platinum), unwrought or in semi-manufactured forms, or in powder form"]
["Level 3",41310,"Silver (including silver plated with gold or platinum), unwrought or in semi-manufactured forms, or in powder form"]
["Level 2",4132,"Gold (including gold plated with platinum), unwrought or in semi-manufactured forms, or in powder form"]
["Level 3",41320,"Gold (including gold plated with platinum), unwrought or in semi-manufactured forms, or in powder form"]
["Level 2",4133,"Platinum, unwrought or in semi-manufactured forms, or in powder form"]
["Level 3",41330,"Platinum, unwrought or in semi-manufactured forms, or in powder form"]
["Level 2",4134,"Base metals or silver, clad with gold, not further worked than semi-manufactured"]
["Level 3",41340,"Base metals or silver, clad with gold, not further worked than semi-manufactured"]
["Level 2",4135,"Base metals clad with silver, and base metals, silver or gold clad with platinum, not further worked than semi-manufactured"]
["Level 3",41350,"Base metals clad with silver, and base metals, silver or gold clad with platinum, not further worked than semi-manufactured"]
["Level 1",414,"Copper, nickel, aluminium, alumina, lead, zinc and tin, unwrought"]
["Level 2",4141,"Copper, unwrought; copper mattes; cement copper"]
["Level 3",41411,"Copper mattes; cement copper"]
["Level 3",41412,"Unrefined copper; copper anodes for electrolytic refining"]
["Level 3",41413,"Refined copper and copper alloys, unwrought; master alloys of copper"]
["Level 2",4142,"Nickel, unwrought; intermediate products of nickel metallurgy"]
["Level 3",41421,"Nickel mattes, nickel oxide sinters and other intermediate products of nickel metallurgy"]
["Level 3",41422,"Unwrought nickel"]
["Level 2",4143,"Aluminium, unwrought; alumina"]
["Level 3",41431,"Unwrought aluminium"]
["Level 3",41432,"Alumina (aluminium oxide), except artificial corundum"]
["Level 2",4144,"Lead, zinc and tin, unwrought"]
["Level 3",41441,"Lead, unwrought"]
["Level 3",41442,"Zinc, unwrought"]
["Level 3",41443,"Tin, unwrought"]
["Level 1",415,"Semi-finished products of copper, nickel, aluminium, lead, zinc and tin or their alloys"]
["Level 2",4151,"Semi-finished products of copper or copper alloys"]
["Level 3",41511,"Powders and flakes of copper"]
["Level 3",41512,"Bars, rods and profiles, of copper"]
["Level 3",41513,"Wire of copper"]
["Level 3",41514,"Plates, sheets and strip, of copper, of a thickness exceeding 0.15 mm"]
["Level 3",41515,"Foil, of copper, of a thickness not exceeding 0.15 mm"]
["Level 3",41516,"Tubes, pipes and tube or pipe fittings, of copper"]
["Level 2",4152,"Semi-finished products of nickel or nickel alloys"]
["Level 3",41521,"Powders and flakes of nickel"]
["Level 3",41522,"Bars, rods, profiles and wire, of nickel"]
["Level 3",41523,"Plates, sheet, strip and foil, of nickel"]
["Level 3",41524,"Tubes, pipes and tube or pipe fittings, of nickel"]
["Level 2",4153,"Semi-finished products of aluminium or aluminium alloys"]
["Level 3",41531,"Powders and flakes of aluminium"]
["Level 3",41532,"Bars, rods and profiles, of aluminium"]
["Level 3",41533,"Wire of aluminium"]
["Level 3",41534,"Plates, sheets and strip, of aluminium, of a thickness exceeding 0.2 mm"]
["Level 3",41535,"Foil, of aluminium, of a thickness not exceeding 0.2 mm"]
["Level 3",41536,"Tubes, pipes and tube or pipe fittings, of aluminium"]
["Level 2",4154,"Semi-finished products of lead, zinc and tin or their alloys"]
["Level 3",41542,"Lead plates, sheets, strip and foil; lead powders and flakes"]
["Level 3",41544,"Zinc dust, powders and flakes"]
["Level 3",41545,"Zinc bars, rods, profiles and wire; zinc plates, sheets, strip and foil"]
["Level 3",41547,"Tin bars, rods, profiles and wire"]
["Level 1",416,"Other non-ferrous metals and articles thereof (including waste and scrap of some metals); cermets and articles thereof"]
["Level 2",4160,"Other non-ferrous metals and articles thereof (including waste and scrap of some metals); cermets and articles thereof"]
["Level 3",41601,"Tungsten, molybdenum, tantalum, magnesium, cobalt, cadmium, titanium, zirconium, beryllium, gallium, hafnium, indium, niobium, rhenium and thallium, germanium and vanadium, unwrought, and powders thereof, except powders of magnesium; waste and scrap of ga"]
["Level 3",41602,"Tungsten, molybdenum, tantalum, magnesium, cobalt, cadmium, titanium, zirconium, beryllium, gallium, hafnium, indium, niobium, rhenium and thallium, germanium and vanadium, wrought, and articles thereof; powders of magnesium"]
["Level 3",41603,"Bismuth, antimony, manganese, chromium and articles thereof; including waste and scrap of bismuth or manganese"]
["Level 3",41604,"Cermets and articles thereof"]
["Division",42,"Fabricated metal products, except machinery and equipment"]
["Level 1",421,"Structural metal products and parts thereof"]
["Level 2",4211,"Bridges, bridge sections, towers and lattice masts, of iron or steel"]
["Level 3",42110,"Bridges, bridge sections, towers and lattice masts, of iron or steel"]
["Level 2",4212,"Doors, windows and their frames and thresholds for doors, of iron, steel or aluminium"]
["Level 3",42120,"Doors, windows and their frames and thresholds for doors, of iron, steel or aluminium"]
["Level 2",4219,"Other structures (except prefabricated buildings) and parts of structures, of iron, steel or aluminium; plates, rods, angles, shapes, sections, profiles, tubes and the like, prepared for use in structures, of iron, steel or aluminium; props and similar eq"]
["Level 3",42190,"Other structures (except prefabricated buildings) and parts of structures, of iron, steel or aluminium; plates, rods, angles, shapes, sections, profiles, tubes and the like, prepared for use in structures, of iron, steel or aluminium; props and similar eq"]
["Level 1",422,"Tanks, reservoirs and containers of iron, steel or aluminium"]
["Level 2",4221,"Reservoirs, tanks, vats and similar containers (other than for compressed or liquefied gas), of iron, steel or aluminium, of a capacity exceeding 300 litres, not fitted with mechanical or thermal equipment"]
["Level 3",42210,"Reservoirs, tanks, vats and similar containers (other than for compressed or liquefied gas), of iron, steel or aluminium, of a capacity exceeding 300 litres, not fitted with mechanical or thermal equipment"]
["Level 2",4222,"Containers for compressed or liquefied gas, of iron, steel or aluminium"]
["Level 3",42220,"Containers for compressed or liquefied gas, of iron, steel or aluminium"]
["Level 1",423,"Steam generators, (except central heating boilers) and parts thereof"]
["Level 2",4231,"Nuclear reactors"]
["Level 3",42310,"Nuclear reactors"]
["Level 2",4232,"Steam or other vapour generating boilers (other than central heating hot water boilers capable also of producing low pressure steam); super-heated water boilers"]
["Level 3",42320,"Steam or other vapour generating boilers (other than central heating hot water boilers capable also of producing low pressure steam); super-heated water boilers"]
["Level 2",4233,"Auxiliary plant for use with boilers; condensers for steam or other vapour power units"]
["Level 3",42330,"Auxiliary plant for use with boilers; condensers for steam or other vapour power units"]
["Level 2",4234,"Parts for the goods of classes 4231 to 4233"]
["Level 3",42341,"Parts of the goods of subclass 42310"]
["Level 3",42342,"Parts of the goods of subclasses 42320 and 42330"]
["Level 1",429,"Other fabricated metal products"]
["Level 2",4291,"Domestic metal products"]
["Level 3",42911,"Sinks, wash-basins, baths and other sanitary ware and parts thereof, of iron, steel, copper or aluminium"]
["Level 3",42912,"Table, kitchen or other household articles and parts thereof, of iron, steel, copper or aluminium; cooking or heating apparatus of a kind used for domestic purposes, non-electric, of copper; pot scourers and scouring or polishing pads, gloves and the like"]
["Level 3",42913,"Knives (except for machines) and scissors, and blades therefor"]
["Level 3",42914,"Razors and razor blades (including razor blade blanks in strips)"]
["Level 3",42915,"Other articles of cutlery; manicure or pedicure sets and instruments"]
["Level 3",42916,"Spoons, forks, ladles, skimmers, cake-servers, fish-knives, butter-knives, sugar tongs and similar kitchen or table ware"]
["Level 2",4292,"Hand tools (including hand tools of a kind used in agriculture, horticulture or forestry, hand saws, files, pliers and metal cutting shears, hand-operated spanners, blow-lamps and clamps); interchangeable tools for hand tools or for machine tools, includi"]
["Level 3",42921,"Hand tools (including hand tools of a kind used in agriculture, horticulture or forestry, hand saws, files, pliers and metal cutting shears, hand-operated spanners, blow-lamps and clamps)"]
["Level 3",42922,"Interchangeable tools for hand tools or for machine tools, including dies for drawing or extruding metal, and rock drilling or earth boring tools; knives for machines; plates, sticks, tips and the like for tools, unmounted, of sintered metal carbides or c"]
["Level 2",4293,"Tanks, casks, drums, cans, boxes and similar containers (other than for compressed or liquefied gas) of iron, steel or aluminium, of a capacity not exceeding 300 litres, not fitted with mechanical or thermal equipment; stoppers, caps and lids (including c"]
["Level 3",42931,"Tanks, casks, drums, cans, boxes and similar containers (other than for compressed or liquefied gas) of iron, steel or aluminium, of a capacity not exceeding 300 litres, not fitted with mechanical or thermal equipment"]
["Level 3",42932,"Stoppers, caps and lids (including crown corks), capsules for bottles, threaded bungs, bung covers, seals and other packing accessories, of base metal"]
["Level 2",4294,"Metal fasteners, springs and miscellaneous articles made from metal wire"]
["Level 3",42941,"Stranded wire, ropes, cables, plaited bands, slings and the like, of iron or steel, not electrically insulated"]
["Level 3",42942,"Stranded wire, cables, plaited bands and the like, of copper or aluminium, not electrically insulated"]
["Level 3",42943,"Cloth, grill, netting and fencing, of iron or steel wire; expanded metal of iron or steel"]
["Level 3",42944,"Nails, tacks, staples (except staples in strips), screws, bolts, nuts, screw hooks, rivets, cotters, cotter-pins, washers and similar articles, of iron, steel, copper or aluminium"]
["Level 3",42945,"Springs and leaves for springs, of iron or steel"]
["Level 3",42946,"Barbed wire of iron or steel; twisted hoop or single flat wire, and loosely twisted double wire, of a kind used for fencing, of iron or steel"]
["Level 2",4295,"Wire, rods, tubes, plates, electrodes and similar products, of base metal or of metal carbides, coated or cored with flux material, of a kind used for soldering, brazing, welding or deposition of metal or of metal carbides; wire and rods, of agglomerated "]
["Level 3",42950,"Wire, rods, tubes, plates, electrodes and similar products, of base metal or of metal carbides, coated or cored with flux material, of a kind used for soldering, brazing, welding or deposition of metal or of metal carbides; wire and rods, of agglomerated "]
["Level 2",4299,"Other metal goods"]
["Level 3",42991,"Chain (except articulated link chain) and parts thereof, of iron or steel; chain and parts thereof, of copper"]
["Level 3",42992,"Padlocks and locks, of base metal; clasps and frames with clasps, incorporating locks, of base metal; keys and parts thereof, of base metal; base metal fittings for furniture, doors, saddlery and the like"]
["Level 3",42993,"Armoured or reinforced safes, strong-boxes and doors and safe deposit lockers for strong-rooms, cash or deed boxes and the like, of base metal"]
["Level 3",42994,"Paper trays, paper rests, pen trays, office-stamp stands and similar office or desk equipment, of base metal, other than office furniture"]
["Level 3",42995,"Fittings for loose-leaf binders or files; letter clips, letter corners, paper clips, indexing tags and similar office articles, of base metal; staples in strips, of base metal"]
["Level 3",42996,"Statuettes and other ornaments of base metal; photograph, picture or similar frames of base metal; mirrors of base metal"]
["Level 3",42997,"Sewing needles, knitting needles, bodkins, crochet hooks, embroidery stilettos and similar articles, for use in the hand, of iron or steel; safety pins and other pins of iron or steel n.e.c.; clasps, frames with clasps, buckles, buckle-clasps, hooks, eyes"]
["Level 3",42998,"Ships' propellers and blades therefor"]
["Level 3",42999,"Metal goods n.e.c."]
["Division",43,"General-purpose machinery"]
["Level 1",431,"Engines and turbines and parts thereof"]
["Level 2",4311,"Internal combustion piston engines, other than for motor vehicles and aircraft"]
["Level 3",43110,"Internal combustion piston engines, other than for motor vehicles and aircraft"]
["Level 2",4312,"Internal combustion engines of a kind used for motor vehicles"]
["Level 3",43121,"Spark-ignition reciprocating internal combustion piston engines, of a cylinder capacity not exceeding 1000 cc"]
["Level 3",43122,"Spark-ignition reciprocating internal combustion piston engines, of a cylinder capacity exceeding 1000 cc"]
["Level 3",43123,"Compression-ignition internal combustion piston engines, of a kind used for the propulsion of vehicles other than railway or tramway rolling stock"]
["Level 2",4313,"Motors and engines for aircraft and spacecraft; aircraft launching gear, deck-arrestor or similar gear, and ground flying trainers"]
["Level 3",43131,"Spark-ignition reciprocating or rotary internal combustion piston engines for aircraft"]
["Level 3",43132,"Turbo-jets and turbo-propellers"]
["Level 3",43133,"Reaction engines other than turbo-jets"]
["Level 3",43134,"Aircraft launching gear; deck-arrestor or similar gear; ground flying trainers"]
["Level 2",4314,"Steam turbines and other vapour turbines; hydraulic turbines and water wheels; gas turbines other than turbo-jets and turbo-propellers"]
["Level 3",43141,"Steam turbines and other vapour turbines"]
["Level 3",43142,"Hydraulic turbines and water wheels"]
["Level 3",43143,"Gas turbines other than turbo-jets and turbo-propellers"]
["Level 2",4315,"Parts for the goods of classes 4311 to 4314"]
["Level 3",43151,"Parts of spark-ignition reciprocating, compression ignition or rotary internal combustion piston engines"]
["Level 3",43152,"Parts of spark-ignition reciprocating or rotary internal combustion piston engines for aircraft"]
["Level 3",43153,"Parts for the goods of subclass 43141"]
["Level 3",43154,"Parts for the goods of subclass 43142, including regulators"]
["Level 3",43155,"Parts of turbo-jets and turbo-propellers"]
["Level 3",43156,"Parts for the goods of subclass 43143"]
["Level 1",432,"Pumps, compressors, hydraulic and pneumatic power engines, and valves, and parts thereof"]
["Level 2",4321,"Hydraulic and pneumatic power engines and motors"]
["Level 3",43211,"Linear acting (cylinders) hydraulic and pneumatic power engines and motors"]
["Level 3",43219,"Other hydraulic and pneumatic power engines and motors"]
["Level 2",4322,"Pumps for liquids; liquid elevators"]
["Level 3",43220,"Pumps for liquids; liquid elevators"]
["Level 2",4323,"Air or vacuum pumps; air or other gas compressors"]
["Level 3",43230,"Air or vacuum pumps; air or other gas compressors"]
["Level 2",4324,"Taps, cocks, valves and similar appliances for pipes, boiler shells, tanks, vats or the like"]
["Level 3",43240,"Taps, cocks, valves and similar appliances for pipes, boiler shells, tanks, vats or the like"]
["Level 2",4325,"Parts for the goods of classes 4321 to 4324"]
["Level 3",43251,"Parts for the goods of subclasses 43211 and 43219; parts of reaction engines other than turbo-jets"]
["Level 3",43252,"Parts for the goods of subclass 43220"]
["Level 3",43253,"Parts for the goods of subclass 43230; parts of fans and ventilating or recycling hoods incorporating a fan"]
["Level 3",43254,"Parts for the goods of subclass 43240"]
["Level 1",433,"Bearings, gears, gearing and driving elements, and parts thereof"]
["Level 2",4331,"Ball or roller bearings"]
["Level 3",43310,"Ball or roller bearings"]
["Level 2",4332,"Transmission shafts and cranks; bearing housings and plain shaft bearings; gears and gearing; ball or roller screws, gear boxes and other speed changers; flywheels and pulleys; clutches and shaft couplings; articulated link chain"]
["Level 3",43320,"Transmission shafts and cranks; bearing housings and plain shaft bearings; gears and gearing; ball or roller screws, gear boxes and other speed changers; flywheels and pulleys; clutches and shaft couplings; articulated link chain"]
["Level 2",4333,"Parts for the goods of classes 4331 and 4332"]
["Level 3",43331,"Parts for the goods of subclass 43310"]
["Level 3",43332,"Parts for the goods of subclass 43320"]
["Level 1",434,"Ovens and furnace burners and parts thereof"]
["Level 2",4341,"Furnace burners for liquid fuel, for pulverized solid fuel or for gas; mechanical stokers, mechanical grates, mechanical ash dischargers and similar appliances"]
["Level 3",43410,"Furnace burners for liquid fuel, for pulverized solid fuel or for gas; mechanical stokers, mechanical grates, mechanical ash dischargers and similar appliances"]
["Level 2",4342,"Industrial or laboratory furnaces and ovens, except non-electric bakery ovens; other industrial or laboratory induction or dielectric heating equipment"]
["Level 3",43420,"Industrial or laboratory furnaces and ovens, except non-electric bakery ovens; other industrial or laboratory induction or dielectric heating equipment"]
["Level 2",4343,"Parts for the goods of subclasses 43410 and 43420; parts of non-electric bakery ovens"]
["Level 3",43430,"Parts for the goods of subclasses 43410 and 43420; parts of non-electric bakery ovens"]
["Level 1",435,"Lifting and handling equipment and parts thereof"]
["Level 2",4351,"Pulley tackle and hoists other than skip hoists; winches and capstans; jacks"]
["Level 3",43510,"Pulley tackle and hoists other than skip hoists; winches and capstans; jacks"]
["Level 2",4352,"Derricks; cranes; mobile lifting frames, straddle carriers and works trucks fitted with a crane"]
["Level 3",43520,"Derricks; cranes; mobile lifting frames, straddle carriers and works trucks fitted with a crane"]
["Level 2",4353,"Fork-lift trucks; other works trucks whether or not fitted with lifting or handling equipment; tractors of the type used on railway station platforms"]
["Level 3",43530,"Fork-lift trucks; other works trucks whether or not fitted with lifting or handling equipment; tractors of the type used on railway station platforms"]
["Level 2",4354,"Lifts, skip hoists, escalators and moving walkways"]
["Level 3",43540,"Lifts, skip hoists, escalators and moving walkways"]
["Level 2",4355,"Pneumatic and other continuous action elevators and conveyors, for goods or materials"]
["Level 3",43550,"Pneumatic and other continuous action elevators and conveyors, for goods or materials"]
["Level 2",4356,"Other lifting, handling, loading or unloading machinery"]
["Level 3",43560,"Other lifting, handling, loading or unloading machinery"]
["Level 2",4357,"Parts for the goods of subclasses 43510 to 43560"]
["Level 3",43570,"Parts for the goods of subclasses 43510 to 43560"]
["Level 2",4358,"Buckets, shovels, grabs and grips for cranes, excavators and the like"]
["Level 3",43580,"Buckets, shovels, grabs and grips for cranes, excavators and the like"]
["Level 1",439,"Other general-purpose machinery and parts thereof"]
["Level 2",4391,"Gas generators; distilling plant; air conditioning and refrigerating equipment; filtering machinery"]
["Level 3",43911,"Producer gas or water gas generators; acetylene gas generators and similar water process gas generators; distilling or rectifying plant; heat exchange units; machinery for liquefying air or gas"]
["Level 3",43912,"Air conditioning machines"]
["Level 3",43913,"Refrigerating and freezing equipment and heat pumps, except household type equipment"]
["Level 3",43914,"Filtering or purifying machinery and apparatus, for liquids or gases, except oil filters, petrol filters and air intake filters for internal combustion engines"]
["Level 3",43915,"Oil filters, petrol filters and air intake filters for internal combustion engines"]
["Level 2",4392,"Machinery for cleaning bottles, packing, and weighing; spraying machinery"]
["Level 3",43921,"Machinery for cleaning or drying bottles or other containers; machinery for filling, closing, sealing, capsuling or labelling bottles, cans, boxes, bags or other containers; machinery for aerating beverages; other packing or wrapping machinery"]
["Level 3",43922,"Weighing machinery (excluding balances of a sensitivity of 5 cg or better)"]
["Level 3",43923,"Fire extinguishers; spray guns and similar appliances; steam or sand blasting machines and similar jet projecting machines; mechanical appliances for projecting, dispersing or spraying liquids or powders, except agricultural or horticultural appliances"]
["Level 3",43924,"Gaskets of metal sheeting"]
["Level 2",4393,"General-purpose machinery n.e.c."]
["Level 3",43931,"Fans, except domestic type; centrifuges, except cream separators and clothes dryers"]
["Level 3",43932,"Machinery n.e.c. for the treatment of materials by a process involving a change of temperature"]
["Level 3",43933,"Calandering or other rolling machines, except for metals or glass"]
["Level 3",43934,"Automatic goods vending machines"]
["Level 3",43935,"Dishwashing machines, except household type"]
["Level 2",4394,"Parts for the goods of classes 4391 to 4393"]
["Level 3",43941,"Parts of producer gas or water gas generators; parts of acetylene gas generators and similar water process gas generators; parts for the goods of subclass 43912; parts of refrigerating and freezing equipment and heat pumps; parts of machinery for the trea"]
["Level 3",43942,"Parts of centrifuges, including centrifugal dryers; parts of filtering or purifying machinery and apparatus for liquids or gases"]
["Level 3",43943,"Parts for the goods of subclasses 43922, 43923 and 43933; weighing machine weights; parts of agricultural or horticultural mechanical appliances for projecting, dispersing or spraying liquids or powders"]
["Level 3",43944,"Parts n.e.c. of dish washing machines; parts of machinery for cleaning or drying bottles or other containers; parts of machinery for filling, closing, sealing, capsuling or labelling bottles, cans, boxes, bags or other containers and of machinery for aera"]
["Level 3",43949,"Machinery parts, non-electrical n.e.c."]
["Division",44,"Special-purpose machinery"]
["Level 1",441,"Agricultural or forestry machinery and parts thereof"]
["Level 2",4411,"Soil machinery (Agricultural, horticultural or forestry machinery for soil preparation or cultivation; lawn or sports-ground rollers)"]
["Level 3",44111,"Ploughs"]
["Level 3",44112,"Harrows, scarifies, cultivators, weeders and hoes"]
["Level 3",44113,"Seeders, planters and transplanters"]
["Level 3",44114,"Manure spreaders and fertilizer distributors"]
["Level 3",44115,"Parts of soil machinery"]
["Level 3",44119,"Other soil machinery, n.e.c."]
["Level 2",4412,"Harvester and threshers; machines for cleaning, sorting or grading agricultural products"]
["Level 3",44121,"Mowers for lawns, parks or sportsgrounds"]
["Level 3",44122,"Combine harvester / threshers"]
["Level 3",44123,"Other mowers, including cutter bars for tractor mounting"]
["Level 3",44124,"Other haymaking machinery"]
["Level 3",44125,"Straw or fodder balers, including pickup balers"]
["Level 3",44126,"Root or tuber harvesting machines"]
["Level 3",44127,"Machines for cleaning, sorting or grading eggs, fruit or other agricultural produce"]
["Level 3",44128,"Machines for cleaning, sorting or grading seed, grain or dried leguminous vegetables"]
["Level 3",44129,"Other harvesting and threshing machinery, n.e.c.; parts for harvesting, threshing and grading machinery"]
["Level 2",4413,"Milking and dairy machines"]
["Level 3",44131,"Milking machines"]
["Level 3",44132,"Dairy machinery"]
["Level 3",44139,"Parts of milking and dairy machines, n.e.c."]
["Level 2",4414,"Agricultural tractors"]
["Level 3",44141,"Pedestrian controlled tractors"]
["Level 3",44142,"Track-laying tractors"]
["Level 3",44149,"Other agricultural tractors"]
["Level 2",4415,"Mechanical appliances for projecting, dispersing or spraying liquids or powders for agriculture or horticulture"]
["Level 3",44150,"Mechanical appliances for projecting, dispersing or spraying liquids or powders for agriculture or horticulture"]
["Level 2",4416,"Self-loading or self-unloading trailers and semi-trailers for agricultural purposes"]
["Level 3",44160,"Self-loading or self-unloading trailers and semi-trailers for agricultural purposes"]
["Level 2",4419,"Other agricultural machinery"]
["Level 3",44191,"Presses, crushers and similar machinery used in the manufacture of wine, cider, fruit juices or similar beverages."]
["Level 3",44192,"Machinery for preparing animal feeding stuffs"]
["Level 3",44193,"Poultry incubators and brooders"]
["Level 3",44194,"Poultry-keeping machinery"]
["Level 3",44198,"Other agricultural machinery n.e.c."]
["Level 3",44199,"Parts of agricultural machinery"]
["Level 1",442,"Machine-tools and parts and accessories thereof"]
["Level 2",4421,"Machine-tools for working metal; machine-tools for working any material by laser or similar process"]
["Level 3",44211,"Machine-tools for working any material by removal of material, by laser or other light or photon beam, ultra-sonic, electro-discharge, electro-chemical, electron beam, ionic beam or plasma arc processes"]
["Level 3",44212,"Machining centres, unit construction machines (single station) and multi-station transfer machines, for working metal"]
["Level 3",44213,"Lathes for removing metal"]
["Level 3",44214,"Machine-tools for drilling, boring or milling metal"]
["Level 3",44215,"Machine-tools for threading or tapping by removing metal, except lathes and way-type unit head machines"]
["Level 3",44216,"Machine-tools for deburring, sharpening, grinding, honing, lapping, polishing or otherwise finishing metal, sintered metal carbides or cermets by means of grinding stones, abrasives or polishing products; machine-tools for planing, shaping, slotting, broa"]
["Level 3",44217,"Machine-tools for working metal by forging, hammering or die-stamping; machine-tools for working metal by bending, folding, straightening, flattening, shearing, punching or notching; other presses for working metal or metal carbides"]
["Level 3",44218,"Machine-tools n.e.c. for working metal, sintered metal carbides or cermets, without removing material"]
["Level 2",4422,"Machine-tools for working stone, ceramics and the like, and for working wood, bone, hard plastics and the like; presses for the manufacture of particle board and the like"]
["Level 3",44221,"Machine-tools for working stone, ceramics, concrete, asbestos-cement or like mineral materials or for cold working glass"]
["Level 3",44222,"Machine-tools for working wood, cork, bone, hard rubber, hard plastics or similar hard materials; presses for the manufacture of particle board or fibre building board of wood or other ligneous materials and other machinery for treating wood or cork"]
["Level 2",4423,"Tools for working in the hand, powered"]
["Level 3",44231,"Tools for working in the hand, pneumatic, hydraulic or with self-contained non-electric motor"]
["Level 3",44232,"Electromechanical tools for working in the hand, with self-contained electric motor"]
["Level 2",4424,"Machinery and apparatus for soldering, brazing or welding; gas-operated surface tempering machines and appliances; electric machines and apparatus for hot spraying of metals or sintered metal carbides"]
["Level 3",44241,"Electrical machinery and apparatus for soldering, brazing or welding; electric machines and apparatus for hot spraying of metals or sintered metal carbides"]
["Level 3",44242,"Non-electrical machinery and apparatus for soldering, brazing or welding; gas-operated surface tempering machines and appliances"]
["Level 2",4425,"Tool holders; parts and accessories for the goods of classes 4421 to 4424"]
["Level 3",44251,"Tool holders, self-opening dieheads, work holders, dividing heads and other special attachments for machine-tools; tool-holders for any type of tool for working in the hand; other parts and accessories for the goods of class 4421"]
["Level 3",44252,"Parts and accessories for the goods of subclass 44221; parts and accessories of machine tools for working wood, bone, hard plastics and the like"]
["Level 3",44253,"Parts for the goods of subclasses 44231 and 44232"]
["Level 3",44255,"Parts for the goods of subclass 44241"]
["Level 3",44256,"Parts for the goods of subclass 44242"]
["Level 1",443,"Machinery for metallurgy and parts thereof"]
["Level 2",4431,"Converters, ladles, ingot moulds and casting machines, of a kind used in metallurgy or in metal foundries; metal-rolling mills"]
["Level 3",44310,"Converters, ladles, ingot moulds and casting machines, of a kind used in metallurgy or in metal foundries; metal-rolling mills"]
["Level 2",4432,"Parts for the goods of subclass 44310 (including rolls for rolling mills)"]
["Level 3",44320,"Parts for the goods of subclass 44310 (including rolls for rolling mills)"]
["Level 1",444,"Machinery for mining, quarrying and construction, and parts thereof"]
["Level 2",4441,"Continuous-action elevators and conveyors, for goods or materials, specially designed for underground use; coal or rock cutters and tunnelling machinery; other boring and sinking machinery"]
["Level 3",44411,"Continuous-action elevators and conveyors, for goods or materials, specially designed for underground use"]
["Level 3",44412,"Coal or rock cutters and tunnelling machinery; other boring and sinking machinery"]
["Level 2",4442,"Other moving, grading, levelling, scraping, excavating, tamping, compacting or extracting machinery, self-propelled, for earth, minerals or ores (including bulldozers, mechanical shovels and road rollers)"]
["Level 3",44421,"Bulldozers and angledozers, self-propelled"]
["Level 3",44422,"Graders and levellers, self-propelled"]
["Level 3",44423,"Scrapers, self-propelled"]
["Level 3",44424,"Tamping machines and road rollers, self-propelled"]
["Level 3",44425,"Front-end shovel loaders, self-propelled"]
["Level 3",44426,"Mechanical shovels, excavators and shovel loaders, self-propelled, with a 360-degree revolving superstructure, except front-end shovel loaders"]
["Level 3",44427,"Mechanical shovels, excavators and shovel loaders, except front-end shovel loaders and machinery with a 360-degree revolving superstructure; moving, grading, levelling, scraping, excavating, tamping, compacting, extracting or boring machinery n.e.c., self"]
["Level 3",44428,"Dumpers designed for off-highway use"]
["Level 3",44429,"Bulldozer or angledozer blades"]
["Level 2",4443,"Pile-drivers and pile-extractors; snow-ploughs and snow-blowers; other moving, grading, levelling, scraping, excavating, tamping, compacting, extracting or boring machinery, not self-propelled, for earth, minerals or ores; machinery n.e.c. for public work"]
["Level 3",44430,"Pile-drivers and pile-extractors; snow-ploughs and snow-blowers; other moving, grading, levelling, scraping, excavating, tamping, compacting, extracting or boring machinery, not self-propelled, for earth, minerals or ores; machinery n.e.c. for public work"]
["Level 2",4444,"Machinery for sorting, screening, separating, washing, crushing, grinding, mixing or kneading earth, stone, ores or other mineral substances, in solid form; machinery for agglomerating, shaping or moulding solid mineral fuels, ceramic paste, unhardened ce"]
["Level 3",44440,"Machinery for sorting, screening, separating, washing, crushing, grinding, mixing or kneading earth, stone, ores or other mineral substances, in solid form; machinery for agglomerating, shaping or moulding solid mineral fuels, ceramic paste, unhardened ce"]
["Level 2",4446,"Parts for the goods of classes 4441 to 4444"]
["Level 3",44461,"Parts n.e.c. of boring or sinking machinery and of derricks, cranes, mobile lifting frames, straddle carriers and works trucks fitted with a crane; parts n.e.c. of moving, grading, levelling, scraping, excavating, tamping, compacting, extracting or boring"]
["Level 3",44462,"Parts for the goods of subclass 44440"]
["Level 1",445,"Machinery for food, beverage and tobacco processing, and parts thereof"]
["Level 2",4451,"Machinery for the food, beverage and tobacco industries"]
["Level 3",44511,"Cream separators"]
["Level 3",44513,"Machinery used in the milling industry or for the working of cereals or dried leguminous vegetables other than farm-type machinery"]
["Level 3",44515,"Bakery ovens, non-electric; machinery for making hot drinks or for cooking or heating food, except domestic type machines"]
["Level 3",44516,"Machinery n.e.c. for the industrial preparation or manufacture of food or drink (including fats or oils)"]
["Level 3",44517,"Machinery n.e.c. for processing tobacco"]
["Level 3",44518,"Dryers for agricultural products"]
["Level 2",4452,"Parts for the goods of class 4451"]
["Level 3",44522,"Parts of machines for cleaning, sorting or grading seed, grain or dried leguminous vegetables; parts n.e.c. for the goods of subclasses 44513 and 44516"]
["Level 3",44523,"Parts n.e.c. of machinery for processing tobacco"]
["Level 1",446,"Machinery for textile, apparel and leather production, and parts thereof"]
["Level 2",4461,"Machinery for preparing, spinning, weaving and knitting textiles"]
["Level 3",44611,"Machines for extruding, drawing, texturing or cutting man-made textile materials; machines for preparing textile fibres or producing textile yarns; textile reeling or winding machines and machines for preparing textile yarns for use on machines for weavin"]
["Level 3",44612,"Weaving machines (looms)"]
["Level 3",44613,"Knitting machines, stitch-bonding machines, machines for making gimped yarn, tulle, lace, embroidery, trimmings, braid or net and machines for tufting"]
["Level 3",44614,"Auxiliary machinery for use with machines for textile extruding, preparing, spinning, weaving, knitting or the like"]
["Level 2",4462,"Other machinery for textile and apparel production (including sewing machines)"]
["Level 3",44621,"Sewing machines, except book sewing machines and household sewing machines"]
["Level 3",44622,"Laundry-type washing machines, each of a dry linen capacity exceeding 10 kg; dry-cleaning machines; drying machines for textile fabrics or articles, each of a dry linen capacity exceeding 10 kg"]
["Level 3",44629,"Other machinery for textile and apparel production n.e.c."]
["Level 2",4463,"Machinery for preparing, tanning or working hides, skins or leather or for making or repairing footwear or other articles of hides, skins or leather, other than sewing machines"]
["Level 3",44630,"Machinery for preparing, tanning or working hides, skins or leather or for making or repairing footwear or other articles of hides, skins or leather, other than sewing machines"]
["Level 2",4464,"Parts for the goods of class 4461; parts for the goods of subclass 44621 (including sewing machine needles and furniture, bases and covers for sewing machines); parts for the goods of subclass 44622; parts for the goods of subclass 44629, except parts of "]
["Level 3",44640,"Parts for the goods of class 4461; parts for the goods of subclass 44621 (including sewing machine needles and furniture, bases and covers for sewing machines); parts for the goods of subclass 44622; parts for the goods of subclass 44629, except parts of "]
["Level 1",447,"Weapons and ammunition and parts thereof"]
["Level 2",4471,"Tanks and other armoured fighting vehicles, motorized, and parts thereof"]
["Level 3",44710,"Tanks and other armoured fighting vehicles, motorized, and parts thereof"]
["Level 2",4472,"Military weapons, other than revolvers, pistols and swords and the like"]
["Level 3",44720,"Military weapons, other than revolvers, pistols and swords and the like"]
["Level 2",4473,"Revolvers, pistols, other firearms and similar devices; other arms"]
["Level 3",44730,"Revolvers, pistols, other firearms and similar devices; other arms"]
["Level 2",4474,"Bombs, grenades, torpedoes, mines, missiles and similar munitions of war and parts thereof; cartridges and other ammunition and projectiles and parts thereof, including shot and cartridge wads"]
["Level 3",44740,"Bombs, grenades, torpedoes, mines, missiles and similar munitions of war and parts thereof; cartridges and other ammunition and projectiles and parts thereof, including shot and cartridge wads"]
["Level 2",4475,"Swords, cutlasses, bayonets, lances and similar arms and parts thereof and scabbards and sheaths therefor"]
["Level 3",44750,"Swords, cutlasses, bayonets, lances and similar arms and parts thereof and scabbards and sheaths therefor"]
["Level 2",4476,"Parts of military weapons and other arms"]
["Level 3",44760,"Parts of military weapons and other arms"]
["Level 1",448,"Domestic appliances and parts thereof"]
["Level 2",4481,"Domestic electric appliances; non-electric refrigerators and clothes drying machines"]
["Level 3",44811,"Refrigerators and freezers, household type, electric or non-electric"]
["Level 3",44812,"Dishwashing machines and clothes or linen washing or drying machines, household type, electric or non-electric"]
["Level 3",44813,"Electric blankets"]
["Level 3",44814,"Household sewing machines"]
["Level 3",44815,"Fans and ventilating or recycling hoods of the domestic type"]
["Level 3",44816,"Other small electric domestic appliances (including vacuum cleaners, kitchen waste disposers, food mixers, shavers, hair dryers, smoothing irons, coffee makers and toasters)"]
["Level 3",44817,"Electric instantaneous or storage water heaters and immersion heaters; electric space heating apparatus and soil heating apparatus; ovens; cookers, cooking plates, boiling rings, grillers and roasters"]
["Level 3",44818,"Electric heating resistors, except of carbon"]
["Level 2",4482,"Domestic cooking and heating equipment, non-electric"]
["Level 3",44821,"Cooking appliances and plate warmers, non-electric, domestic, of iron or steel"]
["Level 3",44822,"Stoves, grates, braziers and similar non-electric domestic appliances (other than cooking appliances and plate warmers) of iron or steel"]
["Level 3",44823,"Radiators for central heating, not electrically heated, of iron or steel"]
["Level 3",44824,"Air heaters and hot air distributors, not electrically heated, incorporating a motor-driven fan or blower, of iron or steel"]
["Level 3",44825,"Central heating boilers, for producing hot water or low pressure steam"]
["Level 3",44826,"Water heaters, instantaneous or storage, non-electric"]
["Level 2",4483,"Parts for the goods of classes 4481 and 4482 (except subclass 44814)"]
["Level 3",44831,"Parts of the following appliances: electromechanical domestic appliances, shavers and hairclippers, with self-contained electric motor; electric instantaneous or storage water heaters, immersion heaters, space heating apparatus and soil heating apparatus;"]
["Level 3",44832,"Parts of stoves, ranges, grates, cookers, barbecues, braziers, gas-rings, plate-warmers and similar non-electric domestic appliances, of iron or steel"]
["Level 3",44833,"Parts of central heating boilers for producing hot water or low pressure steam"]
["Level 1",449,"Other special-purpose machinery and parts thereof"]
["Level 2",4491,"Other special-purpose machinery"]
["Level 3",44911,"Centrifugal clothes driers"]
["Level 3",44912,"Dryers for wood, paper pulp, paper or paperboard and for other materials except agriculture products"]
["Level 3",44913,"Machinery for making pulp of fibrous cellulosic material or for making or finishing paper or paperboard; machinery (except bookbinding machinery) for making up paper pulp, paper or paperboard"]
["Level 3",44914,"Bookbinding machinery; machinery for type-setting and the like; printing machinery and machines for uses ancillary to printing (except office type sheet-fed offset printing machinery)"]
["Level 3",44915,"Machinery n.e.c. for working rubber or plastics or for the manufacture of products from these materials"]
["Level 3",44916,"Moulding boxes for metal foundry; mould bases; moulding patterns; moulds for metal (except ingot moulds), metal carbides, glass, mineral materials, rubber or plastics"]
["Level 3",44917,"Stand-alone photocopiers, printers and facsimile machines"]
["Level 3",44918,"Machines and apparatus of a kind used solely or principally for the manufacture of semiconductor boules or wafers, semiconductor devices, electronic integrated circuits or flat panel displays"]
["Level 3",44919,"Special-purpose machinery n.e.c. (including machinery for isotopic separation, machines for assembling electric lamps in glass envelopes, machines for manufacturing glassware and rope making machines)"]
["Level 2",4492,"Parts n.e.c. for special-purpose machinery"]
["Level 3",44921,"Parts for the goods of subclass 44913"]
["Level 3",44922,"Parts for the goods of subclasses 44914, 44917 and 45150"]
["Level 3",44923,"Parts for the goods of subclass 44918"]
["Level 3",44929,"Parts for the goods of subclass 44915; other parts n.e.c. of special-purpose machinery"]
["Division",45,"Office, accounting and computing machinery"]
["Level 1",451,"Office and accounting machinery, and parts and accessories thereof"]
["Level 2",4511,"Typewriters and word-processing machines"]
["Level 3",45110,"Typewriters and word-processing machines"]
["Level 2",4513,"Electronic calculators and pocket-size data recording, reproducing and displaying machines with calculating functions"]
["Level 3",45130,"Electronic calculators and pocket-size data recording, reproducing and displaying machines with calculating functions"]
["Level 2",4514,"Accounting machines, cash registers, automated teller machines, postage-franking machines, ticket-issuing machines and similar machines, incorporating a calculating device"]
["Level 3",45141,"Accounting machines, cash registers, postage-franking machines, ticket-issuing machines and similar machines, incorporating a calculating device (except point-of-sale terminals, ATMs and similar machines)"]
["Level 3",45142,"Point-of-sale terminals, ATMs and similar machines"]
["Level 2",4515,"Office type sheet-fed printing machinery"]
["Level 3",45150,"Office type sheet-fed printing machinery"]
["Level 2",4516,"Other office machines"]
["Level 3",45160,"Other office machines"]
["Level 2",4517,"Parts and accessories for the goods of subclasses 45110 and 45130 (except covers, carrying cases and the like)"]
["Level 3",45170,"Parts and accessories for the goods of subclasses 45110 and 45130 (except covers, carrying cases and the like)"]
["Level 2",4518,"Parts and accessories for the goods of subclasses 45141, 45142 and 45160 (except covers, carrying cases and the like)"]
["Level 3",45180,"Parts and accessories for the goods of subclasses 45141, 45142 and 45160 (except covers, carrying cases and the like)"]
["Level 1",452,"Computing machinery and parts and accessories thereof"]
["Level 2",4522,"Portable automatic data processing machines weighing not more than 10 kg, such as laptops, notebooks and sub-notebooks"]
["Level 3",45221,"Portable automatic data processing machines weighing not more than 10 kg, such as laptop and notebook computers"]
["Level 3",45222,"Personal digital assistants and similar computers"]
["Level 2",4523,"Automatic data processing machines, comprising in the same housing at least a central processing unit and an input and output unit, whether or not combined"]
["Level 3",45230,"Automatic data processing machines, comprising in the same housing at least a central processing unit and an input and output unit, whether or not combined"]
["Level 2",4524,"Automatic data processing machines presented in the form of systems"]
["Level 3",45240,"Automatic data processing machines presented in the form of systems"]
["Level 2",4525,"Other automatic data processing machines whether or not containing in the same housing one or two of the following types of units: storage units, input units, output units"]
["Level 3",45250,"Other automatic data processing machines whether or not containing in the same housing one or two of the following types of units: storage units, input units, output units"]
["Level 2",4526,"Input or output units, whether or not containing storage units in the same housing, except monitors or projectors"]
["Level 3",45261,"Input peripherals (keyboard, joystick, mouse etc.)"]
["Level 3",45262,"Scanners (except combination of printer, scanner, copier and/or fax)"]
["Level 3",45263,"Inkjet printers used with data processing machines"]
["Level 3",45264,"Laser printers used with data processing machines"]
["Level 3",45265,"Other printers used with data processing machines"]
["Level 3",45266,"Units performing two or more of the following functions: printing, scanning, copying, faxing"]
["Level 3",45269,"Other input or output peripheral devices"]
["Level 2",4527,"Storage units"]
["Level 3",45271,"Fixed media storage units"]
["Level 3",45272,"Removable media storage units"]
["Level 2",4528,"Other units of automatic data processing machines n.e.c."]
["Level 3",45281,"Sound, video, network and similar cards for automatic data processing machines"]
["Level 3",45289,"Other units of automatic data processing machines"]
["Level 2",4529,"Parts and accessories of computing machines"]
["Level 3",45290,"Parts and accessories of computing machines"]
["Division",46,"Electrical machinery and apparatus"]
["Level 1",461,"Electric motors, generators and transformers, and parts thereof"]
["Level 2",4611,"Electric motors, generators and the like"]
["Level 3",46111,"Motors of an output not exceeding 37.5 W; other DC motors; DC generators"]
["Level 3",46112,"Universal AC/DC motors of an output exceeding 37.5 W; other AC motors; AC generators (alternators)"]
["Level 3",46113,"Electric generating sets and rotary converters"]
["Level 2",4612,"Electrical transformers, static converters and inductors"]
["Level 3",46121,"Electrical transformers"]
["Level 3",46122,"Ballasts for discharge lamps or tubes; static converters; other inductors"]
["Level 2",4613,"Parts for the goods of classes 4611 and 4612"]
["Level 3",46131,"Parts of electric motors, generators and the like"]
["Level 3",46132,"Parts of electrical transformers, static converters and inductors"]
["Level 1",462,"Electricity distribution and control apparatus, and parts thereof"]
["Level 2",4621,"Electricity distribution or control apparatus"]
["Level 3",46211,"Electrical apparatus for switching or protecting electrical circuits, or for making connexions to or in electrical circuits, for a voltage exceeding 1000 V"]
["Level 3",46212,"Electrical apparatus for switching or protecting electrical circuits, for making connexions to or in electrical circuits, for a voltage not exceeding 1000 V"]
["Level 3",46213,"Boards, consoles, cabinets and other bases, equipped with electrical switching etc. apparatus, for electric control or the distribution of electricity, for a voltage not exceeding 1000 V"]
["Level 3",46214,"Boards, consoles, cabinets and other bases, equipped with electrical switching etc. apparatus, for electric control or the distribution of electricity, for a voltage exceeding 1000 V"]
["Level 3",46215,"Connectors for optical fibres, optical fibre bundles or cables"]
["Level 2",4622,"Parts of electricity distribution or control apparatus"]
["Level 3",46220,"Parts of electricity distribution or control apparatus"]
["Level 1",463,"Insulated wire and cable; optical fibre cables"]
["Level 2",4631,"Insulated winding wire"]
["Level 3",46310,"Insulated winding wire"]
["Level 2",4632,"Coaxial cable and other coaxial electric conductors"]
["Level 3",46320,"Coaxial cable and other coaxial electric conductors"]
["Level 2",4633,"Ignition wiring sets and other wiring sets of a kind used in vehicles, aircraft or ships"]
["Level 3",46330,"Ignition wiring sets and other wiring sets of a kind used in vehicles, aircraft or ships"]
["Level 2",4634,"Other electric conductors, for a voltage not exceeding 1000 V"]
["Level 3",46340,"Other electric conductors, for a voltage not exceeding 1000 V"]
["Level 2",4635,"Other electric conductors, for a voltage exceeding 1000 V"]
["Level 3",46350,"Other electric conductors, for a voltage exceeding 1000 V"]
["Level 2",4636,"Optical fibre cables made up of individually sheathed fibres"]
["Level 3",46360,"Optical fibre cables made up of individually sheathed fibres"]
["Level 1",464,"Accumulators, primary cells and primary batteries, and parts thereof"]
["Level 2",4641,"Primary cells and primary batteries"]
["Level 3",46410,"Primary cells and primary batteries"]
["Level 2",4642,"Electric accumulators"]
["Level 3",46420,"Electric accumulators"]
["Level 2",4643,"Parts of primary cells, primary batteries and electric accumulators (including separators)"]
["Level 3",46430,"Parts of primary cells, primary batteries and electric accumulators (including separators)"]
["Level 1",465,"Electric filament or discharge lamps; arc lamps; lighting equipment; parts thereof"]
["Level 2",4651,"Electric filament or discharge lamps; arc lamps"]
["Level 3",46510,"Electric filament or discharge lamps; arc lamps"]
["Level 2",4653,"Lighting equipment"]
["Level 3",46531,"Portable electric lamps designed to function by their own source of energy (except those for cycles or motor vehicles); electric ceiling or wall lighting fittings (except those for lighting public open spaces or thorough-fares); electric table, desk, beds"]
["Level 3",46532,"Lighting sets of a kind used for Christmas trees"]
["Level 3",46539,"Other electric lamps and lighting fittings (including lamps and lighting fittings of a kind used for lighting public open spaces or thorough-fares)"]
["Level 2",4654,"Parts for the goods of classes 4651 and 4653"]
["Level 3",46541,"Parts of electric filament or discharge lamps; parts of arc lamps"]
["Level 3",46542,"Parts of portable electric lamps designed to function by their own source of energy (except those of cycles or motor vehicles); parts n.e.c. of lamps and lighting fittings; parts n.e.c. of illuminated signs, illuminated name-plates and the like"]
["Level 1",469,"Other electrical equipment and parts thereof"]
["Level 2",4691,"Electrical ignition or starting equipment of a kind used for internal combustion engines; generators and cut-outs of a kind used in conjunction with internal combustion engines; electrical lighting or signalling equipment (except filament or discharge lam"]
["Level 3",46910,"Electrical ignition or starting equipment of a kind used for internal combustion engines; generators and cut-outs of a kind used in conjunction with internal combustion engines; electrical lighting or signalling equipment (except filament or discharge lam"]
["Level 2",4692,"Electric sound or visual signalling apparatus, except for cycles or motor vehicles, and except electromechanical traffic control equipment for transport facilities"]
["Level 3",46921,"Burglar or fire alarms and similar apparatus"]
["Level 3",46929,"Other electric sound or visual signalling apparatus, except for cycles or motor vehicles, and except electromechanical traffic control equipment for transport facilities"]
["Level 2",4693,"Electrical equipment n.e.c. (including electro-magnets; permanent magnets; electro-magnetic couplings; clutches and brakes; electro-magnetic lifting heads; electrical particle accelerators; electrical signal generators; and apparatus for electro-plating, "]
["Level 3",46931,"Permanent metallic magnets"]
["Level 3",46932,"Permanent ceramic or ferrite magnets"]
["Level 3",46939,"Other electrical equipment n.e.c. (including electro-magnets; electro-magnetic couplings; clutches and brakes; electro-magnetic lifting heads; electrical particle accelerators; electrical signal generators and apparatus for electro-plating, electrolysis o"]
["Level 2",4694,"Electrical insulators, except of glass or ceramics; insulating fittings for electrical machines or equipment, except of ceramics or plastics; electrical conduit tubing and joints therefor, of base metal lined with insulating material"]
["Level 3",46940,"Electrical insulators, except of glass or ceramics; insulating fittings for electrical machines or equipment, except of ceramics or plastics; electrical conduit tubing and joints therefor, of base metal lined with insulating material"]
["Level 2",4695,"Carbon electrodes, carbon brushes, lamp carbons, battery carbons and other articles of graphite or other carbon of a kind used for electrical purposes"]
["Level 3",46950,"Carbon electrodes, carbon brushes, lamp carbons, battery carbons and other articles of graphite or other carbon of a kind used for electrical purposes"]
["Level 2",4696,"Parts for the goods of subclasses 46910, 46921 and 46929; electrical parts n.e.c. of machinery or apparatus"]
["Level 3",46960,"Parts for the goods of subclasses 46910, 46921 and 46929; electrical parts n.e.c. of machinery or apparatus"]
["Division",47,"Radio, television and communication equipment and apparatus"]
["Level 1",471,"Electronic valves and tubes; electronic components; parts thereof"]
["Level 2",4711,"Electrical capacitors"]
["Level 3",47110,"Electrical capacitors"]
["Level 2",4712,"Electrical resistors (except heating resistors)"]
["Level 3",47120,"Electrical resistors (except heating resistors)"]
["Level 2",4713,"Printed circuits"]
["Level 3",47130,"Printed circuits"]
["Level 2",4714,"Thermionic, cold cathode or photo-cathode valves and tubes (including cathode ray tubes)"]
["Level 3",47140,"Thermionic, cold cathode or photo-cathode valves and tubes (including cathode ray tubes)"]
["Level 2",4715,"Diodes, transistors and similar semi-conductor devices; photosensitive semi-conductor devices; light emitting diodes; mounted piezo-electric crystals"]
["Level 3",47150,"Diodes, transistors and similar semi-conductor devices; photosensitive semi-conductor devices; light emitting diodes; mounted piezo-electric crystals"]
["Level 2",4716,"Electronic integrated circuits"]
["Level 3",47160,"Electronic integrated circuits"]
["Level 2",4717,"Parts for the goods of classes 4711, 4712 and 4714 to 4716"]
["Level 3",47171,"Parts for the goods of subclass 47110"]
["Level 3",47172,"Parts for the goods of subclass 47120"]
["Level 3",47173,"Parts for the goods of subclasses 47140 to 47160"]
["Level 1",472,"Television and radio transmitters; television, video and digital cameras; telephone sets"]
["Level 2",4721,"Transmission apparatus for radio-broadcasting or television, whether or not incorporating reception apparatus or sound recording or reproducing apparatus; television cameras, digital cameras and video camera recorders"]
["Level 3",47211,"Transmission apparatus incorporating reception apparatus"]
["Level 3",47212,"Transmission apparatus not incorporating reception apparatus"]
["Level 3",47213,"Television cameras"]
["Level 3",47214,"Video camera recorders"]
["Level 3",47215,"Digital cameras"]
["Level 2",4722,"Telephone sets, including telephones for cellular networks or for other wireless networks; other apparatus for the transmission or reception of voice, images or other data, including apparatus for communication in a wired or wireless network (such as a lo"]
["Level 3",47221,"Line telephone sets with cordless handsets"]
["Level 3",47222,"Telephones for cellular networks or for other wireless networks"]
["Level 3",47223,"Other telephone sets and apparatus for transmission or reception of voice, images or other data, including apparatus for communication in a wired or wireless network (such as a local or wide area network)"]
["Level 1",473,"Radio broadcast and television receivers; apparatus for sound and video recording and reproducing; microphones, loudspeakers, amplifiers, etc."]
["Level 2",4731,"Radio broadcast and television receivers"]
["Level 3",47311,"Radio broadcast receivers (except of a kind used in motor vehicles), whether or not combined with sound recording or reproducing apparatus or a clock"]
["Level 3",47312,"Radio broadcast receivers not capable of operating without an external source of power, of a kind used in motor vehicles"]
["Level 3",47313,"Television receivers, whether or not combined with radio-broadcast receivers or sound or video recording or reproducing apparatus"]
["Level 3",47314,"Monitors and projectors, not incorporating television reception apparatus and not principally used in an automatic data processing system"]
["Level 3",47315,"Monitors and projectors, principally used in an automatic data processing system"]
["Level 2",4732,"Apparatus for sound and video recording and reproducing"]
["Level 3",47321,"Sound recording or reproducing apparatus"]
["Level 3",47323,"Video recording or reproducing apparatus"]
["Level 2",4733,"Microphones and stands therefor; loudspeakers; headphones, earphones and combined microphone/speaker sets; audio-frequency electric amplifiers; electric sound amplifier sets"]
["Level 3",47330,"Microphones and stands therefor; loudspeakers; headphones, earphones and combined microphone/speaker sets; audio-frequency electric amplifiers; electric sound amplifier sets"]
["Level 1",474,"Parts for the goods of classes 4721 to 4733 and 4822"]
["Level 2",4740,"Parts for the goods of classes 4721 to 4733 and 4822"]
["Level 3",47401,"Parts for the goods of subclasses 47221 to 47223"]
["Level 3",47402,"Parts for the goods of subclasses 47321, 47323 and 47330"]
["Level 3",47403,"Parts for the goods of subclasses 47211 to 47213, 47311 to 47315 and 48220"]
["Level 1",475,"Disks, tapes, solid-state non-volatile storage devices and other media, not recorded"]
["Level 2",4753,"Magnetic media, not recorded, except cards with a magnetic stripe"]
["Level 3",47530,"Magnetic media, not recorded, except cards with a magnetic stripe"]
["Level 2",4754,"Optical media, not recorded"]
["Level 3",47540,"Optical media, not recorded"]
["Level 2",4755,"Solid-state non-volatile storage devices"]
["Level 3",47550,"Solid-state non-volatile storage devices"]
["Level 2",4759,"Other recording media, including matrices and masters for the production of disks"]
["Level 3",47590,"Other recording media, including matrices and masters for the production of disks"]
["Level 1",476,"Audio, video and other disks, tapes and other physical media, recorded"]
["Level 2",4761,"Musical audio disks, tapes or other physical media"]
["Level 3",47610,"Musical audio disks, tapes or other physical media"]
["Level 2",4762,"Films and other video content on disks, tape or other physical media"]
["Level 3",47620,"Films and other video content on disks, tape or other physical media"]
["Level 2",4769,"Other recorded disks, tapes or other physical media"]
["Level 3",47691,"Audio books on disk, tape or other physical media"]
["Level 3",47692,"Text-based disks, tapes or other physical media"]
["Level 3",47699,"Other non-musical audio disks and tapes"]
["Level 1",478,"Packaged software"]
["Level 2",4781,"Systems software, packaged"]
["Level 3",47811,"Operating systems, packaged"]
["Level 3",47812,"Network software, packaged"]
["Level 3",47813,"Database management software, packaged"]
["Level 3",47814,"Development tools and programming languages software, packaged"]
["Level 2",4782,"Application software, packaged"]
["Level 3",47821,"General business productivity and home use applications, packaged"]
["Level 3",47822,"Computer game software, packaged"]
["Level 3",47829,"Other application software, packaged"]
["Level 1",479,"Cards with magnetic strips or chip"]
["Level 2",4791,"Cards with a magnetic stripe"]
["Level 3",47910,"Cards with a magnetic stripe"]
["Level 2",4792,"\"Smart cards\""]
["Level 3",47920,"\"Smart cards\""]
["Division",48,"Medical appliances, precision and optical instruments, watches and clocks"]
["Level 1",481,"Medical and surgical equipment and orthopaedic appliances"]
["Level 2",4811,"Apparatus based on the use of X-rays or of alpha, beta or gamma radiations"]
["Level 3",48110,"Apparatus based on the use of X-rays or of alpha, beta or gamma radiations"]
["Level 2",4812,"Electro-diagnostic apparatus, and ultra-violet or infra-red ray apparatus, used in medical, surgical, dental or veterinary sciences"]
["Level 3",48121,"Electro-diagnostic apparatus, used in medical, surgical, dental or veterinary sciences"]
["Level 3",48122,"Ultra-violet or infra-red ray apparatus, used in medical, surgical, dental or veterinary sciences"]
["Level 2",4813,"Other instruments and appliances (except syringes, needles and the like), used in dental sciences"]
["Level 3",48130,"Other instruments and appliances (except syringes, needles and the like), used in dental sciences"]
["Level 2",4814,"Medical, surgical or laboratory sterilizers"]
["Level 3",48140,"Medical, surgical or laboratory sterilizers"]
["Level 2",4815,"Other instruments and appliances used in medical, surgical or veterinary sciences (including syringes, needles, catheters, cannulae, ophthalmic instruments and appliances n.e.c. and electro-medical apparatus n.e.c.)"]
["Level 3",48150,"Other instruments and appliances used in medical, surgical or veterinary sciences (including syringes, needles, catheters, cannulae, ophthalmic instruments and appliances n.e.c. and electro-medical apparatus n.e.c.)"]
["Level 2",4816,"Mechano-therapy appliances; massage apparatus; psychological aptitude-testing apparatus; ozone therapy, oxygen therapy, aerosol therapy, artificial respiration or other therapeutic respiration apparatus; other breathing appliances and gas masks (excluding"]
["Level 3",48160,"Mechano-therapy appliances; massage apparatus; psychological aptitude-testing apparatus; ozone therapy, oxygen therapy, aerosol therapy, artificial respiration or other therapeutic respiration apparatus; other breathing appliances and gas masks (excluding"]
["Level 2",4817,"Orthopaedic appliances; splints and other fracture appliances; artificial parts of the body; hearing aids and other appliances which are worn or carried, or implanted in the body, to compensate for a defect or disability"]
["Level 3",48171,"Orthopaedic appliances; splints and other fracture appliances; artificial parts of the body"]
["Level 3",48172,"Hearing aids and other appliances which are worn or carried, or implanted in the body, to compensate for a defect or disability"]
["Level 2",4818,"Medical, surgical, dental or veterinary furniture; barbers' chairs and similar chairs, having rotating as well as both reclining and elevating movements"]
["Level 3",48180,"Medical, surgical, dental or veterinary furniture; barbers' chairs and similar chairs, having rotating as well as both reclining and elevating movements"]
["Level 1",482,"Instruments and appliances for measuring, checking, testing, navigating and other purposes, except optical instruments; industrial process control equipment; parts and accessories thereof"]
["Level 2",4821,"Navigational, meteorological, geophysical and similar instruments and appliances"]
["Level 3",48211,"Direction finding compasses; other navigational instruments and appliances"]
["Level 3",48212,"Rangefinders, theodolites and tachymeters (tacheometers) and levels"]
["Level 3",48219,"Other surveying, hydrographic, oceanographic, hydrological, meteorological or geophysical instruments and appliances"]
["Level 2",4822,"Radar apparatus, radio navigational aid apparatus and radio remote control apparatus"]
["Level 3",48220,"Radar apparatus, radio navigational aid apparatus and radio remote control apparatus"]
["Level 2",4823,"Precision balances; instruments for drawing, calculating, measuring length, etc."]
["Level 3",48231,"Balances with a sensitivity of 5 cg or better"]
["Level 3",48232,"Drafting tables and machines, and other drawing, marking-out or mathematical calculating instruments"]
["Level 3",48233,"Instruments for measuring length, for use in the hand (including measuring rods and tapes, micrometers and callipers) n.e.c."]
["Level 2",4824,"Instruments and apparatus for measuring or checking electrical quantities, except electricity production or supply meters; instruments and apparatus for measuring or detecting ionizing radiations"]
["Level 3",48241,"Instruments and apparatus for measuring or detecting ionizing radiations"]
["Level 3",48242,"Cathode-ray oscilloscopes and cathode-ray oscillographs"]
["Level 3",48243,"Instruments and apparatus (except cathode-ray oscilloscopes and oscillographs) for measuring or checking voltage, current, resistance or power, without a recording device (except electricity production or supply meters)"]
["Level 3",48244,"Instruments and apparatus (except cathode-ray oscilloscopes and oscillographs) for telecommunications"]
["Level 3",48249,"Instruments and apparatus for measuring or checking electrical quantities n.e.c."]
["Level 2",4825,"Hydrometers and similar floating instruments, thermometers, pyrometers, barometers, hygrometers and psychrometers, instruments and apparatus for measuring or checking the flow, level, pressure or other variables of liquids or gases except navigational, hy"]
["Level 3",48251,"Hydrometers and similar floating instruments, thermometers, pyrometers, barometers, hygrometers and psychrometers"]
["Level 3",48252,"Instruments and apparatus for measuring or checking the flow, level, pressure or other variables of liquids or gases, except navigational, hydrological or meteorological instruments and appliances, gas or liquid supply meters and automatic regulating or c"]
["Level 3",48253,"Instruments and apparatus for physical or chemical analysis, for measuring or checking viscosity, porosity, expansion, surface tension or the like, or for measuring or checking quantities of heat, sound or light"]
["Level 2",4826,"Other measuring, checking and testing instruments and appliances"]
["Level 3",48261,"Microscopes (except optical microscopes) and diffraction apparatus"]
["Level 3",48262,"Machines and appliances for testing the mechanical properties of materials"]
["Level 3",48263,"Gas, liquid or electricity supply or production meters"]
["Level 3",48264,"Revolution counters, production counters, taximeters, mileometers, pedometers and the like; speed indicators and tachometers, except hydrographic and meteorological instruments; stroboscopes"]
["Level 3",48266,"Automatic regulating or controlling instruments and apparatus, hydraulic or pneumatic"]
["Level 3",48269,"Measuring, checking, regulating or controlling instruments, appliances and machines n.e.c."]
["Level 2",4828,"Parts and accessories for the goods of classes 4821 and 4823 to 4826"]
["Level 3",48281,"Parts and accessories for the goods of subclasses 48211, 48212, 48232 and 48233, 48241 to 48249, 48251 to 48253; microtomes; parts and accessories n.e.c., for optical, photographic, cinematographic, precision, medical or surgical machines, instruments, ap"]
["Level 3",48282,"Parts and accessories for the goods of subclass 48261"]
["Level 3",48283,"Parts and accessories for the goods of subclasses 48263 and 48264"]
["Level 3",48284,"Parts and accessories for the goods of subclasses 48266 and 48269"]
["Level 3",48285,"Parts and accessories for the goods of subclass 48262"]
["Level 1",483,"Optical instruments and photographic equipment, and parts and accessories thereof"]
["Level 2",4831,"Optical instruments"]
["Level 3",48311,"Optical fibres and optical fibre bundles; optical fibre cables (except those made up of individually sheathed fibres); sheets and plates of polarizing material; lenses, prisms, mirrors and other optical elements (except of glass not optically worked), whe"]
["Level 3",48312,"Spectacles, goggles and the like, corrective, protective or other"]
["Level 3",48313,"Frames and mountings for spectacles, goggles or the like"]
["Level 3",48314,"Binoculars, monoculars and other optical telescopes; other astronomical instruments, except instruments for radio-astronomy; compound optical microscopes"]
["Level 3",48315,"Liquid crystal devices n.e.c.; lasers, except laser diodes; other optical appliances and instruments n.e.c."]
["Level 2",4832,"Photographic equipment"]
["Level 3",48321,"Objective lenses for cameras, projectors or photographic enlargers or reducers"]
["Level 3",48322,"Photographic (including cinematographic) cameras"]
["Level 3",48323,"Cinematographic projectors, slide projectors and other image projectors, except microform readers"]
["Level 3",48324,"Photographic flashlight apparatus, including flashbulbs; photographic (except cinematographic) enlargers and reducers; apparatus and equipment for photographic laboratories n.e.c.; negatoscopes and projection screens"]
["Level 2",4833,"Microfilm, microfiche or other microform readers"]
["Level 3",48330,"Microfilm, microfiche or other microform readers"]
["Level 2",4834,"Photographic plates and film and instant print film, sensitized, unexposed; chemical products for photographic uses, except varnishes, adhesives and the like"]
["Level 3",48341,"Photographic plates and film and instant print film, sensitized, unexposed"]
["Level 3",48342,"Chemical preparations for photographic uses, except varnishes, adhesives and the like; unmixed products for photographic uses, put up in measured portions or put up for retail sale in a form ready for use"]
["Level 2",4835,"Parts for the goods of classes 4831 to 4833"]
["Level 3",48351,"Parts and accessories for the goods of subclass 48314"]
["Level 3",48352,"Parts of frames and mountings for spectacles, goggles or the like"]
["Level 3",48353,"Parts and accessories for the goods of subclass 48322; parts and accessories of cinematographic projectors; parts and accessories of photographic flashlight apparatus; parts and accessories of image projectors (except cinematographic) and photographic (ex"]
["Level 3",48354,"Parts and accessories for the goods of subclass 48315"]
["Level 1",484,"Watches and clocks, and parts thereof"]
["Level 2",4841,"Watches"]
["Level 3",48410,"Watches"]
["Level 2",4842,"Clocks"]
["Level 3",48420,"Clocks"]
["Level 2",4843,"Time of day recording apparatus, apparatus for measuring, recording or otherwise indicating intervals of time, and time switches, with clock or watch movement or with synchronous motor"]
["Level 3",48430,"Time of day recording apparatus, apparatus for measuring, recording or otherwise indicating intervals of time, and time switches, with clock or watch movement or with synchronous motor"]
["Level 2",4844,"Watch or clock movements"]
["Level 3",48440,"Watch or clock movements"]
["Level 2",4849,"Other watch or clock parts (including jewels, cases and metal watch bands)"]
["Level 3",48490,"Other watch or clock parts (including jewels, cases and metal watch bands)"]
["Division",49,"Transport equipment"]
["Level 1",491,"Motor vehicles, trailers and semi-trailers; parts and accessories thereof"]
["Level 2",4911,"Motor vehicles"]
["Level 3",49111,"Road tractors for semi-trailers"]
["Level 3",49112,"Public-transport type passenger motor vehicles"]
["Level 3",49113,"Motor cars and other motor vehicles principally designed for the transport of persons (except public-transport type vehicles, vehicles specially designed for travelling on snow, and golf cars and similar vehicles)"]
["Level 3",49114,"Motor vehicles n.e.c. for the transport of goods"]
["Level 3",49115,"Crane lorries"]
["Level 3",49116,"Motor vehicles, for the transport of persons, specially designed for travelling on snow; golf cars and similar vehicles"]
["Level 3",49119,"Special-purpose motor vehicles n.e.c."]
["Level 2",4912,"Parts and accessories n.e.c. of motor vehicles"]
["Level 3",49121,"Chassis fitted with engines, for motor vehicles"]
["Level 3",49129,"Other parts and accessories n.e.c. of motor vehicles (including brakes, gear boxes, axles, road wheels, suspension shock absorbers, radiators, silencers, exhaust pipes, clutches, steering wheels, steering columns, steering boxes, and parts thereof)"]
["Level 1",492,"Bodies (coachwork) for motor vehicles; trailers and semi-trailers; parts and accessories thereof"]
["Level 2",4921,"Bodies for motor vehicles"]
["Level 3",49210,"Bodies for motor vehicles"]
["Level 2",4922,"Trailers and semi-trailers; containers"]
["Level 3",49221,"Containers specially designed and equipped for carriage by one or more modes of transport"]
["Level 3",49222,"Trailers and semi-trailers of the caravan type, for housing or camping"]
["Level 3",49229,"Other trailers and semi-trailers (including trailers and semi-trailers for the transport of goods), except self-loading or self-unloading trailers or semi-trailers for agricultural purposes"]
["Level 2",4923,"Parts for the goods of classes 4921 and 4922"]
["Level 3",49231,"Parts and accessories for the goods of subclass 49210"]
["Level 3",49232,"Parts of trailers and semi-trailers; parts of other vehicles, not mechanically propelled"]
["Level 1",493,"Ships"]
["Level 2",4931,"Commercial ships and warships"]
["Level 3",49311,"Cruise ships, excursion boats and similar vessels, principally designed for the transport of persons; ferry boats of all kinds"]
["Level 3",49312,"Tankers (ships)"]
["Level 3",49313,"Refrigerator vessels (ships), except tankers"]
["Level 3",49314,"Other vessels for the transport of goods and other vessels for the transport of both persons and goods"]
["Level 3",49315,"Fishing vessels; factory ships and other vessels for processing or preserving fishery products"]
["Level 3",49316,"Tugs and pusher craft"]
["Level 3",49319,"Other vessels (including light-vessels, fire-floats, dredgers, floating cranes, floating docks, warships and lifeboats other than rowing boats), except floating or submersible drilling or production platforms"]
["Level 2",4932,"Floating or submersible drilling or production platforms"]
["Level 3",49320,"Floating or submersible drilling or production platforms"]
["Level 2",4939,"Other floating structures"]
["Level 3",49390,"Other floating structures"]
["Level 1",494,"Pleasure and sporting boats"]
["Level 2",4941,"Sailboats (except inflatable), with or without auxiliary motor"]
["Level 3",49410,"Sailboats (except inflatable), with or without auxiliary motor"]
["Level 2",4949,"Other vessels for pleasure or sports; rowing boats and canoes"]
["Level 3",49490,"Other vessels for pleasure or sports; rowing boats and canoes"]
["Level 1",495,"Railway and tramway locomotives and rolling stock, and parts thereof"]
["Level 2",4951,"Rail locomotives and locomotive tenders"]
["Level 3",49511,"Rail locomotives powered from an external source of electricity"]
["Level 3",49512,"Diesel-electric locomotives"]
["Level 3",49519,"Other rail locomotives; locomotive tenders"]
["Level 2",4952,"Self-propelled railway or tramway coaches, vans and trucks (except maintenance or service vehicles)"]
["Level 3",49520,"Self-propelled railway or tramway coaches, vans and trucks (except maintenance or service vehicles)"]
["Level 2",4953,"Other rolling stock; railway or tramway track fixtures and fittings; mechanical traffic control equipment for transport facilities"]
["Level 3",49531,"Railway or tramway maintenance or service vehicles, whether or not self-propelled"]
["Level 3",49532,"Railway or tramway passenger coaches, not self-propelled; luggage vans, post office coaches and other special-purpose railway or tramway coaches, not self-propelled (except maintenance or service vehicles)"]
["Level 3",49533,"Railway or tramway goods vans and wagons, not self-propelled"]
["Level 2",4954,"Parts of railway or tramway locomotives or rolling stock; railway or tramway track fixtures and fittings, and parts thereof; mechanical (including electromechanical) signalling, safety or traffic control equipment for railways, tramways, roads, inland wat"]
["Level 3",49540,"Parts of railway or tramway locomotives or rolling stock; railway or tramway track fixtures and fittings, and parts thereof; mechanical (including electromechanical) signalling, safety or traffic control equipment for railways, tramways, roads, inland wat"]
["Level 1",496,"Aircraft and spacecraft, and parts thereof"]
["Level 2",4961,"Balloons and dirigibles; gliders, hang gliders and other non-powered aircraft"]
["Level 3",49610,"Balloons and dirigibles; gliders, hang gliders and other non-powered aircraft"]
["Level 2",4962,"Aeroplanes and helicopters"]
["Level 3",49621,"Helicopters"]
["Level 3",49622,"Aeroplanes and other powered aircraft of an unladen weight not exceeding 2000 kg"]
["Level 3",49623,"Aeroplanes and other powered aircraft of an unladen weight exceeding 2000 kg"]
["Level 2",4963,"Spacecraft and spacecraft launch vehicles"]
["Level 3",49630,"Spacecraft and spacecraft launch vehicles"]
["Level 2",4964,"Parts of aircraft and spacecraft"]
["Level 3",49640,"Parts of aircraft and spacecraft"]
["Level 1",499,"Other transport equipment and parts thereof"]
["Level 2",4991,"Motorcycles and side-cars"]
["Level 3",49911,"Motorcycles and cycles fitted with an auxiliary motor, with reciprocating internal combustion piston engine of a cylinder capacity not exceeding 50 cc"]
["Level 3",49912,"Motorcycles and cycles fitted with an auxiliary motor, with reciprocating internal combustion piston engine of a cylinder capacity exceeding 50 cc"]
["Level 3",49913,"Motorcycles and cycles fitted with an auxiliary motor, other than those with reciprocating internal combustion piston engines; side-cars"]
["Level 2",4992,"Bicycles and invalid carriages"]
["Level 3",49921,"Bicycles and other cycles, not motorized"]
["Level 3",49922,"Invalid carriages"]
["Level 2",4993,"Vehicles n.e.c., not mechanically propelled"]
["Level 3",49930,"Vehicles n.e.c., not mechanically propelled"]
["Level 2",4994,"Parts for the goods of classes 4991 and 4992"]
["Level 3",49941,"Parts and accessories of motorcycles and side-cars"]
["Level 3",49942,"Parts and accessories of bicycles and other cycles, not motorized, and of invalid carriages"]
["Section",5,"Constructions and construction services"]
["Division",53,"Constructions"]
["Level 1",531,"Buildings"]
["Level 2",5311,"Residential buildings"]
["Level 3",53111,"One- and two-dwelling residential buildings"]
["Level 3",53112,"Multi-dwelling residential buildings"]
["Level 2",5312,"Non-residential buildings"]
["Level 3",53121,"Industrial buildings"]
["Level 3",53122,"Commercial buildings"]
["Level 3",53129,"Other non-residential buildings"]
["Level 1",532,"Civil engineering works"]
["Level 2",5321,"Highways (except elevated highways), streets, roads, railways and airfield runways"]
["Level 3",53211,"Highways (except elevated highways), streets and roads"]
["Level 3",53212,"Railways"]
["Level 3",53213,"Airfield runways"]
["Level 2",5322,"Bridges, elevated highways and tunnels"]
["Level 3",53221,"Bridges and elevated highways"]
["Level 3",53222,"Tunnels"]
["Level 2",5323,"Harbours, waterways, dams, irrigation and other waterworks"]
["Level 3",53231,"Aqueducts and other water supply conduits, except pipelines"]
["Level 3",53232,"Harbours, waterways and related facilities"]
["Level 3",53233,"Dams"]
["Level 3",53234,"Irrigation and flood control waterworks"]
["Level 2",5324,"Long-distance pipelines, communication and power lines (cables)"]
["Level 3",53241,"Long-distance pipelines"]
["Level 3",53242,"Long-distance communication and power lines (cables)"]
["Level 2",5325,"Local pipelines and cables and related works"]
["Level 3",53251,"Local pipelines"]
["Level 3",53252,"Local cables and related works"]
["Level 3",53253,"Sewage and water treatment plants"]
["Level 2",5326,"Mines and industrial plants"]
["Level 3",53261,"Mining constructions"]
["Level 3",53262,"Power plants"]
["Level 3",53269,"Other constructions for manufacturing"]
["Level 2",5327,"Outdoor sport and recreation facilities"]
["Level 3",53270,"Outdoor sport and recreation facilities"]
["Level 2",5329,"Other civil engineering works"]
["Level 3",53290,"Other civil engineering works"]
["Division",54,"Construction services"]
["Level 1",541,"General construction services of buildings"]
["Level 2",5411,"General construction services of residential buildings"]
["Level 3",54111,"General construction services of one- and two-dwelling residential buildings"]
["Level 3",54112,"General construction services of multi-dwelling residential buildings"]
["Level 2",5412,"General construction services of non-residential buildings"]
["Level 3",54121,"General construction services of industrial buildings"]
["Level 3",54122,"General construction services of commercial buildings"]
["Level 3",54129,"General construction services of other non-residential buildings"]
["Level 1",542,"General construction services of civil engineering works"]
["Level 2",5421,"General construction services of highways (except elevated highways), streets, roads, railways and airfield runways"]
["Level 3",54211,"General construction services of highways (except elevated highways), streets and roads"]
["Level 3",54212,"General construction services of railways"]
["Level 3",54213,"General construction services of airfield runways"]
["Level 2",5422,"General construction services of bridges, elevated highways and tunnels"]
["Level 3",54221,"General construction services of bridges and elevated highways"]
["Level 3",54222,"General construction services of tunnels"]
["Level 2",5423,"General construction services of harbours, waterways, dams, water mains and lines, irrigation and other waterworks"]
["Level 3",54231,"General construction services of aqueducts and other water supply conduits, except pipelines"]
["Level 3",54232,"General construction services of harbours and similar waterworks"]
["Level 3",54233,"General construction services of dams"]
["Level 3",54234,"General construction services of irrigation and flood control waterworks"]
["Level 2",5424,"General construction services of long-distance pipelines, communication and power lines (cables)"]
["Level 3",54241,"General construction services of long-distance pipelines"]
["Level 3",54242,"General construction services of long-distance communication and power lines (cables)"]
["Level 2",5425,"General construction services of local pipelines and cables and related works"]
["Level 3",54251,"General construction services of local pipelines"]
["Level 3",54252,"General construction services of local cables and related works"]
["Level 3",54253,"General construction services of sewage and water treatment plants"]
["Level 2",5426,"General construction services of mines and industrial plants"]
["Level 3",54261,"General construction services of mines"]
["Level 3",54262,"General construction services of power plants"]
["Level 3",54269,"General construction services of other industrial plants"]
["Level 2",5427,"General construction services of outdoor sport and recreation facilities"]
["Level 3",54270,"General construction services of outdoor sport and recreation facilities"]
["Level 2",5429,"General construction services of other civil engineering works"]
["Level 3",54290,"General construction services of other civil engineering works"]
["Level 1",543,"Site preparation services"]
["Level 2",5431,"Demolition services"]
["Level 3",54310,"Demolition services"]
["Level 2",5432,"Site formation and clearance services"]
["Level 3",54320,"Site formation and clearance services"]
["Level 2",5433,"Excavating and earthmoving services"]
["Level 3",54330,"Excavating and earthmoving services"]
["Level 2",5434,"Water well drilling and septic system installation services"]
["Level 3",54341,"Water well drilling services"]
["Level 3",54342,"Septic system installation services"]
["Level 1",544,"Assembly and erection of prefabricated constructions"]
["Level 2",5440,"Assembly and erection of prefabricated constructions"]
["Level 3",54400,"Assembly and erection of prefabricated constructions"]
["Level 1",545,"Special trade construction services"]
["Level 2",5451,"Pile driving and foundation services"]
["Level 3",54511,"Pile driving services"]
["Level 3",54512,"Foundation services"]
["Level 2",5452,"Construction framing services"]
["Level 3",54521,"Building framing services"]
["Level 3",54522,"Roof framing services"]
["Level 2",5453,"Roofing and waterproofing services"]
["Level 3",54530,"Roofing and waterproofing services"]
["Level 2",5454,"Concrete services"]
["Level 3",54540,"Concrete services"]
["Level 2",5455,"Structural steel erection services"]
["Level 3",54550,"Structural steel erection services"]
["Level 2",5456,"Masonry services"]
["Level 3",54560,"Masonry services"]
["Level 2",5457,"Scaffolding services"]
["Level 3",54570,"Scaffolding services"]
["Level 2",5459,"Other special trade construction services"]
["Level 3",54590,"Other special trade construction services"]
["Level 1",546,"Installation services"]
["Level 2",5461,"Electrical installation services"]
["Level 3",54611,"Electrical wiring and fitting services"]
["Level 3",54612,"Fire alarm installation services"]
["Level 3",54613,"Burglar alarm system installation services"]
["Level 3",54614,"Residential antenna installation services"]
["Level 3",54619,"Other electrical installation services"]
["Level 2",5462,"Water plumbing and drain laying services"]
["Level 3",54621,"Water plumbing services"]
["Level 3",54622,"Drain laying services"]
["Level 2",5463,"Heating, ventilation and air conditioning equipment installation services"]
["Level 3",54631,"Heating equipment installation services"]
["Level 3",54632,"Ventilation and air conditioning equipment installation services"]
["Level 2",5464,"Gas fitting installation services"]
["Level 3",54640,"Gas fitting installation services"]
["Level 2",5465,"Insulation services"]
["Level 3",54650,"Insulation services"]
["Level 2",5469,"Other installation services"]
["Level 3",54691,"Lift and escalator installation services"]
["Level 3",54699,"Other installation services n.e.c."]
["Level 1",547,"Building completion and finishing services"]
["Level 2",5471,"Glazing services"]
["Level 3",54710,"Glazing services"]
["Level 2",5472,"Plastering services"]
["Level 3",54720,"Plastering services"]
["Level 2",5473,"Painting services"]
["Level 3",54730,"Painting services"]
["Level 2",5474,"Floor and wall tiling services"]
["Level 3",54740,"Floor and wall tiling services"]
["Level 2",5475,"Other floor laying, wall covering and wall papering services"]
["Level 3",54750,"Other floor laying, wall covering and wall papering services"]
["Level 2",5476,"Joinery and carpentry services"]
["Level 3",54760,"Joinery and carpentry services"]
["Level 2",5477,"Fencing and railing services"]
["Level 3",54770,"Fencing and railing services"]
["Level 2",5479,"Other building completion and finishing services"]
["Level 3",54790,"Other building completion and finishing services"]
["Section",6,"Distributive trade services; accommodation, food and beverage serving services; transport services; and electricity, gas and water distribution services"]
["Division",61,"Wholesale trade services"]
["Level 1",611,"Wholesale trade services, except on a fee or contract basis"]
["Level 2",6111,"Wholesale trade services, except on a fee or contract basis, of agricultural raw materials and live animals"]
["Level 3",61111,"Wholesale trade services, except on a fee or contract basis, of grains and oilseeds and oleaginous fruits, seeds and animal feed"]
["Level 3",61112,"Wholesale trade services, except on a fee or contract basis, of flowers and plants"]
["Level 3",61113,"Wholesale trade services, except on a fee or contract basis, of unmanufactured tobacco"]
["Level 3",61114,"Wholesale trade services, except on a fee or contract basis, of live animals, including pet animals"]
["Level 3",61115,"Wholesale trade services, except on a fee or contract basis, of hides, skins and leather"]
["Level 3",61119,"Wholesale trade services, except on a fee or contract basis, of agricultural raw materials n.e.c."]
["Level 2",6112,"Wholesale trade services, except on a fee or contract basis, of food, beverages and tobacco"]
["Level 3",61121,"Wholesale trade services, except on a fee or contract basis, of fruit and vegetables"]
["Level 3",61122,"Wholesale trade services, except on a fee or contract basis, of dairy products, eggs and edible oils and fats"]
["Level 3",61123,"Wholesale trade services, except on a fee or contract basis, of meat, poultry and game"]
["Level 3",61124,"Wholesale trade services, except on a fee or contract basis, of fish and other seafood"]
["Level 3",61125,"Wholesale trade services, except on a fee or contract basis, of sugar confectionery and bakery products"]
["Level 3",61126,"Wholesale trade services, except on a fee or contract basis, of beverages"]
["Level 3",61127,"Wholesale trade services, except on a fee or contract basis, of coffee, tea and spices"]
["Level 3",61128,"Wholesale trade services, except on a fee or contract basis, of tobacco products"]
["Level 3",61129,"Wholesale trade services, except on a fee or contract basis, of food products n.e.c."]
["Level 2",6113,"Wholesale trade services, except on a fee or contract basis, of textiles, clothing and footwear"]
["Level 3",61131,"Wholesale trade services, except on a fee or contract basis, of yarn and fabrics"]
["Level 3",61132,"Wholesale trade services, except on a fee or contract basis, of household linens, curtains, net curtains and diverse household articles of textile materials"]
["Level 3",61133,"Wholesale trade services, except on a fee or contract basis, of articles of clothing, articles of fur and clothing accessories"]
["Level 3",61134,"Wholesale trade services, except on a fee or contract basis, of footwear"]
["Level 2",6114,"Wholesale trade services, except on a fee or contract basis, of household appliances, articles and equipment"]
["Level 3",61141,"Wholesale trade services, except on a fee or contract basis, of household furniture"]
["Level 3",61142,"Wholesale trade services, except on a fee or contract basis, of radio and television equipment and recorded audio and video disks and tapes"]
["Level 3",61143,"Wholesale trade services, except on a fee or contract basis, of articles for lighting"]
["Level 3",61144,"Wholesale trade services, except on a fee or contract basis, of household appliances"]
["Level 3",61145,"Wholesale trade services, except on a fee or contract basis, of miscellaneous household utensils, cutlery, crockery, glassware, china and pottery"]
["Level 3",61146,"Wholesale trade services, except on a fee or contract basis, of wickerwork, cork goods, cooper's ware and other wooden ware"]
["Level 2",6115,"Wholesale trade services, except on a fee or contract basis, of miscellaneous consumer goods"]
["Level 3",61151,"Wholesale trade services, except on a fee or contract basis, of books, newspapers, magazines and stationery"]
["Level 3",61152,"Wholesale trade services, except on a fee or contract basis, of photographic, optical and precision equipment"]
["Level 3",61153,"Wholesale trade services, except on a fee or contract basis, of games and toys"]
["Level 3",61154,"Wholesale trade services, except on a fee or contract basis, of watches, clocks and jewellery"]
["Level 3",61155,"Wholesale trade services, except on a fee or contract basis, of sports goods (incl. bicycles)"]
["Level 3",61156,"Wholesale trade services, except on a fee or contract basis, of leather goods and travel accessories"]
["Level 3",61159,"Wholesale trade services, except on a fee or contract basis, of miscellaneous consumer goods n.e.c."]
["Level 2",6116,"Wholesale trade services, except on a fee or contract basis, of construction materials and hardware"]
["Level 3",61161,"Wholesale trade services, except on a fee or contract basis, of construction materials and flat glass"]
["Level 3",61162,"Wholesale trade services, except on a fee or contract basis, of fittings, fixtures and ceramic sanitary fixtures"]
["Level 3",61163,"Wholesale trade services, except on a fee or contract basis, of wallpaper and floor coverings"]
["Level 3",61164,"Wholesale trade services, except on a fee or contract basis, of paints, varnishes and lacquers"]
["Level 3",61165,"Wholesale trade services, except on a fee or contract basis, of hardware and hand tools"]
["Level 2",6117,"Wholesale trade services, except on a fee or contract basis, of chemical and pharmaceutical products"]
["Level 3",61171,"Wholesale trade services, except on a fee or contract basis, of basic industrial chemicals and synthetic resins"]
["Level 3",61172,"Wholesale trade services, except on a fee or contract basis, of fertilizers and agrochemical products"]
["Level 3",61173,"Wholesale trade services, except on a fee or contract basis, of pharmaceutical products"]
["Level 3",61174,"Wholesale trade services, except on a fee or contract basis, of medical and orthopaedic goods"]
["Level 3",61175,"Wholesale trade services, except on a fee or contract basis, of perfumery articles, cosmetic articles and toilet soaps"]
["Level 3",61176,"Wholesale trade services, except on a fee or contract basis, of cleaning materials"]
["Level 2",6118,"Wholesale trade services, except on a fee or contract basis, of machinery, equipment and supplies"]
["Level 3",61181,"Wholesale trade services, except on a fee or contract basis, of motor vehicles, motorcycles, snowmobiles and related parts and accessories"]
["Level 3",61182,"Wholesale trade services, except on a fee or contract basis, of other transport equipment, except bicycles"]
["Level 3",61183,"Wholesale trade services, except on a fee or contract basis, of office machinery and equipment including office furniture"]
["Level 3",61184,"Wholesale trade services, except on a fee or contract basis, of computers and packaged software"]
["Level 3",61185,"Wholesale trade services, except on a fee or contract basis, of electronic and telecommunications equipment and parts"]
["Level 3",61186,"Wholesale trade services, except on a fee or contract basis, of agricultural lawn and garden machinery and equipment, including tractors"]
["Level 3",61187,"Wholesale trade services, except on a fee or contract basis, of mining, construction and civil engineering machinery and equipment"]
["Level 3",61188,"Wholesale trade services, except on a fee or contract basis, of other industry-specific machinery and equipment and related operating supplies"]
["Level 3",61189,"Wholesale trade services, except on a fee or contract basis, of other machinery and equipment n.e.c."]
["Level 2",6119,"Wholesale trade services, except on a fee or contract basis, of other products"]
["Level 3",61191,"Wholesale trade services, except on a fee or contract basis, of solid, liquid and gaseous fuels and related products"]
["Level 3",61192,"Wholesale trade services, except on a fee or contract basis, of metal ores and metal in primary forms"]
["Level 3",61193,"Wholesale trade services, except on a fee or contract basis, of wood in the rough"]
["Level 3",61194,"Wholesale trade services, except on a fee or contract basis, of paper and paperboard"]
["Level 3",61195,"Wholesale trade services, except on a fee or contract basis, of waste and scrap and materials for recycling"]
["Level 3",61197,"Wholesale trade services, except on a fee or contract basis, of electricity"]
["Level 3",61198,"Wholesale trade services, except on a fee or contract basis, of water"]
["Level 3",61199,"Wholesale trade services, except on a fee or contract basis, of non-metallic minerals and other products n.e.c."]
["Level 1",612,"Wholesale trade services on a fee or contract basis"]
["Level 2",6121,"Wholesale trade services on a fee or contract basis, of agricultural raw materials and live animals"]
["Level 3",61211,"Wholesale trade services on a fee or contract basis, of grains and oilseeds and oleaginous fruits, seeds and animal feed"]
["Level 3",61212,"Wholesale trade services on a fee or contract basis, of flowers and plants"]
["Level 3",61213,"Wholesale trade services on a fee or contract basis, of unmanufactured tobacco"]
["Level 3",61214,"Wholesale trade services on a fee or contract basis, of live animals, including pet animals"]
["Level 3",61215,"Wholesale trade services on a fee or contract basis, of hides, skins and leather"]
["Level 3",61219,"Wholesale trade services on a fee or contract basis, of agricultural raw materials n.e.c."]
["Level 2",6122,"Wholesale trade services on a fee or contract basis, of food, beverages and tobacco"]
["Level 3",61221,"Wholesale trade services on a fee or contract basis, of fruit and vegetables"]
["Level 3",61222,"Wholesale trade services on a fee or contract basis, of dairy products, eggs and edible oils and fats"]
["Level 3",61223,"Wholesale trade services on a fee or contract basis, of meat, poultry and game"]
["Level 3",61224,"Wholesale trade services on a fee or contract basis, of fish and other seafood"]
["Level 3",61225,"Wholesale trade services on a fee or contract basis, of sugar confectionery and bakery products"]
["Level 3",61226,"Wholesale trade services on a fee or contract basis, of beverages"]
["Level 3",61227,"Wholesale trade services on a fee or contract basis, of coffee, tea and spices"]
["Level 3",61228,"Wholesale trade services on a fee or contract basis, of tobacco products"]
["Level 3",61229,"Wholesale trade services on a fee or contract basis, of food products n.e.c."]
["Level 2",6123,"Wholesale trade services on a fee or contract basis, of textiles, clothing and footwear"]
["Level 3",61231,"Wholesale trade services on a fee or contract basis, of yarn and fabrics"]
["Level 3",61232,"Wholesale trade services on a fee or contract basis, of household linens, curtains, net curtains and diverse household articles"]
["Level 3",61233,"Wholesale trade services on a fee or contract basis, of articles of clothing, articles of fur and clothing accessories"]
["Level 3",61234,"Wholesale trade services on a fee or contract basis, of footwear"]
["Level 2",6124,"Wholesale trade services on a fee or contract basis, of household appliances, articles and equipment"]
["Level 3",61241,"Wholesale trade services on a fee or contract basis, of household furniture"]
["Level 3",61242,"Wholesale trade services on a fee or contract basis, of radio and television equipment and recorded audio and video disks and tapes"]
["Level 3",61243,"Wholesale trade services on a fee or contract basis, of articles for lighting"]
["Level 3",61244,"Wholesale trade services on a fee or contract basis, of household appliances"]
["Level 3",61245,"Wholesale trade services on a fee or contract basis, of miscellaneous household utensils, cutlery, crockery, glassware, china and pottery"]
["Level 3",61246,"Wholesale trade services on a fee or contract basis, of wickerwork, cork goods, cooper's ware and other wooden ware"]
["Level 2",6125,"Wholesale trade services on a fee or contract basis, of miscellaneous consumer goods"]
["Level 3",61251,"Wholesale trade services on a fee or contract basis, of books, newspapers, magazines and stationery"]
["Level 3",61252,"Wholesale trade services on a fee or contract basis, of photographic, optical and precision equipment"]
["Level 3",61253,"Wholesale trade services on a fee or contract basis, of games and toys"]
["Level 3",61254,"Wholesale trade services on a fee or contract basis, of watches, clocks and jewellery"]
["Level 3",61255,"Wholesale trade services on a fee or contract basis, of sports goods (incl. bicycles)"]
["Level 3",61256,"Wholesale trade services on a fee or contract basis, of leather goods and travel accessories"]
["Level 3",61259,"Wholesale trade services on a fee or contract basis, of miscellaneous consumer goods n.e.c."]
["Level 2",6126,"Wholesale trade services on a fee or contract basis, of construction materials and hardware"]
["Level 3",61261,"Wholesale trade services on a fee or contract basis, of construction materials and flat glass"]
["Level 3",61262,"Wholesale trade services on a fee or contract basis, of fittings, fixtures and ceramic sanitary fixtures"]
["Level 3",61263,"Wholesale trade services on a fee or contract basis, of wallpaper and floor coverings"]
["Level 3",61264,"Wholesale trade services on a fee or contract basis, of paints, varnishes and lacquers"]
["Level 3",61265,"Wholesale trade services on a fee or contract basis, of hardware and hand tools"]
["Level 2",6127,"Wholesale trade services on a fee or contract basis, of chemical and pharmaceutical products"]
["Level 3",61271,"Wholesale trade services on a fee or contract basis, of basic industrial chemicals and synthetic resins"]
["Level 3",61272,"Wholesale trade services on a fee or contract basis, of fertilizers and agrochemical products"]
["Level 3",61273,"Wholesale trade services on a fee or contract basis, of pharmaceutical products"]
["Level 3",61274,"Wholesale trade services on a fee or contract basis, of medical and orthopaedic goods"]
["Level 3",61275,"Wholesale trade services on a fee or contract basis, of perfumery articles, cosmetic articles and toilet soaps"]
["Level 3",61276,"Wholesale trade services on a fee or contract basis, of cleaning materials"]
["Level 2",6128,"Wholesale trade services on a fee or contract basis, of machinery, equipment and supplies"]
["Level 3",61281,"Wholesale trade services on a fee or contract basis, of motor vehicles, motorcycles, snowmobiles and related parts and accessories"]
["Level 3",61282,"Wholesale trade services on a fee or contract basis, of other transport equipment, except bicycles"]
["Level 3",61283,"Wholesale trade services on a fee or contract basis, of office machinery and equipment including office furniture"]
["Level 3",61284,"Wholesale trade services on a fee or contract basis, of computers and packaged software"]
["Level 3",61285,"Wholesale trade services on a fee or contract basis, of electronic and telecommunications equipment and parts"]
["Level 3",61286,"Wholesale trade services on a fee or contract basis, of agricultural, lawn and garden machinery and equipment, including tractors"]
["Level 3",61287,"Wholesale trade services on a fee or contract basis, of mining, construction and civil engineering machinery and equipment"]
["Level 3",61288,"Wholesale trade services on a fee or contract basis, of other industry-specific machinery and equipment and related operating supplies"]
["Level 3",61289,"Wholesale trade services on a fee or contract basis, of other machinery and equipment n.e.c."]
["Level 2",6129,"Wholesale trade services on a fee or contract basis, of other products"]
["Level 3",61291,"Wholesale trade services on a fee or contract basis, of solid, liquid and gaseous fuels and related products"]
["Level 3",61292,"Wholesale trade services on a fee or contract basis, of metal ores and metal in primary forms"]
["Level 3",61293,"Wholesale trade services on a fee or contract basis, of wood in the rough"]
["Level 3",61294,"Wholesale trade services on a fee or contract basis, of paper and paperboard"]
["Level 3",61295,"Wholesale trade services on a fee or contract basis, of waste and scrap and materials for recycling"]
["Level 3",61297,"Wholesale trade services on a fee or contract basis, of electricity"]
["Level 3",61298,"Wholesale trade services on a fee or contract basis, of water"]
["Level 3",61299,"Wholesale trade services on a fee or contract basis, of non-metallic minerals and other products n.e.c."]
["Division",62,"Retail trade services"]
["Level 1",621,"Non-specialized store retail trade services"]
["Level 2",6211,"Non-specialized store retail trade services, of agricultural raw materials and live animals"]
["Level 3",62111,"Non-specialized store retail trade services, of grains and oilseeds and oleaginous fruits, seeds and animal feed"]
["Level 3",62112,"Non-specialized store retail trade services, of flowers and plants"]
["Level 3",62114,"Non-specialized store retail trade services, of live animals, including pet animals"]
["Level 3",62115,"Non-specialized store retail trade services, of hides, skins and leather"]
["Level 3",62119,"Non-specialized store retail trade services, of agricultural raw materials n.e.c."]
["Level 2",6212,"Non-specialized store retail trade services, of food, beverages and tobacco"]
["Level 3",62121,"Non-specialized store retail trade services, of fruit and vegetables"]
["Level 3",62122,"Non-specialized store retail trade services, of dairy products, eggs and edible oils and fats"]
["Level 3",62123,"Non-specialized store retail trade services, of meat, poultry and game"]
["Level 3",62124,"Non-specialized store retail trade services, of fish and other seafood"]
["Level 3",62125,"Non-specialized store retail trade services, of sugar confectionery and bakery products"]
["Level 3",62126,"Non-specialized store retail trade services, of beverages"]
["Level 3",62127,"Non-specialized store retail trade services, of coffee, tea and spices"]
["Level 3",62128,"Non-specialized store retail trade services, of tobacco products"]
["Level 3",62129,"Non-specialized store retail trade services, of food products n.e.c."]
["Level 2",6213,"Non-specialized store retail trade services, of textiles, clothing and footwear"]
["Level 3",62131,"Non-specialized store retail trade services, of yarn and fabrics"]
["Level 3",62132,"Non-specialized store retail trade services, of household linens, curtains, net curtains and diverse household articles of textile materials"]
["Level 3",62133,"Non-specialized store retail trade services, of articles of clothing, articles of fur and clothing accessories"]
["Level 3",62134,"Non-specialized store retail trade services, of footwear"]
["Level 2",6214,"Non-specialized store retail trade services, of household appliances, articles and equipment"]
["Level 3",62141,"Non-specialized store retail trade services, of household furniture"]
["Level 3",62142,"Non-specialized store retail trade services, of radio and television equipment and recorded audio and video disks and tapes"]
["Level 3",62143,"Non-specialized store retail trade services, of articles for lighting"]
["Level 3",62144,"Non-specialized store retail trade services, of household appliances"]
["Level 3",62145,"Non-specialized store retail trade services, of miscellaneous household utensils, cutlery, crockery, glassware, china and pottery"]
["Level 3",62146,"Non-specialized store retail trade services, of wickerwork, cork goods, cooper's ware and other wooden ware"]
["Level 2",6215,"Non-specialized store retail trade services, of miscellaneous consumer goods"]
["Level 3",62151,"Non-specialized store retail trade services, of books, newspapers, magazines and stationery"]
["Level 3",62152,"Non-specialized store retail trade services, of photographic, optical and precision equipment"]
["Level 3",62153,"Non-specialized store retail trade services, of games and toys"]
["Level 3",62154,"Non-specialized store retail trade services, of watches, clocks and jewellery"]
["Level 3",62155,"Non-specialized store retail trade services, of sports goods (incl. bicycles)"]
["Level 3",62156,"Non-specialized store retail trade services, of leather goods and travel accessories"]
["Level 3",62159,"Non-specialized store retail trade services, of miscellaneous consumer goods n.e.c."]
["Level 2",6216,"Non-specialized store retail trade services, of construction materials and hardware"]
["Level 3",62161,"Non-specialized store retail trade services, of construction materials and flat glass"]
["Level 3",62162,"Non-specialized store retail trade services, of fittings, fixtures and ceramic sanitary fixtures"]
["Level 3",62163,"Non-specialized store retail trade services, of wallpaper and floor coverings"]
["Level 3",62164,"Non-specialized store retail trade services, of paints, varnishes and lacquers"]
["Level 3",62165,"Non-specialized store retail trade services, of hardware and hand tools"]
["Level 2",6217,"Non-specialized store retail trade services, of chemical and pharmaceutical products"]
["Level 3",62172,"Non-specialized store retail trade services, of fertilizers and agrochemical products"]
["Level 3",62173,"Non-specialized store retail trade services, of pharmaceutical products"]
["Level 3",62174,"Non-specialized store retail trade services, of medical and orthopaedic goods"]
["Level 3",62175,"Non-specialized store retail trade services, of perfumery articles, cosmetic articles and toilet soaps"]
["Level 3",62176,"Non-specialized store retail trade services, of cleaning materials"]
["Level 2",6218,"Non-specialized store retail trade services, of machinery, equipment and supplies"]
["Level 3",62181,"Non-specialized store retail trade services, of motor vehicles, motorcycles, snowmobiles and related parts and accessories"]
["Level 3",62182,"Non-specialized store retail trade services, of other transport equipment, except bicycles"]
["Level 3",62183,"Non-specialized store retail trade services, of office machinery and equipment including office furniture"]
["Level 3",62184,"Non-specialized store retail trade services, of computers and packaged software"]
["Level 3",62185,"Non-specialized store retail trade services, of electronic and telecommunications equipment and parts"]
["Level 3",62186,"Non-specialized store retail trade services, of agricultural, lawn and garden machinery and equipment, including tractors"]
["Level 3",62187,"Non-specialized store retail trade services, of mining, construction and civil engineering machinery and equipment"]
["Level 3",62188,"Non-specialized store retail trade services, of other industry-specific machinery and equipment and related operating supplies"]
["Level 3",62189,"Non-specialized store retail trade services, of other machinery and equipment n.e.c."]
["Level 2",6219,"Non-specialized store retail trade services, of other products"]
["Level 3",62191,"Non-specialized store retail trade services, of solid, liquid and gaseous fuels and related products"]
["Level 3",62194,"Non-specialized store retail trade services, of paper and paperboard"]
["Level 3",62199,"Non-specialized store retail trade services, of non-metallic minerals and other products n.e.c."]
["Level 1",622,"Specialized store retail trade services"]
["Level 2",6221,"Specialized store retail trade services, of agricultural raw materials and live animals"]
["Level 3",62211,"Specialized store retail trade services, of grains and oilseeds and oleaginous fruits, seeds and animal feed"]
["Level 3",62212,"Specialized store retail trade services, of flowers and plants"]
["Level 3",62214,"Specialized store retail trade services, of live animals, including pet animals"]
["Level 3",62215,"Specialized store retail trade services, of hides, skins and leather"]
["Level 3",62219,"Specialized store retail trade services, of agricultural raw materials n.e.c."]
["Level 2",6222,"Specialized store retail trade services, of food, beverages and tobacco"]
["Level 3",62221,"Specialized store retail trade services, of fruit and vegetables"]
["Level 3",62222,"Specialized store retail trade services, of dairy products, eggs and edible oils and fats"]
["Level 3",62223,"Specialized store retail trade services, of meat, poultry and game"]
["Level 3",62224,"Specialized store retail trade services, of fish and other seafood"]
["Level 3",62225,"Specialized store retail trade services, of sugar confectionery and bakery products"]
["Level 3",62226,"Specialized store retail trade services, of beverages"]
["Level 3",62227,"Specialized store retail trade services, of coffee, tea and spices"]
["Level 3",62228,"Specialized store retail trade services, of tobacco products"]
["Level 3",62229,"Specialized store retail trade services, of food products n.e.c."]
["Level 2",6223,"Specialized store retail trade services, of textiles, clothing and footwear"]
["Level 3",62231,"Specialized store retail trade services, of yarn and fabrics"]
["Level 3",62232,"Specialized store retail trade services, of household linens, curtains, net curtains and diverse household articles of textile materials"]
["Level 3",62233,"Specialized store retail trade services, of articles of clothing, articles of fur and clothing accessories"]
["Level 3",62234,"Specialized store retail trade services, of footwear"]
["Level 2",6224,"Specialized store retail trade services, of household appliances, articles and equipment"]
["Level 3",62241,"Specialized store retail trade services, of household furniture"]
["Level 3",62242,"Specialized store retail trade services, of radio and television equipment and recorded audio and video disks and tapes"]
["Level 3",62243,"Specialized store retail trade services, of articles for lighting"]
["Level 3",62244,"Specialized store retail trade services, of household appliances"]
["Level 3",62245,"Specialized store retail trade services, of miscellaneous household utensils, cutlery, crockery, glassware, china and pottery"]
["Level 3",62246,"Specialized store retail trade services, of wickerwork, cork goods, cooper's ware and other wooden ware"]
["Level 2",6225,"Specialized store retail trade services, of miscellaneous consumer goods"]
["Level 3",62251,"Specialized store retail trade services, of books, newspapers, magazines and stationery"]
["Level 3",62252,"Specialized store retail trade services, of photographic, optical and precision equipment"]
["Level 3",62253,"Specialized store retail trade services, of games and toys"]
["Level 3",62254,"Specialized store retail trade services, of watches, clocks and jewellery"]
["Level 3",62255,"Specialized store retail trade services, of sports goods (incl. bicycles)"]
["Level 3",62256,"Specialized store retail trade services, of leather goods and travel accessories"]
["Level 3",62259,"Specialized store retail trade services, of miscellaneous consumer goods n.e.c."]
["Level 2",6226,"Specialized store retail trade services, of construction materials and hardware"]
["Level 3",62261,"Specialized store retail trade services, of construction materials and flat glass"]
["Level 3",62262,"Specialized store retail trade services, of fittings, fixtures and ceramic sanitary fixtures"]
["Level 3",62263,"Specialized store retail trade services, of wallpaper and floor coverings"]
["Level 3",62264,"Specialized store retail trade services, of paints, varnishes and lacquers"]
["Level 3",62265,"Specialized store retail trade services, of hardware and hand tools"]
["Level 2",6227,"Specialized store retail trade services, of chemical and pharmaceutical products"]
["Level 3",62272,"Specialized store retail trade services, of fertilizers and agrochemical products"]
["Level 3",62273,"Specialized store retail trade services, of pharmaceutical products"]
["Level 3",62274,"Specialized store retail trade services, of medical and orthopaedic goods"]
["Level 3",62275,"Specialized store retail trade services, of perfumery articles, cosmetic articles and toilet soaps"]
["Level 3",62276,"Specialized store retail trade services, of cleaning materials"]
["Level 2",6228,"Specialized store retail trade services, of machinery, equipment and supplies"]
["Level 3",62281,"Specialized store retail trade services, of motor vehicles, motorcycles, snowmobiles and related parts and accessories"]
["Level 3",62282,"Specialized store retail trade services, of other transport equipment, except bicycles"]
["Level 3",62283,"Specialized store retail trade services, of office machinery and equipment, including office furniture"]
["Level 3",62284,"Specialized store retail trade services, of computers and packaged software"]
["Level 3",62285,"Specialized store retail trade services, of electronic and telecommunications equipment and parts"]
["Level 3",62286,"Specialized store retail trade services, of agricultural, lawn and garden machinery and equipment, including tractors"]
["Level 3",62287,"Specialized store retail trade services, of mining, construction and civil engineering machinery and equipment"]
["Level 3",62288,"Specialized store retail trade services, of other industry-specific machinery and equipment and related operating supplies"]
["Level 3",62289,"Specialized store retail trade services, of other machinery and equipment n.e.c."]
["Level 2",6229,"Specialized store retail trade services, of other products"]
["Level 3",62291,"Specialized store retail trade services, of solid, liquid and gaseous fuels and related products"]
["Level 3",62294,"Specialized store retail trade services, of paper and paperboard"]
["Level 3",62299,"Specialized store retail trade services, of non-metallic minerals and other products n.e.c."]
["Level 1",623,"Mail order or Internet retail trade services"]
["Level 2",6231,"Mail order or Internet retail trade services, of agricultural raw materials and live animals"]
["Level 3",62311,"Mail order or Internet retail trade services, of grain and oilseeds and oleaginous fruits, seeds and animal feed"]
["Level 3",62312,"Mail order or Internet retail trade services, of flowers and plants"]
["Level 3",62314,"Mail order or Internet retail trade services, of live animals, including pet animals"]
["Level 3",62315,"Mail order or Internet retail trade services, of hides, skins and leather"]
["Level 3",62319,"Mail order or Internet retail trade services, of agricultural raw materials n.e.c."]
["Level 2",6232,"Mail order or Internet retail trade services, of food, beverages and tobacco"]
["Level 3",62321,"Mail order or Internet retail trade services, of fruit and vegetables"]
["Level 3",62322,"Mail order or Internet retail trade services, of dairy products, eggs and edible oils and fats"]
["Level 3",62323,"Mail order or Internet retail trade services, of meat, poultry and game"]
["Level 3",62324,"Mail order or Internet retail trade services, of fish and other seafood"]
["Level 3",62325,"Mail order or Internet retail trade services, of sugar confectionery and bakery products"]
["Level 3",62326,"Mail order or Internet retail trade services, of beverages"]
["Level 3",62327,"Mail order or Internet retail trade services, of coffee, tea and spices"]
["Level 3",62328,"Mail order or Internet retail trade services, of tobacco products"]
["Level 3",62329,"Mail order or Internet retail trade services, of food products n.e.c."]
["Level 2",6233,"Mail order or Internet retail trade services, of textiles, clothing and footwear"]
["Level 3",62331,"Mail order or Internet retail trade services, of yarn and fabrics"]
["Level 3",62332,"Mail order or Internet retail trade services, of household linens, curtains, net curtains and diverse household articles of textile materials"]
["Level 3",62333,"Mail order or Internet retail trade services, of articles of clothing, articles of fur and clothing accessories"]
["Level 3",62334,"Mail order or Internet retail trade services, of footwear"]
["Level 2",6234,"Mail order or Internet retail trade services, of household appliances, articles and equipment"]
["Level 3",62341,"Mail order or Internet retail trade services, of household furniture"]
["Level 3",62342,"Mail order or Internet retail trade services, of radio and television equipment and recorded audio and video disks and tapes"]
["Level 3",62343,"Mail order or Internet retail trade services, of articles for lighting"]
["Level 3",62344,"Mail order or Internet retail trade services, of household appliances"]
["Level 3",62345,"Mail order or Internet retail trade services, of miscellaneous household utensils, cutlery, crockery, glassware, china and pottery"]
["Level 3",62346,"Mail order or Internet retail trade services, of wickerwork, cork goods, cooper's ware and other wooden ware"]
["Level 2",6235,"Mail order or Internet retail trade services, of miscellaneous consumer goods"]
["Level 3",62351,"Mail order or Internet retail trade services, of books, newspapers, magazines and stationery"]
["Level 3",62352,"Mail order or Internet retail trade services, of photographic, optical and precision equipment"]
["Level 3",62353,"Mail order or Internet retail trade services, of games and toys"]
["Level 3",62354,"Mail order or Internet retail trade services, of watches, clocks and jewellery"]
["Level 3",62355,"Mail order or Internet retail trade services, of sports goods (incl. bicycles)"]
["Level 3",62356,"Mail order or Internet retail trade services, of leather goods and travel accessories"]
["Level 3",62359,"Mail order or Internet retail trade services, of miscellaneous consumer goods n.e.c."]
["Level 2",6236,"Mail order or Internet retail trade services, of construction materials and hardware"]
["Level 3",62361,"Mail order or Internet retail trade services, of construction materials and flat glass"]
["Level 3",62362,"Mail order or Internet retail trade services, of fittings, fixtures and ceramic sanitary fixtures"]
["Level 3",62363,"Mail order or Internet retail trade services, of wallpaper and floor coverings"]
["Level 3",62364,"Mail order or Internet retail trade services, of paints, varnishes and lacquers"]
["Level 3",62365,"Mail order or Internet retail trade services, of hardware and hand tools"]
["Level 2",6237,"Mail order or Internet retail trade services, of chemical and pharmaceutical products"]
["Level 3",62372,"Mail order or Internet retail trade services, of fertilizers and agrochemical products"]
["Level 3",62373,"Mail order or Internet retail trade services, of pharmaceutical products"]
["Level 3",62374,"Mail order or Internet retail trade services, of medical and orthopaedic goods"]
["Level 3",62375,"Mail order or Internet retail trade services, of perfumery articles, cosmetic articles and toilet soaps"]
["Level 3",62376,"Mail order or Internet retail trade services, of cleaning materials"]
["Level 2",6238,"Mail order or Internet retail trade services, of machinery, equipment and supplies"]
["Level 3",62381,"Mail order or Internet retail trade services, of motor vehicles, motorcycles, snowmobiles and related parts and accessories"]
["Level 3",62382,"Mail order or Internet retail trade services, of other transport equipment, except bicycles"]
["Level 3",62383,"Mail order or Internet retail trade services, of office machinery and equipment including office furniture"]
["Level 3",62384,"Mail order or Internet retail trade services, of computers and packaged software"]
["Level 3",62385,"Mail order or Internet retail trade services, of electronic and telecommunications equipment and parts"]
["Level 3",62386,"Mail order or Internet retail trade services, of agricultural, lawn and garden machinery and equipment, including tractors"]
["Level 3",62387,"Mail order or Internet retail trade services, of mining, construction and civil engineering machinery and equipment"]
["Level 3",62388,"Mail order or Internet retail trade services, of other industry-specific machinery and equipment and related operating supplies"]
["Level 3",62389,"Mail order or Internet retail trade services, of other machinery and equipment n.e.c."]
["Level 2",6239,"Mail order or Internet trade services, of other products"]
["Level 3",62391,"Mail order or Internet retail trade services, of solid, liquid and gaseous fuels and related products"]
["Level 3",62394,"Mail order or Internet retail trade services, of paper and paperboard"]
["Level 3",62399,"Mail order or Internet retail trade services, of non-metallic minerals and other products n.e.c."]
["Level 1",624,"Other non-store retail trade services"]
["Level 2",6241,"Other non-store retail trade services, of agricultural raw materials and live animals"]
["Level 3",62411,"Other non-store retail trade services, of grain and oilseeds and oleaginous fruits, seeds and animal feed"]
["Level 3",62412,"Other non-store retail trade services, of flowers and plants"]
["Level 3",62414,"Other non-store retail trade services, of live animals, including pet animals"]
["Level 3",62415,"Other non-store retail trade services, of hides, skins and leather"]
["Level 3",62419,"Other non-store retail trade services, of agricultural raw materials n.e.c."]
["Level 2",6242,"Other non-store retail trade services, of food, beverages and tobacco"]
["Level 3",62421,"Other non-store retail trade services, of fruit and vegetables"]
["Level 3",62422,"Other non-store retail trade services, of dairy products, eggs and edible oils and fats"]
["Level 3",62423,"Other non-store retail trade services, of meat, poultry and game"]
["Level 3",62424,"Other non-store retail trade services, of fish and other seafood"]
["Level 3",62425,"Other non-store retail trade services, of sugar confectionery and bakery products"]
["Level 3",62426,"Other non-store retail trade services, of beverages"]
["Level 3",62427,"Other non-store retail trade services, of coffee, tea and spices"]
["Level 3",62428,"Other non-store retail trade services, of tobacco products"]
["Level 3",62429,"Other non-store retail trade services, of food products n.e.c."]
["Level 2",6243,"Other non-store retail trade services, of textiles, clothing and footwear"]
["Level 3",62431,"Other non-store retail trade services, of yarn and fabrics"]
["Level 3",62432,"Other non-store retail trade services, of household linens, curtains, net curtains and diverse household articles of textile materials"]
["Level 3",62433,"Other non-store retail trade services, of articles of clothing, articles of fur and clothing accessories"]
["Level 3",62434,"Other non-store retail trade services, of footwear"]
["Level 2",6244,"Other non-store retail trade services, of household appliances, articles and equipment"]
["Level 3",62441,"Other non-store retail trade services, of household furniture"]
["Level 3",62442,"Other non-store retail trade services, of radio and television equipment and recorded audio and video disks and tapes"]
["Level 3",62443,"Other non-store retail trade services, of articles for lighting"]
["Level 3",62444,"Other non-store retail trade services, of household appliances"]
["Level 3",62445,"Other non-store retail trade services, of miscellaneous household utensils, cutlery, crockery, glassware, china and pottery"]
["Level 3",62446,"Other non-store retail trade services, of wickerwork, cork goods, cooper's ware and other wooden ware"]
["Level 2",6245,"Other non-store retail trade services, of miscellaneous consumer goods"]
["Level 3",62451,"Other non-store retail trade services, of books, newspapers, magazines and stationery"]
["Level 3",62452,"Other non-store retail trade services, of photographic, optical and precision equipment"]
["Level 3",62453,"Other non-store retail trade services, of games and toys"]
["Level 3",62454,"Other non-store retail trade services, of watches, clocks and jewellery"]
["Level 3",62455,"Other non-store retail trade services, of sports goods (incl. bicycles)"]
["Level 3",62456,"Other non-store retail trade services, of leather goods and travel accessories"]
["Level 3",62459,"Other non-store retail trade services, of miscellaneous consumer goods n.e.c."]
["Level 2",6246,"Other non-store retail trade services, of construction materials and hardware"]
["Level 3",62461,"Other non-store retail trade services, of construction materials and flat glass"]
["Level 3",62462,"Other non-store retail trade services, of fittings, fixtures and ceramic sanitary fixtures"]
["Level 3",62463,"Other non-store retail trade services, of wallpaper and floor coverings"]
["Level 3",62464,"Other non-store retail trade services, of paints, varnishes and lacquers"]
["Level 3",62465,"Other non-store retail trade services, of hardware and hand tools"]
["Level 2",6247,"Other non-store retail trade services, of chemical and pharmaceutical products"]
["Level 3",62472,"Other non-store retail trade services, of fertilizers and agrochemical products"]
["Level 3",62473,"Other non-store retail trade services, of pharmaceutical products"]
["Level 3",62474,"Other non-store retail trade services, of medical and orthopaedic goods"]
["Level 3",62475,"Other non-store retail trade services, of perfumery articles, cosmetic articles and toilet soaps"]
["Level 3",62476,"Other non-store retail trade services, of cleaning materials"]
["Level 2",6248,"Other non-store retail trade services, of machinery, equipment and supplies"]
["Level 3",62481,"Other non-store retail trade services, of motor vehicles, motorcycles, snowmobiles and related parts and accessories"]
["Level 3",62482,"Other non-store retail trade services, of other transport equipment, except bicycles"]
["Level 3",62483,"Other non-store retail trade services, of office machinery and equipment including office furniture"]
["Level 3",62484,"Other non-store retail trade services, of computers and packaged software"]
["Level 3",62485,"Other non-store retail trade services, of electronic and telecommunications equipment and parts"]
["Level 3",62486,"Other non-store retail trade services, of agricultural, lawn and garden machinery and equipment, including tractors"]
["Level 3",62487,"Other non-store retail trade services, of mining, construction and civil engineering machinery and equipment"]
["Level 3",62488,"Other non-store retail trade services, of other industry-specific machinery and equipment and related operating supplies"]
["Level 3",62489,"Other non-store retail trade services, of other machinery and equipment n.e.c."]
["Level 2",6249,"Other non-store retail trade services, of other products"]
["Level 3",62491,"Other non-store retail trade services, of solid, liquid and gaseous fuels and related products"]
["Level 3",62494,"Other non-store retail trade services, of paper and paperboard"]
["Level 3",62497,"Other non-store retail trade services, of electricity"]
["Level 3",62498,"Other non-store retail trade services, of water"]
["Level 3",62499,"Other non-store retail trade services, of non-metallic minerals and other products n.e.c."]
["Level 1",625,"Retail trade services on a fee or contract basis"]
["Level 2",6251,"Retail trade services on a fee or contract basis, of agricultural raw materials and live animals"]
["Level 3",62511,"Retail trade services on a fee or contract basis, of grains and oilseeds and oleaginous fruits, seeds and animal feed"]
["Level 3",62512,"Retail trade services on a fee or contract basis, of flowers and plants"]
["Level 3",62514,"Retail trade services on a fee or contract basis, of live animals, including pet animals"]
["Level 3",62515,"Retail trade services on a fee or contract basis, of hides, skins and leather"]
["Level 3",62519,"Retail trade services on a fee or contract basis, of agricultural raw materials n.e.c."]
["Level 2",6252,"Retail trade services on a fee or contract basis, of food, beverages and tobacco"]
["Level 3",62521,"Retail trade services on a fee or contract basis, of fruit and vegetables"]
["Level 3",62522,"Retail trade services on a fee or contract basis, of dairy products, eggs and edible oils and fats"]
["Level 3",62523,"Retail trade services on a fee or contract basis, of meat, poultry and game"]
["Level 3",62524,"Retail trade services on a fee or contract basis, of fish and other seafood"]
["Level 3",62525,"Retail trade services on a fee or contract basis, of sugar confectionery and bakery products"]
["Level 3",62526,"Retail trade services on a fee or contract basis, of beverages"]
["Level 3",62527,"Retail trade services on a fee or contract basis, of coffee, tea and spices"]
["Level 3",62528,"Retail trade services on a fee or contract basis, of tobacco products"]
["Level 3",62529,"Retail trade services on a fee or contract basis, of food products n.e.c."]
["Level 2",6253,"Retail trade services on a fee or contract basis, of textiles, clothing and footwear"]
["Level 3",62531,"Retail trade services on a fee or contract basis, of yarn and fabrics"]
["Level 3",62532,"Retail trade services on a fee or contract basis, of household linens, curtains, net curtains and diverse household articles of textile materials"]
["Level 3",62533,"Retail trade services on a fee or contract basis, of articles of clothing, articles of fur and clothing accessories"]
["Level 3",62534,"Retail trade services on a fee or contract basis, of footwear"]
["Level 2",6254,"Retail trade services on a fee or contract basis, of household appliances, articles and equipment"]
["Level 3",62541,"Retail trade services on a fee or contract basis, of household furniture"]
["Level 3",62542,"Retail trade services on a fee or contract basis, of radio and television equipment and recorded audio and video disks and tapes"]
["Level 3",62543,"Retail trade services on a fee or contract basis, of articles for lighting"]
["Level 3",62544,"Retail trade services on a fee or contract basis, of household appliances"]
["Level 3",62545,"Retail trade services on a fee or contract basis, of miscellaneous household utensils, cutlery, crockery, glassware, china and pottery"]
["Level 3",62546,"Retail trade services on a fee or contract basis, of wickerwork, cork goods, cooper's ware and other wooden ware"]
["Level 2",6255,"Retail trade services on a fee or contract basis, of miscellaneous consumer goods"]
["Level 3",62551,"Retail trade services on a fee or contract basis, of books, newspapers, magazines and stationery"]
["Level 3",62552,"Retail trade services on a fee or contract basis, of photographic, optical and precision equipment"]
["Level 3",62553,"Retail trade services on a fee or contract basis, of games and toys"]
["Level 3",62554,"Retail trade services on a fee or contract basis, of watches, clocks and jewellery"]
["Level 3",62555,"Retail trade services on a fee or contract basis, of sports goods (incl. bicycles)"]
["Level 3",62556,"Retail trade services on a fee or contract basis, of leather goods and travel accessories"]
["Level 3",62559,"Retail trade services on a fee or contract basis, of miscellaneous consumer goods n.e.c."]
["Level 2",6256,"Retail trade services on a fee or contract basis, of construction materials and hardware"]
["Level 3",62561,"Retail trade services on a fee or contract basis, of construction materials and flat glass"]
["Level 3",62562,"Retail trade services on a fee or contract basis, of fittings, fixtures, and ceramic sanitary fixtures"]
["Level 3",62563,"Retail trade services on a fee or contract basis, of wallpaper and floor coverings"]
["Level 3",62564,"Retail trade services on a fee or contract basis, of paints, varnishes and lacquers"]
["Level 3",62565,"Retail trade services on a fee or contract basis, of hardware and hand tools"]
["Level 2",6257,"Retail trade services on a fee or contract basis, of chemical and pharmaceutical products"]
["Level 3",62572,"Retail trade services on a fee or contract basis, of fertilizers and agrochemical products"]
["Level 3",62573,"Retail trade services on a fee or contract basis, of pharmaceutical products"]
["Level 3",62574,"Retail trade services on a fee or contract basis, of medical and orthopaedic goods"]
["Level 3",62575,"Retail trade services on a fee or contract basis, of perfumery articles, cosmetic articles and toilet soaps"]
["Level 3",62576,"Retail trade services on a fee or contract basis, of cleaning materials"]
["Level 2",6258,"Retail trade services on a fee or contract basis, of machinery, equipment and supplies"]
["Level 3",62581,"Retail trade services on a fee or contract basis, of motor vehicles, motorcycles, snowmobiles and related parts and accessories"]
["Level 3",62582,"Retail trade services on a fee or contract basis, of other transport equipment, except bicycles"]
["Level 3",62583,"Retail trade services on a fee or contract basis, of office machinery and equipment including office furniture"]
["Level 3",62584,"Retail trade services on a fee or contract basis, of computers and packaged software"]
["Level 3",62585,"Retail trade services on a fee or contract basis, of electronic and telecommunications equipment and parts"]
["Level 3",62586,"Retail trade services on a fee or contract basis, of agricultural, lawn and garden machinery and equipment, including tractors"]
["Level 3",62587,"Retail trade services on a fee or contract basis, of mining, construction and civil engineering machinery and equipment"]
["Level 3",62588,"Retail trade services on a fee or contract basis, of other industry-specific machinery and equipment and related operating supplies"]
["Level 3",62589,"Retail trade services on a fee or contract basis, of other machinery and equipment n.e.c."]
["Level 2",6259,"Retail trade services on a fee or contract basis, of other products"]
["Level 3",62591,"Retail trade services on a fee or contract basis, of solid, liquid and gaseous fuels and related products"]
["Level 3",62594,"Retail trade services on a fee or contract basis, of paper and paperboard"]
["Level 3",62597,"Retail trade services on a fee or contract basis, of electricity"]
["Level 3",62598,"Retail trade services on a fee or contract basis, of water"]
["Level 3",62599,"Retail trade services on a fee or contract basis, of non-metallic minerals and other products n.e.c."]
["Division",63,"Accommodation, food and beverage services"]
["Level 1",631,"Accommodation services for visitors"]
["Level 2",6311,"Room or unit accommodation services for visitors"]
["Level 3",63111,"Room or unit accommodation services for visitors, with daily housekeeping services"]
["Level 3",63112,"Room or unit accommodation services for visitors, without daily housekeeping services"]
["Level 3",63113,"Room or unit accommodation services for visitors, in time-share properties"]
["Level 3",63114,"Accommodation services for visitors, in rooms for multiple occupancy"]
["Level 2",6312,"Camp site services"]
["Level 3",63120,"Camp site services"]
["Level 2",6313,"Recreational and vacation camp services"]
["Level 3",63130,"Recreational and vacation camp services"]
["Level 1",632,"Other accommodation services for visitors and others"]
["Level 2",6321,"Room or unit accommodation services for students in student residences"]
["Level 3",63210,"Room or unit accommodation services for students in student residences"]
["Level 2",6322,"Room or unit accommodation services for workers in workers hostels or camps"]
["Level 3",63220,"Room or unit accommodation services for workers in workers hostels or camps"]
["Level 2",6329,"Other room or unit accommodation services n.e.c."]
["Level 3",63290,"Other room or unit accommodation services n.e.c."]
["Level 1",633,"Food serving services"]
["Level 2",6331,"Meal serving services with full restaurant services"]
["Level 3",63310,"Meal serving services with full restaurant services"]
["Level 2",6332,"Meal serving services with limited services"]
["Level 3",63320,"Meal serving services with limited services"]
["Level 2",6339,"Event catering and other food serving services"]
["Level 3",63391,"Event catering services"]
["Level 3",63392,"Contract food services for transportation operators"]
["Level 3",63393,"Other contract food services"]
["Level 3",63399,"Other food serving services"]
["Level 1",634,"Beverage serving services"]
["Level 2",6340,"Beverage serving services"]
["Level 3",63400,"Beverage serving services"]
["Division",64,"Passenger transport services"]
["Level 1",641,"Local transport and sightseeing transportation services of passengers"]
["Level 2",6411,"Urban and suburban land transport services of passengers"]
["Level 3",64111,"Urban and suburban railway transport services of passengers"]
["Level 3",64112,"Urban and suburban scheduled road transport services of passengers"]
["Level 3",64113,"Mixed mode urban and suburban transportation services of passengers"]
["Level 3",64114,"Local special-purpose scheduled road transport services of passengers"]
["Level 3",64115,"Taxi services"]
["Level 3",64116,"Rental services of passenger cars with operator"]
["Level 3",64117,"Road transport services of passengers by man- or animal-drawn vehicles"]
["Level 3",64118,"Non-scheduled local bus and coach charter services"]
["Level 3",64119,"Other land transportation services of passengers, n.e.c."]
["Level 2",6412,"Local water transport services of passengers"]
["Level 3",64121,"Inland water transport services of passengers by ferries"]
["Level 3",64122,"Inland water transport services of passengers on cruises"]
["Level 3",64129,"Other inland water transport services of passengers"]
["Level 2",6413,"Sightseeing transportation services"]
["Level 3",64131,"Sightseeing services by rail"]
["Level 3",64132,"Sightseeing services by land, except rail"]
["Level 3",64133,"Sightseeing services by water"]
["Level 3",64134,"Sightseeing services by air"]
["Level 1",642,"Long-distance transport services of passengers"]
["Level 2",6421,"Interurban railway transport services of passengers"]
["Level 3",64210,"Interurban railway transport services of passengers"]
["Level 2",6422,"Interurban road transport services of passengers"]
["Level 3",64221,"Interurban scheduled road transport services of passengers"]
["Level 3",64222,"Interurban special-purpose scheduled road transport services of passengers"]
["Level 3",64223,"Non-scheduled long-distance bus and coach services"]
["Level 2",6423,"Long-distance water transport services of passengers"]
["Level 3",64231,"Coastal and transoceanic water transport services of passengers by ferries"]
["Level 3",64232,"Coastal and transoceanic water transport services of passengers on cruise ships"]
["Level 3",64239,"Other coastal and transoceanic water transport services of passengers"]
["Level 2",6424,"Air transport services of passengers"]
["Level 3",64241,"Domestic scheduled air transport services of passengers"]
["Level 3",64242,"Domestic non-scheduled air transport services of passengers"]
["Level 3",64243,"International scheduled air transport services of passengers"]
["Level 3",64244,"International non-scheduled air transport services of passengers"]
["Level 2",6425,"Space transport services of passengers"]
["Level 3",64250,"Space transport services of passengers"]
["Division",65,"Freight transport services"]
["Level 1",651,"Land transport services of freight"]
["Level 2",6511,"Road transport services of freight"]
["Level 3",65111,"Road transport services of freight by refrigerator vehicles"]
["Level 3",65112,"Road transport services of freight by tank trucks or semi-trailers"]
["Level 3",65113,"Road transport services of intermodal containers"]
["Level 3",65114,"Road transport services of freight by man- or animal-drawn vehicles"]
["Level 3",65115,"Moving services of household and office furniture and other goods"]
["Level 3",65116,"Road transport services of letters and parcels"]
["Level 3",65117,"Road transport services of dry bulk"]
["Level 3",65118,"Road transport services of live animals"]
["Level 3",65119,"Other road transport services of freight"]
["Level 2",6512,"Railway transport services of freight"]
["Level 3",65121,"Railway transport services of freight by refrigerator cars"]
["Level 3",65122,"Railway transport services of freight by tanker cars"]
["Level 3",65123,"Railway transport services of intermodal containers"]
["Level 3",65124,"Railway transport services of letters and parcels"]
["Level 3",65125,"Railway transport services of dry bulk goods"]
["Level 3",65126,"Railway transport services of live animals"]
["Level 3",65129,"Other railway transport services of freight"]
["Level 2",6513,"Transport services via pipeline"]
["Level 3",65131,"Transport services via pipeline of petroleum and natural gas"]
["Level 3",65139,"Transport services via pipeline of other goods"]
["Level 1",652,"Water transport services of freight"]
["Level 2",6521,"Coastal and transoceanic water transport services of freight"]
["Level 3",65211,"Coastal and transoceanic water transport services of freight by refrigerator vessels"]
["Level 3",65212,"Coastal and transoceanic water transport services of freight by tankers"]
["Level 3",65213,"Coastal and transoceanic water transport services of intermodal containers by container ships"]
["Level 3",65219,"Other coastal and transoceanic water transport services of other freight"]
["Level 2",6522,"Inland water transport services of freight"]
["Level 3",65221,"Inland water transport services of freight by refrigerator vessels"]
["Level 3",65222,"Inland water transport services of freight by tankers"]
["Level 3",65229,"Other inland water transport services of freight"]
["Level 1",653,"Air and space transport services of freight"]
["Level 2",6531,"Air transport services of freight"]
["Level 3",65311,"Air transport services of letters and parcels"]
["Level 3",65319,"Air transport services of other freight"]
["Level 2",6532,"Space transport services of freight"]
["Level 3",65320,"Space transport services of freight"]
["Division",66,"Rental services of transport vehicles with operators"]
["Level 1",660,"Rental services of transport vehicles with operators"]
["Level 2",6601,"Rental services of road vehicles with operators"]
["Level 3",66011,"Rental services of buses and coaches with operator"]
["Level 3",66012,"Rental services of trucks with operator"]
["Level 2",6602,"Rental services of water vessels with operator"]
["Level 3",66021,"Rental services of passenger vessels for coastal and transoceanic water transport with operator"]
["Level 3",66022,"Rental services of freight vessels for coastal and transoceanic water transport with operator"]
["Level 3",66023,"Rental services of passenger vessels for inland water transport with operator"]
["Level 3",66024,"Rental services of freight vessels for inland water transport with operator"]
["Level 2",6603,"Rental services of aircraft with operator"]
["Level 3",66031,"Rental services of passenger aircraft with operator"]
["Level 3",66032,"Rental services of freight aircraft with operator"]
["Division",67,"Supporting transport services"]
["Level 1",671,"Cargo handling services"]
["Level 2",6711,"Container handling services"]
["Level 3",67110,"Container handling services"]
["Level 2",6719,"Other cargo and baggage handling services"]
["Level 3",67190,"Other cargo and baggage handling services"]
["Level 1",672,"Storage and warehousing services"]
["Level 2",6721,"Refrigerated storage services"]
["Level 3",67210,"Refrigerated storage services"]
["Level 2",6722,"Bulk liquid or gas storage services"]
["Level 3",67220,"Bulk liquid or gas storage services"]
["Level 2",6729,"Other storage and warehousing services"]
["Level 3",67290,"Other storage and warehousing services"]
["Level 1",673,"Supporting services for railway transport"]
["Level 2",6731,"Railway pushing or towing services"]
["Level 3",67310,"Railway pushing or towing services"]
["Level 2",6739,"Other supporting services for railway transport"]
["Level 3",67390,"Other supporting services for railway transport"]
["Level 1",674,"Supporting services for road transport"]
["Level 2",6741,"Bus station services"]
["Level 3",67410,"Bus station services"]
["Level 2",6742,"Highway, bridge and tunnel operation services"]
["Level 3",67420,"Highway, bridge and tunnel operation services"]
["Level 2",6743,"Parking lot services"]
["Level 3",67430,"Parking lot services"]
["Level 2",6744,"Towing services for commercial and private vehicles"]
["Level 3",67440,"Towing services for commercial and private vehicles"]
["Level 2",6749,"Other supporting services for road transport"]
["Level 3",67490,"Other supporting services for road transport"]
["Level 1",675,"Supporting services for water transport"]
["Level 2",6751,"Port and waterway operation services (excl. cargo handling)"]
["Level 3",67511,"Port and waterway operation services (excl. cargo handling), on coastal and transoceanic waters"]
["Level 3",67512,"Inland waterway operation services (excl. cargo handling)"]
["Level 2",6752,"Pilotage and berthing services"]
["Level 3",67521,"Pilotage and berthing services on coastal and transoceanic waters"]
["Level 3",67522,"Pilotage and berthing services in inland waters"]
["Level 2",6753,"Vessel salvage and refloating services"]
["Level 3",67531,"Vessel salvage and refloating services on coastal and transoceanic waters"]
["Level 3",67532,"Vessel salvage and refloating services in inland waters"]
["Level 2",6759,"Other supporting services for water transport"]
["Level 3",67590,"Other supporting services for water transport"]
["Level 1",676,"Supporting services for air or space transport"]
["Level 2",6761,"Airport operation services (excl. cargo handling)"]
["Level 3",67610,"Airport operation services (excl. cargo handling)"]
["Level 2",6762,"Air traffic control services"]
["Level 3",67620,"Air traffic control services"]
["Level 2",6763,"Other supporting services for air transport"]
["Level 3",67630,"Other supporting services for air transport"]
["Level 2",6764,"Supporting services for space transport"]
["Level 3",67640,"Supporting services for space transport"]
["Level 1",679,"Other supporting transport services"]
["Level 2",6791,"Freight transport agency services and other freight transport services"]
["Level 3",67910,"Freight transport agency services and other freight transport services"]
["Level 2",6799,"Other supporting transport services n.e.c."]
["Level 3",67990,"Other supporting transport services n.e.c."]
["Division",68,"Postal and courier services"]
["Level 1",681,"Postal and courier services"]
["Level 2",6811,"Postal services"]
["Level 3",68111,"Postal services related to letters"]
["Level 3",68112,"Postal services related to parcels"]
["Level 3",68113,"Post office counter services"]
["Level 3",68119,"Other postal services"]
["Level 2",6812,"Courier services"]
["Level 3",68120,"Courier services"]
["Level 2",6813,"Local delivery services"]
["Level 3",68130,"Local delivery services"]
["Division",69,"Electricity, gas and water distribution (on own account)"]
["Level 1",691,"Electricity and gas distribution (on own account)"]
["Level 2",6911,"Electricity transmission and distribution (on own account)"]
["Level 3",69111,"Transmission of electricity (on own account)"]
["Level 3",69112,"Distribution of electricity (on own account)"]
["Level 2",6912,"Gas distribution through mains (on own account)"]
["Level 3",69120,"Gas distribution through mains (on own account)"]
["Level 1",692,"Water distribution (on own account)"]
["Level 2",6921,"Water distribution through mains, except steam and hot water (on own account)"]
["Level 3",69210,"Water distribution through mains, except steam and hot water (on own account)"]
["Level 2",6922,"Distribution of steam, hot water and air conditioning supply through mains (on own account)"]
["Level 3",69220,"Distribution of steam, hot water and air conditioning supply through mains (on own account)"]
["Level 2",6923,"Water distribution, except through mains (on own account)"]
["Level 3",69230,"Water distribution, except through mains (on own account)"]
["Section",7,"Financial and related services; real estate services; and rental and leasing services"]
["Division",71,"Financial and related services"]
["Level 1",711,"Financial services, except investment banking, insurance services and pension services"]
["Level 2",7111,"Central banking services"]
["Level 3",71110,"Central banking services"]
["Level 2",7112,"Deposit services"]
["Level 3",71121,"Deposit services to corporate and institutional depositors"]
["Level 3",71122,"Deposit services to other depositors"]
["Level 2",7113,"Credit-granting services"]
["Level 3",71131,"Residential mortgage loan services"]
["Level 3",71132,"Non-residential mortgage loan services"]
["Level 3",71133,"Personal non-mortgage loan services for non-business purposes"]
["Level 3",71134,"Credit card loan services"]
["Level 3",71135,"Non-mortgage loan services for business purposes"]
["Level 3",71139,"Other credit-granting services"]
["Level 2",7114,"Financial leasing services"]
["Level 3",71140,"Financial leasing services"]
["Level 2",7119,"Other financial services, except investment banking, insurance services and pension services"]
["Level 3",71190,"Other financial services, except investment banking, insurance services and pension services"]
["Level 1",712,"Investment banking services"]
["Level 2",7120,"Investment banking services"]
["Level 3",71200,"Investment banking services"]
["Level 1",713,"Insurance and pension services (excluding reinsurance services), except compulsory social security services"]
["Level 2",7131,"Life insurance and pension services (excluding reinsurance services)"]
["Level 3",71311,"Life insurance services"]
["Level 3",71312,"Individual pension services"]
["Level 3",71313,"Group pension services"]
["Level 2",7132,"Accident and health insurance services"]
["Level 3",71321,"Accidental death and dismemberment insurance services"]
["Level 3",71322,"Health insurance services"]
["Level 2",7133,"Other non-life insurance services (excluding reinsurance services)"]
["Level 3",71331,"Motor vehicle insurance services"]
["Level 3",71332,"Marine, aviation, and other transport insurance services"]
["Level 3",71333,"Freight insurance services"]
["Level 3",71334,"Other property insurance services"]
["Level 3",71335,"General liability insurance services"]
["Level 3",71336,"Credit and surety insurance services"]
["Level 3",71337,"Travel insurance services"]
["Level 3",71339,"Other non-life insurance services"]
["Level 1",714,"Reinsurance services"]
["Level 2",7141,"Life reinsurance services"]
["Level 3",71410,"Life reinsurance services"]
["Level 2",7142,"Accident and health reinsurance services"]
["Level 3",71420,"Accident and health reinsurance services"]
["Level 2",7143,"Other non-life reinsurance services"]
["Level 3",71431,"Motor vehicle reinsurance services"]
["Level 3",71432,"Marine, aviation and other transport reinsurance services"]
["Level 3",71433,"Freight reinsurance services"]
["Level 3",71434,"Other property reinsurance services"]
["Level 3",71435,"General liability reinsurance services"]
["Level 3",71436,"Credit and surety reinsurance services"]
["Level 3",71439,"Other non-life reinsurance services"]
["Level 1",715,"Services auxiliary to financial services other than to insurance and pensions"]
["Level 2",7151,"Services related to investment banking"]
["Level 3",71511,"Mergers and acquisition services"]
["Level 3",71512,"Corporate finance and venture capital services"]
["Level 3",71519,"Other services related to investment banking"]
["Level 2",7152,"Brokerage and related securities and commodities services"]
["Level 3",71521,"Securities brokerage services"]
["Level 3",71522,"Commodity brokerage services"]
["Level 3",71523,"Processing and clearing services of securities transactions"]
["Level 2",7153,"Portfolio management services except pension funds"]
["Level 3",71530,"Portfolio management services except pension funds"]
["Level 2",7154,"Trust and custody services"]
["Level 3",71541,"Trust services"]
["Level 3",71542,"Custody services"]
["Level 2",7155,"Services related to the administration of financial markets"]
["Level 3",71551,"Financial market operational services"]
["Level 3",71552,"Financial market regulatory services"]
["Level 3",71559,"Other financial market administration services"]
["Level 2",7159,"Other services auxiliary to financial services"]
["Level 3",71591,"Financial consultancy services"]
["Level 3",71592,"Foreign exchange services"]
["Level 3",71593,"Financial transactions processing and clearinghouse services"]
["Level 3",71599,"Other services auxiliary to financial services n.e.c."]
["Level 1",716,"Services auxiliary to insurance and pensions"]
["Level 2",7161,"Insurance brokerage and agency services"]
["Level 3",71610,"Insurance brokerage and agency services"]
["Level 2",7162,"Insurance claims adjustment services"]
["Level 3",71620,"Insurance claims adjustment services"]
["Level 2",7163,"Actuarial services"]
["Level 3",71630,"Actuarial services"]
["Level 2",7164,"Pension fund management services"]
["Level 3",71640,"Pension fund management services"]
["Level 2",7169,"Other services auxiliary to insurance and pensions"]
["Level 3",71690,"Other services auxiliary to insurance and pensions"]
["Level 1",717,"Services of holding financial assets"]
["Level 2",7170,"Services of holding financial assets"]
["Level 3",71701,"Services of holding equity of subsidiary companies"]
["Level 3",71702,"Services of holding securities and other assets of trusts and funds and similar financial entities"]
["Division",72,"Real estate services"]
["Level 1",721,"Real estate services involving own or leased property"]
["Level 2",7211,"Rental or leasing services involving own or leased property"]
["Level 3",72111,"Rental or leasing services involving own or leased residential property"]
["Level 3",72112,"Rental or leasing services involving own or leased non-residential property"]
["Level 2",7212,"Trade services of buildings"]
["Level 3",72121,"Trade services of residential buildings"]
["Level 3",72122,"Trade services of non-residential buildings"]
["Level 3",72123,"Trade services of time-share properties"]
["Level 2",7213,"Trade services of vacant and subdivided land"]
["Level 3",72130,"Trade services of vacant and subdivided land"]
["Level 1",722,"Real estate services on a fee or contract basis"]
["Level 2",7221,"Property management services on a fee or contract basis"]
["Level 3",72211,"Residential property management services on a fee or contract basis except of time-share ownership properties"]
["Level 3",72212,"Non-residential property management services on a fee or contract basis"]
["Level 3",72213,"Time-share property management services on a fee or contract basis"]
["Level 2",7222,"Building sales on a fee or contract basis"]
["Level 3",72221,"Residential building sales on a fee or contract basis, except of time-share ownership properties"]
["Level 3",72222,"Non-residential building sales on a fee or contract basis"]
["Level 3",72223,"Sale of time-share properties on a fee or contract basis"]
["Level 2",7223,"Land sales on a fee or contract basis"]
["Level 3",72230,"Land sales on a fee or contract basis"]
["Level 2",7224,"Real estate appraisal services on a fee or contract basis"]
["Level 3",72240,"Real estate appraisal services on a fee or contract basis"]
["Division",73,"Leasing or rental services without operator"]
["Level 1",731,"Leasing or rental services concerning machinery and equipment without operator"]
["Level 2",7311,"Leasing or rental services concerning transport equipment without operator"]
["Level 3",73111,"Leasing or rental services concerning cars and light vans without operator"]
["Level 3",73112,"Leasing or rental services concerning goods transport motor vehicles without operator"]
["Level 3",73113,"Leasing or rental services concerning railroad vehicles without operator"]
["Level 3",73114,"Leasing or rental services concerning other land transport equipment without operator"]
["Level 3",73115,"Leasing or rental services concerning vessels without operator"]
["Level 3",73116,"Leasing or rental services concerning aircraft without operator"]
["Level 3",73117,"Leasing or rental services concerning containers"]
["Level 2",7312,"Leasing or rental services concerning other machinery and equipment without operator"]
["Level 3",73121,"Leasing or rental services concerning agricultural machinery and equipment without operator"]
["Level 3",73122,"Leasing or rental services concerning construction machinery and equipment without operator"]
["Level 3",73123,"Leasing or rental services concerning office machinery and equipment (except computers) without operator"]
["Level 3",73124,"Leasing or rental services concerning computers without operator"]
["Level 3",73125,"Leasing or rental services concerning telecommunications equipment without operator"]
["Level 3",73129,"Leasing or rental services concerning other machinery and equipment without operator n.e.c."]
["Level 1",732,"Leasing or rental services concerning other goods"]
["Level 2",7321,"Leasing or rental services concerning televisions, radios, video cassette recorders and related equipment and accessories"]
["Level 3",73210,"Leasing or rental services concerning televisions, radios, video cassette recorders and related equipment and accessories"]
["Level 2",7322,"Leasing or rental services concerning video tapes and disks"]
["Level 3",73220,"Leasing or rental services concerning video tapes and disks"]
["Level 2",7323,"Leasing or rental services concerning furniture and other household appliances"]
["Level 3",73230,"Leasing or rental services concerning furniture and other household appliances"]
["Level 2",7324,"Leasing or rental services concerning pleasure and leisure equipment"]
["Level 3",73240,"Leasing or rental services concerning pleasure and leisure equipment"]
["Level 2",7325,"Leasing or rental services concerning household linen"]
["Level 3",73250,"Leasing or rental services concerning household linen"]
["Level 2",7326,"Leasing or rental services concerning textiles, clothing and footwear"]
["Level 3",73260,"Leasing or rental services concerning textiles, clothing and footwear"]
["Level 2",7327,"Leasing or rental services concerning do-it-yourself machinery and equipment"]
["Level 3",73270,"Leasing or rental services concerning do-it-yourself machinery and equipment"]
["Level 2",7329,"Leasing or rental services concerning other goods n.e.c."]
["Level 3",73290,"Leasing or rental services concerning other goods n.e.c."]
["Level 1",733,"Licensing services for the right to use intellectual property and similar products"]
["Level 2",7331,"Licensing services for the right to use computer software and databases"]
["Level 3",73311,"Licensing services for the right to use computer software"]
["Level 3",73312,"Licensing services for the right to use databases"]
["Level 2",7332,"Licensing services for the right to use entertainment, literary or artistic originals"]
["Level 3",73320,"Licensing services for the right to use entertainment, literary or artistic originals"]
["Level 2",7333,"Licensing services for the right to use R&D products"]
["Level 3",73330,"Licensing services for the right to use R&D products"]
["Level 2",7334,"Licensing services for the right to use trademarks and franchises"]
["Level 3",73340,"Licensing services for the right to use trademarks and franchises"]
["Level 2",7335,"Licensing services for the right to use mineral exploration and evaluation"]
["Level 3",73350,"Licensing services for the right to use mineral exploration and evaluation"]
["Level 2",7339,"Licensing services for the right to use other intellectual property products"]
["Level 3",73390,"Licensing services for the right to use other intellectual property products"]
["Section",8,"Business and production services"]
["Division",81,"Research and development services"]
["Level 1",811,"Research and experimental development services in natural sciences and engineering"]
["Level 2",8111,"Research and experimental development services in natural sciences"]
["Level 3",81111,"Research and experimental development services in physical sciences"]
["Level 3",81112,"Research and experimental development services in chemistry and biology"]
["Level 3",81119,"Research and experimental development services in other natural sciences"]
["Level 2",8112,"Research and experimental development services in engineering and technology"]
["Level 3",81121,"Research and experimental development services in biotechnology"]
["Level 3",81129,"Research and experimental development services in other engineering and technology"]
["Level 2",8113,"Research and experimental development services in medical sciences and pharmacy"]
["Level 3",81130,"Research and experimental development services in medical sciences and pharmacy"]
["Level 2",8114,"Research and experimental development services in agricultural sciences"]
["Level 3",81140,"Research and experimental development services in agricultural sciences"]
["Level 1",812,"Research and experimental development services in social sciences and humanities"]
["Level 2",8121,"Research and experimental development services in social sciences"]
["Level 3",81211,"Research and experimental development services in psychology"]
["Level 3",81212,"Research and experimental development services in economics"]
["Level 3",81213,"Research and experimental development services in law"]
["Level 3",81219,"Research and experimental development services in other social sciences"]
["Level 2",8122,"Research and experimental development services in humanities"]
["Level 3",81221,"Research and experimental development services in languages and literature"]
["Level 3",81229,"Research and experimental development services in other humanities"]
["Level 1",813,"Interdisciplinary research and experimental development services"]
["Level 2",8130,"Interdisciplinary research and experimental development services"]
["Level 3",81300,"Interdisciplinary research and experimental development services"]
["Level 1",814,"Research and development originals"]
["Level 2",8140,"Research and development originals"]
["Level 3",81400,"Research and development originals"]
["Division",82,"Legal and accounting services"]
["Level 1",821,"Legal services"]
["Level 2",8211,"Legal advisory and representation services concerning criminal law"]
["Level 3",82110,"Legal advisory and representation services concerning criminal law"]
["Level 2",8212,"Legal advisory and representation services concerning other fields of law"]
["Level 3",82120,"Legal advisory and representation services concerning other fields of law"]
["Level 2",8213,"Legal documentation and certification services"]
["Level 3",82130,"Legal documentation and certification services"]
["Level 2",8219,"Other legal services"]
["Level 3",82191,"Arbitration and conciliation services"]
["Level 3",82199,"Other legal services n.e.c."]
["Level 1",822,"Accounting, auditing and bookkeeping services"]
["Level 2",8221,"Financial auditing services"]
["Level 3",82210,"Financial auditing services"]
["Level 2",8222,"Accounting and bookkeeping services"]
["Level 3",82221,"Accounting services"]
["Level 3",82222,"Bookkeeping services"]
["Level 3",82223,"Payroll services"]
["Level 1",823,"Tax consultancy and preparation services"]
["Level 2",8231,"Corporate tax consulting and preparation services"]
["Level 3",82310,"Corporate tax consulting and preparation services"]
["Level 2",8232,"Individual tax preparation and planning services"]
["Level 3",82320,"Individual tax preparation and planning services"]
["Level 1",824,"Insolvency and receivership services"]
["Level 2",8240,"Insolvency and receivership services"]
["Level 3",82400,"Insolvency and receivership services"]
["Division",83,"Other professional, technical and business services"]
["Level 1",831,"Management consulting and management services; information technology services"]
["Level 2",8311,"Management consulting and management services"]
["Level 3",83111,"Strategic management consulting services"]
["Level 3",83112,"Financial management consulting services"]
["Level 3",83113,"Human resources management consulting services"]
["Level 3",83114,"Marketing management consulting services"]
["Level 3",83115,"Operations management consulting services"]
["Level 3",83116,"Supply chain and other management consulting services"]
["Level 3",83117,"Business process management services"]
["Level 3",83118,"Head office services"]
["Level 2",8312,"Business consulting services"]
["Level 3",83121,"Public relations services"]
["Level 3",83129,"Other business consulting services"]
["Level 2",8313,"Information technology (IT) consulting and support services"]
["Level 3",83131,"IT consulting services"]
["Level 3",83132,"IT support services"]
["Level 2",8314,"Information technology (IT) design and development services"]
["Level 3",83141,"IT design and development services for applications"]
["Level 3",83142,"IT design and development services for networks and systems"]
["Level 3",83143,"Software originals"]
["Level 2",8315,"Hosting and information technology (IT) infrastructure provisioning services"]
["Level 3",83151,"Website hosting services"]
["Level 3",83152,"Application service provisioning"]
["Level 3",83159,"Other hosting and IT infrastructure provisioning services"]
["Level 2",8316,"IT infrastructure and network management services"]
["Level 3",83161,"Network management services"]
["Level 3",83162,"Computer systems management services"]
["Level 2",8319,"Other management services, except construction project management services"]
["Level 3",83190,"Other management services, except construction project management services"]
["Level 1",832,"Architectural services, urban and land planning and landscape architectural services"]
["Level 2",8321,"Architectural services and advisory services"]
["Level 3",83211,"Architectural advisory services"]
["Level 3",83212,"Architectural services for residential building projects"]
["Level 3",83213,"Architectural services for non-residential building projects"]
["Level 3",83214,"Historical restoration architectural services"]
["Level 2",8322,"Urban and land planning services"]
["Level 3",83221,"Urban planning services"]
["Level 3",83222,"Rural land planning services"]
["Level 3",83223,"Project site master planning services"]
["Level 2",8323,"Landscape architectural services and advisory services"]
["Level 3",83231,"Landscape architectural advisory services"]
["Level 3",83232,"Landscape architectural services"]
["Level 1",833,"Engineering services"]
["Level 2",8331,"Engineering advisory services"]
["Level 3",83310,"Engineering advisory services"]
["Level 2",8332,"Engineering services for specific projects"]
["Level 3",83321,"Engineering services for building projects"]
["Level 3",83322,"Engineering services for industrial and manufacturing projects"]
["Level 3",83323,"Engineering services for transportation projects"]
["Level 3",83324,"Engineering services for power projects"]
["Level 3",83325,"Engineering services for telecommunications and broadcasting projects"]
["Level 3",83326,"Engineering services for waste management projects (hazardous and non-hazardous)"]
["Level 3",83327,"Engineering services for water, sewerage and drainage projects"]
["Level 3",83329,"Engineering services for other projects"]
["Level 2",8333,"Project management services for construction projects"]
["Level 3",83330,"Project management services for construction projects"]
["Level 1",834,"Scientific and other technical services"]
["Level 2",8341,"Geological, geophysical and other prospecting services"]
["Level 3",83411,"Geological and geophysical consulting services"]
["Level 3",83412,"Geophysical services"]
["Level 3",83413,"Mineral exploration and evaluation"]
["Level 2",8342,"Surface surveying and map-making services"]
["Level 3",83421,"Surface surveying services"]
["Level 3",83422,"Map-making services"]
["Level 2",8343,"Weather forecasting and meteorological services"]
["Level 3",83430,"Weather forecasting and meteorological services"]
["Level 2",8344,"Technical testing and analysis services"]
["Level 3",83441,"Composition and purity testing and analysis services"]
["Level 3",83442,"Testing and analysis services of physical properties"]
["Level 3",83443,"Testing and analysis services of integrated mechanical and electrical systems"]
["Level 3",83444,"Technical inspection services of road transport vehicles"]
["Level 3",83449,"Other technical testing and analysis services"]
["Level 1",835,"Veterinary services"]
["Level 2",8351,"Veterinary services for pet animals"]
["Level 3",83510,"Veterinary services for pet animals"]
["Level 2",8352,"Veterinary services for livestock"]
["Level 3",83520,"Veterinary services for livestock"]
["Level 2",8359,"Other veterinary services"]
["Level 3",83590,"Other veterinary services"]
["Level 1",836,"Advertising services and provision of advertising space or time"]
["Level 2",8361,"Advertising services"]
["Level 3",83611,"Full service advertising"]
["Level 3",83612,"Direct marketing and direct mail services"]
["Level 3",83619,"Other advertising services"]
["Level 2",8362,"Purchase or sale of advertising space or time, on commission"]
["Level 3",83620,"Purchase or sale of advertising space or time, on commission"]
["Level 2",8363,"Sale of advertising space or time (except on commission)"]
["Level 3",83631,"Sale of advertising space in print media (except on commission)"]
["Level 3",83632,"Sale of TV/radio advertising time (except on commission)"]
["Level 3",83633,"Sale of Internet advertising space (except on commission)"]
["Level 3",83639,"Sale of other advertising space or time (except on commission)"]
["Level 1",837,"Market research and public opinion polling services"]
["Level 2",8370,"Market research and public opinion polling services"]
["Level 3",83700,"Market research and public opinion polling services"]
["Level 1",838,"Photography services and photographic processing services"]
["Level 2",8381,"Photography services and event videography services"]
["Level 3",83811,"Portrait photography services"]
["Level 3",83812,"Advertising and related photography services"]
["Level 3",83813,"Event photography and event videography services"]
["Level 3",83814,"Specialty photography services"]
["Level 3",83815,"Restoration and retouching services of photography"]
["Level 3",83819,"Other photography services"]
["Level 2",8382,"Photographic processing services"]
["Level 3",83820,"Photographic processing services"]
["Level 1",839,"Other professional, technical and business services n.e.c."]
["Level 2",8391,"Specialty design services"]
["Level 3",83911,"Interior design services"]
["Level 3",83912,"Industrial design services"]
["Level 3",83919,"Other specialty design services"]
["Level 2",8392,"Design originals"]
["Level 3",83920,"Design originals"]
["Level 2",8393,"Scientific and technical consulting services n.e.c."]
["Level 3",83931,"Environmental consulting services"]
["Level 3",83939,"Other scientific and technical consulting services n.e.c."]
["Level 2",8394,"Original compilations of facts/information"]
["Level 3",83940,"Original compilations of facts/information"]
["Level 2",8395,"Translation and interpretation services"]
["Level 3",83950,"Translation and interpretation services"]
["Level 2",8396,"Trademarks and franchises"]
["Level 3",83960,"Trademarks and franchises"]
["Level 2",8399,"All other professional, technical and business services, n.e.c."]
["Level 3",83990,"All other professional, technical and business services, n.e.c."]
["Division",84,"Telecommunications, broadcasting and information supply services"]
["Level 1",841,"Telephony and other telecommunications services"]
["Level 2",8411,"Carrier services"]
["Level 3",84110,"Carrier services"]
["Level 2",8412,"Fixed telephony services"]
["Level 3",84121,"Fixed telephony services - access and use"]
["Level 3",84122,"Fixed telephony services - calling features"]
["Level 2",8413,"Mobile telecommunications services"]
["Level 3",84131,"Mobile telecommunications services - access and use"]
["Level 3",84132,"Mobile telecommunications services - calling features"]
["Level 2",8414,"Private network services"]
["Level 3",84140,"Private network services"]
["Level 2",8415,"Data transmission services"]
["Level 3",84150,"Data transmission services"]
["Level 2",8419,"Other telecommunications services"]
["Level 3",84190,"Other telecommunications services"]
["Level 1",842,"Internet telecommunications services"]
["Level 2",8421,"Internet backbone services"]
["Level 3",84210,"Internet backbone services"]
["Level 2",8422,"Internet access services"]
["Level 3",84221,"Narrowband Internet access services"]
["Level 3",84222,"Broadband Internet access services"]
["Level 2",8429,"Other Internet telecommunications services"]
["Level 3",84290,"Other Internet telecommunications services"]
["Level 1",843,"On-line content"]
["Level 2",8431,"On-line text based information"]
["Level 3",84311,"On-line books"]
["Level 3",84312,"On-line newspapers and periodicals"]
["Level 3",84313,"On-line directories and mailing lists"]
["Level 2",8432,"On-line audio content"]
["Level 3",84321,"Musical audio downloads"]
["Level 3",84322,"Streamed audio content"]
["Level 2",8433,"On-line video content"]
["Level 3",84331,"Films and other video downloads"]
["Level 3",84332,"Streamed video content"]
["Level 2",8434,"Software downloads"]
["Level 3",84341,"System software downloads"]
["Level 3",84342,"Application software downloads"]
["Level 2",8439,"Other on-line content"]
["Level 3",84391,"On-line games"]
["Level 3",84392,"On-line software"]
["Level 3",84393,"On-line adult content"]
["Level 3",84394,"Web search portal content"]
["Level 3",84399,"Other on-line content n.e.c."]
["Level 1",844,"News agency services"]
["Level 2",8441,"News agency services to newspapers and periodicals"]
["Level 3",84410,"News agency services to newspapers and periodicals"]
["Level 2",8442,"News agency services to audiovisual media"]
["Level 3",84420,"News agency services to audiovisual media"]
["Level 1",845,"Library and archive services"]
["Level 2",8451,"Library services"]
["Level 3",84510,"Library services"]
["Level 2",8452,"Archive services"]
["Level 3",84520,"Archive services"]
["Level 1",846,"Broadcasting, programming and programme distribution services"]
["Level 2",8461,"Radio and television broadcast originals"]
["Level 3",84611,"Radio broadcast originals"]
["Level 3",84612,"Television broadcast originals"]
["Level 2",8462,"Radio and television channel programmes"]
["Level 3",84621,"Radio channel programmes"]
["Level 3",84622,"Television channel programmes"]
["Level 2",8463,"Broadcasting services and multi-channel progamme distribution services"]
["Level 3",84631,"Broadcasting services"]
["Level 3",84632,"Home programme distribution services, basic programming package"]
["Level 3",84633,"Home programme distribution services, discretionary programming package"]
["Level 3",84634,"Home programme distribution services, pay-per-view"]
["Division",85,"Support services"]
["Level 1",851,"Employment services"]
["Level 2",8511,"Personnel search and referral services"]
["Level 3",85111,"Executive/retained search services"]
["Level 3",85112,"Permanent placement services, other than executive search services"]
["Level 2",8512,"Labour supply services"]
["Level 3",85121,"Contract staffing services"]
["Level 3",85122,"Temporary staffing services"]
["Level 3",85123,"Long-term staffing (payrolling) services"]
["Level 3",85124,"Temporary staffing-to-permanent placement services"]
["Level 3",85125,"Co-employment staffing services"]
["Level 1",852,"Investigation and security services"]
["Level 2",8521,"Investigation services"]
["Level 3",85210,"Investigation services"]
["Level 2",8522,"Security consulting services"]
["Level 3",85220,"Security consulting services"]
["Level 2",8523,"Security systems services"]
["Level 3",85230,"Security systems services"]
["Level 2",8524,"Armoured car services"]
["Level 3",85240,"Armoured car services"]
["Level 2",8525,"Guard services"]
["Level 3",85250,"Guard services"]
["Level 2",8529,"Other security services"]
["Level 3",85290,"Other security services"]
["Level 1",853,"Cleaning services"]
["Level 2",8531,"Disinfecting and exterminating services"]
["Level 3",85310,"Disinfecting and exterminating services"]
["Level 2",8532,"Window cleaning services"]
["Level 3",85320,"Window cleaning services"]
["Level 2",8533,"General cleaning services"]
["Level 3",85330,"General cleaning services"]
["Level 2",8534,"Specialized cleaning services"]
["Level 3",85340,"Specialized cleaning services"]
["Level 1",854,"Packaging services"]
["Level 2",8540,"Packaging services"]
["Level 3",85400,"Packaging services"]
["Level 1",855,"Travel arrangement, tour operator and related services"]
["Level 2",8551,"Reservation services for transportation"]
["Level 3",85511,"Reservation services for air transportation"]
["Level 3",85512,"Reservation services for rail transportation"]
["Level 3",85513,"Reservation services for bus transportation"]
["Level 3",85514,"Reservation services for vehicle rental"]
["Level 3",85519,"Other transportation arrangement and reservation services n.e.c."]
["Level 2",8552,"Reservation services for accommodation, cruises and package tours"]
["Level 3",85521,"Reservation services for accommodation"]
["Level 3",85522,"Time-share exchange services"]
["Level 3",85523,"Reservation services for cruises"]
["Level 3",85524,"Reservation services for package tours"]
["Level 2",8553,"Other reservation services"]
["Level 3",85531,"Reservation services for convention centres, congress centres and exhibition halls"]
["Level 3",85539,"Reservation services for event tickets, entertainment and recreational services and other reservation services"]
["Level 2",8554,"Tour operator services"]
["Level 3",85540,"Tour operator services"]
["Level 2",8555,"Tourist guide services"]
["Level 3",85550,"Tourist guide services"]
["Level 2",8556,"Tourism promotion and visitor information services"]
["Level 3",85561,"Tourism promotion services"]
["Level 3",85562,"Visitor information services"]
["Level 1",859,"Other support services"]
["Level 2",8591,"Credit reporting services"]
["Level 3",85910,"Credit reporting services"]
["Level 2",8592,"Collection agency services"]
["Level 3",85920,"Collection agency services"]
["Level 2",8593,"Telephone-based support services"]
["Level 3",85931,"Telephone call centre services"]
["Level 3",85939,"Other telephone-based support services"]
["Level 2",8594,"Combined office administrative services"]
["Level 3",85940,"Combined office administrative services"]
["Level 2",8595,"Specialized office support services"]
["Level 3",85951,"Duplicating services"]
["Level 3",85952,"Mailing list compilation services"]
["Level 3",85953,"Mailing services"]
["Level 3",85954,"Document preparation and other specialized office support services"]
["Level 2",8596,"Convention and trade show assistance and organization services"]
["Level 3",85961,"Convention assistance and organization services"]
["Level 3",85962,"Trade show assistance and organization services"]
["Level 2",8597,"Landscape care and maintenance services"]
["Level 3",85970,"Landscape care and maintenance services"]
["Level 2",8599,"Other information and support services n.e.c."]
["Level 3",85991,"Other information services"]
["Level 3",85999,"Other support services n.e.c."]
["Division",86,"Support services to agriculture, hunting, forestry, fishing, mining and utilities"]
["Level 1",861,"Support services to agriculture, hunting, forestry and fishing"]
["Level 2",8611,"Support services to crop production"]
["Level 3",86111,"Post-harvest crop services"]
["Level 3",86112,"Seed processing services"]
["Level 3",86119,"Other support services to crop production"]
["Level 2",8612,"Animal husbandry services"]
["Level 3",86121,"Farm animal husbandry services"]
["Level 3",86129,"Other animal husbandry services"]
["Level 2",8613,"Support services to hunting"]
["Level 3",86130,"Support services to hunting"]
["Level 2",8614,"Support services to forestry and logging"]
["Level 3",86140,"Support services to forestry and logging"]
["Level 2",8615,"Support services to fishing"]
["Level 3",86150,"Support services to fishing"]
["Level 1",862,"Support services to mining"]
["Level 2",8621,"Support services to mining"]
["Level 3",86211,"Support services to oil and gas extraction"]
["Level 3",86219,"Support services to other mining"]
["Level 1",863,"Support services to electricity, gas and water distribution"]
["Level 2",8631,"Support services to electricity transmission and distribution"]
["Level 3",86311,"Electricity transmission services (on a fee or contract basis)"]
["Level 3",86312,"Electricity distribution services (on a fee or contract basis)"]
["Level 2",8632,"Gas distribution services through mains (on a fee or contract basis)"]
["Level 3",86320,"Gas distribution services through mains (on a fee or contract basis)"]
["Level 2",8633,"Water distribution services through mains (on a fee or contract basis)"]
["Level 3",86330,"Water distribution services through mains (on a fee or contract basis)"]
["Level 2",8634,"Distribution services of steam, hot water and air-conditioning supply through mains (on a fee or contract basis)"]
["Level 3",86340,"Distribution services of steam, hot water and air-conditioning supply through mains (on a fee or contract basis)"]
["Level 2",8635,"Water distribution services, except through mains (on a fee or contract basis)"]
["Level 3",86350,"Water distribution services, except through mains (on a fee or contract basis)"]
["Division",87,"Maintenance, repair and installation (except construction) services"]
["Level 1",871,"Maintenance and repair services of fabricated metal products, machinery and equipment"]
["Level 2",8711,"Maintenance and repair services of fabricated metal products, except machinery and equipment"]
["Level 3",87110,"Maintenance and repair services of fabricated metal products, except machinery and equipment"]
["Level 2",8712,"Maintenance and repair services of office and accounting machinery"]
["Level 3",87120,"Maintenance and repair services of office and accounting machinery"]
["Level 2",8713,"Maintenance and repair services of computers and peripheral equipment"]
["Level 3",87130,"Maintenance and repair services of computers and peripheral equipment"]
["Level 2",8714,"Maintenance and repair of transport machinery and equipment"]
["Level 3",87141,"Maintenance and repair services of motor vehicles"]
["Level 3",87142,"Maintenance and repair services of motorcycles"]
["Level 3",87143,"Maintenance and repair services of trailers, semi-trailers and other motor vehicles n.e.c."]
["Level 3",87149,"Maintenance and repair services of other transport equipment"]
["Level 2",8715,"Maintenance and repair services of other machinery and equipment"]
["Level 3",87151,"Maintenance and repair services of electrical household appliances"]
["Level 3",87152,"Maintenance and repair services of electrical machinery and apparatus n.e.c."]
["Level 3",87153,"Maintenance and repair services of telecommunication equipment and apparatus"]
["Level 3",87154,"Maintenance and repair services of medical, precision and optical instruments"]
["Level 3",87155,"Maintenance and repair services of consumer electronics"]
["Level 3",87156,"Maintenance and repair services of commercial and industrial machinery"]
["Level 3",87157,"Maintenance and repair services of elevators and escalators"]
["Level 3",87159,"Maintenance and repair services of other equipment"]
["Level 1",872,"Repair services of other goods"]
["Level 2",8721,"Repair services of footwear and leather goods"]
["Level 3",87210,"Repair services of footwear and leather goods"]
["Level 2",8722,"Repair services of watches, clocks and jewellery"]
["Level 3",87220,"Repair services of watches, clocks and jewellery"]
["Level 2",8723,"Repair services of garments and household textiles"]
["Level 3",87230,"Repair services of garments and household textiles"]
["Level 2",8724,"Repair services of furniture"]
["Level 3",87240,"Repair services of furniture"]
["Level 2",8729,"Maintenance and repair services of other goods n.e.c."]
["Level 3",87290,"Maintenance and repair services of other goods n.e.c."]
["Level 1",873,"Installation services (other than construction)"]
["Level 2",8731,"Installation services of fabricated metal products, except machinery and equipment"]
["Level 3",87310,"Installation services of fabricated metal products, except machinery and equipment"]
["Level 2",8732,"Installation services of industrial, manufacturing and service industry machinery and equipment"]
["Level 3",87320,"Installation services of industrial, manufacturing and service industry machinery and equipment"]
["Level 2",8733,"Installation services of office and accounting machinery and computers"]
["Level 3",87331,"Installation services of mainframe computers"]
["Level 3",87332,"Installation services of personal computers and peripheral equipment"]
["Level 3",87333,"Installation services of office and accounting machinery"]
["Level 2",8734,"Installation services of radio, television and communications equipment and apparatus"]
["Level 3",87340,"Installation services of radio, television and communications equipment and apparatus"]
["Level 2",8735,"Installation services of professional medical machinery and equipment, and precision and optical instruments"]
["Level 3",87350,"Installation services of professional medical machinery and equipment, and precision and optical instruments"]
["Level 2",8736,"Installation services of electrical machinery and apparatus n.e.c."]
["Level 3",87360,"Installation services of electrical machinery and apparatus n.e.c."]
["Level 2",8739,"Installation services of other goods n.e.c."]
["Level 3",87390,"Installation services of other goods n.e.c."]
["Division",88,"Manufacturing services on physical inputs owned by others"]
["Level 1",881,"Food, beverage and tobacco manufacturing services"]
["Level 2",8811,"Meat processing services"]
["Level 3",88110,"Meat processing services"]
["Level 2",8812,"Fish processing services"]
["Level 3",88120,"Fish processing services"]
["Level 2",8813,"Fruit and vegetables processing services"]
["Level 3",88130,"Fruit and vegetables processing services"]
["Level 2",8814,"Vegetable and animal oil and fat manufacturing services"]
["Level 3",88140,"Vegetable and animal oil and fat manufacturing services"]
["Level 2",8815,"Dairy product manufacturing services"]
["Level 3",88150,"Dairy product manufacturing services"]
["Level 2",8816,"Other food product manufacturing services"]
["Level 3",88161,"Grain mill product manufacturing services"]
["Level 3",88162,"Starch and starch product manufacturing services"]
["Level 3",88163,"Bakery product manufacturing services"]
["Level 3",88164,"Sugar manufacturing services"]
["Level 3",88165,"Cocoa, chocolate and sugar confectionery manufacturing services"]
["Level 3",88166,"Macaroni, noodles, couscous and similar farinaceous products manufacturing services"]
["Level 3",88167,"Prepared meals and dishes manufacturing services"]
["Level 3",88169,"Other food product manufacturing services n.e.c."]
["Level 2",8817,"Prepared animal feeds manufacturing services"]
["Level 3",88170,"Prepared animal feeds manufacturing services"]
["Level 2",8818,"Beverage manufacturing services"]
["Level 3",88181,"Distilled alcoholic beverage manufacturing services"]
["Level 3",88182,"Wine manufacturing services"]
["Level 3",88183,"Malt and malt liquor manufacturing services"]
["Level 3",88184,"Soft drink manufacturing services"]
["Level 2",8819,"Tobacco manufacturing services"]
["Level 3",88190,"Tobacco manufacturing services"]
["Level 1",882,"Textile, wearing apparel and leather manufacturing services"]
["Level 2",8821,"Textile manufacturing services"]
["Level 3",88211,"Textile fibre manufacturing services"]
["Level 3",88212,"Textile weaving services"]
["Level 3",88213,"Textile finishing services"]
["Level 3",88214,"Knitted and crocheted fabric manufacturing services"]
["Level 3",88215,"Made-up textile article manufacturing services"]
["Level 3",88216,"Carpet and rug manufacturing services"]
["Level 3",88217,"Cordage, rope, twine and netting manufacturing services"]
["Level 3",88219,"Other textile manufacturing services n.e.c."]
["Level 2",8822,"Wearing apparel manufacturing services"]
["Level 3",88221,"Wearing apparel manufacturing services, except fur apparel"]
["Level 3",88222,"Fur apparel manufacturing services"]
["Level 3",88223,"Knitted and crocheted apparel manufacturing services"]
["Level 2",8823,"Leather and leather product manufacturing services"]
["Level 3",88231,"Leather tanning and dressing services; fur dressing and dyeing services"]
["Level 3",88232,"Luggage manufacturing services"]
["Level 3",88233,"Footwear manufacturing services"]
["Level 1",883,"Wood and paper manufacturing services"]
["Level 2",8831,"Wood and wood product manufacturing services"]
["Level 3",88311,"Wood manufacturing services"]
["Level 3",88312,"Veneer sheet and wood panel manufacturing services"]
["Level 3",88313,"Carpentry manufacturing services"]
["Level 3",88314,"Wooden containers manufacturing services"]
["Level 3",88319,"Other wood product manufacturing services"]
["Level 2",8832,"Paper and paper product manufacturing services"]
["Level 3",88321,"Pulp, paper and paperboard manufacturing services"]
["Level 3",88322,"Corrugated paper and paperboard manufacturing services"]
["Level 3",88329,"Other paper article manufacturing services"]
["Level 1",884,"Petroleum, chemical and pharmaceutical product manufacturing services"]
["Level 2",8841,"Coke and refined petroleum product manufacturing services"]
["Level 3",88411,"Coke oven products manufacturing services"]
["Level 3",88412,"Refined petroleum products manufacturing services"]
["Level 2",8842,"Chemical product manufacturing services"]
["Level 3",88421,"Basic chemicals manufacturing services"]
["Level 3",88422,"Fertilizer manufacturing services"]
["Level 3",88423,"Plastics and rubber manufacturing services"]
["Level 3",88424,"Agrochemical product manufacturing services"]
["Level 3",88425,"Paint manufacturing services"]
["Level 3",88426,"Soap, detergents, cleaning preparation and perfume manufacturing services"]
["Level 3",88427,"Other chemical products manufacturing services n.e.c."]
["Level 3",88429,"Man-made fibre manufacturing services"]
["Level 2",8843,"Pharmaceutical product manufacturing services"]
["Level 3",88430,"Pharmaceutical product manufacturing services"]
["Level 1",885,"Rubber, plastic and other non-metallic mineral product manufacturing services"]
["Level 2",8851,"Rubber product manufacturing services"]
["Level 3",88511,"Tyre manufacturing services"]
["Level 3",88512,"Other rubber product manufacturing services"]
["Level 2",8852,"Plastic product manufacturing services"]
["Level 3",88520,"Plastic product manufacturing services"]
["Level 2",8853,"Other non-metallic mineral product manufacturing services"]
["Level 3",88531,"Glass manufacturing services"]
["Level 3",88532,"Refractory product manufacturing services"]
["Level 3",88533,"Clay building material manufacturing services"]
["Level 3",88534,"Other porcelain and ceramic product manufacturing services"]
["Level 3",88535,"Cement, lime and plaster manufacturing services"]
["Level 3",88536,"Concrete, cement and plaster article manufacturing services"]
["Level 3",88537,"Stone cutting, shaping and finishing services"]
["Level 3",88539,"Other non-metallic mineral product manufacturing services n.e.c."]
["Level 1",886,"Basic metal manufacturing services"]
["Level 2",8860,"Basic metal manufacturing services"]
["Level 3",88601,"Basic iron and steel manufacturing services"]
["Level 3",88602,"Basic precious and other non-ferrous metal manufacturing services"]
["Level 1",887,"Fabricated metal product, machinery and equipment manufacturing services"]
["Level 2",8871,"Structural metal product, tank, reservoir and steam generator manufacturing services"]
["Level 3",88711,"Structural metal product manufacturing services"]
["Level 3",88712,"Tank, reservoir and metal container manufacturing services"]
["Level 3",88713,"Steam generator manufacturing services"]
["Level 2",8872,"Weapon and ammunition manufacturing services"]
["Level 3",88720,"Weapon and ammunition manufacturing services"]
["Level 2",8873,"Other fabricated metal product manufacturing and metal treatment services"]
["Level 3",88731,"Metal treatment and coating services"]
["Level 3",88732,"General machining services"]
["Level 3",88733,"Cutlery, hand tool and general hardware manufacturing services"]
["Level 3",88739,"Other fabricated metal product manufacturing services n.e.c."]
["Level 2",8874,"Computer, electronic and optical product manufacturing services"]
["Level 3",88741,"Electronic component and board manufacturing services"]
["Level 3",88742,"Computer and peripheral equipment manufacturing services"]
["Level 3",88743,"Communication equipment manufacturing services"]
["Level 3",88744,"Consumer electronics manufacturing services"]
["Level 3",88745,"Measuring, testing, navigating and control equipment manufacturing services"]
["Level 3",88746,"Watch and clock manufacturing services"]
["Level 3",88747,"Irradiation, electromedical and electrotherapeutic equipment manufacturing services"]
["Level 3",88748,"Optical instrument and photographic equipment manufacturing services"]
["Level 3",88749,"Magnetic and optical media manufacturing services"]
["Level 2",8875,"Electrical equipment manufacturing services"]
["Level 3",88751,"Electric motor, generator, transformer and electricity distribution and control apparatus manufacturing services"]
["Level 3",88752,"Battery and accumulator manufacturing services"]
["Level 3",88753,"Fibre optic cable manufacturing services"]
["Level 3",88754,"Other electronic and electric wire and cable manufacturing services"]
["Level 3",88755,"Wiring device manufacturing services"]
["Level 3",88756,"Electric lighting equipment manufacturing services"]
["Level 3",88757,"Domestic appliance manufacturing services"]
["Level 3",88759,"Other electrical equipment manufacturing services"]
["Level 2",8876,"General-purpose machinery manufacturing services"]
["Level 3",88761,"Engines and turbine manufacturing services"]
["Level 3",88762,"Fluid power equipment manufacturing services"]
["Level 3",88763,"Other pump, compressor, tap and valve manufacturing services"]
["Level 3",88764,"Bearing, gear, gearing and driving element manufacturing services"]
["Level 3",88765,"Oven, furnace and furnace burner manufacturing services"]
["Level 3",88766,"Lifting and handling equipment manufacturing services"]
["Level 3",88767,"Office machinery and equipment (except computers and peripheral equipment) manufacturing services"]
["Level 3",88768,"Power-driven hand tool manufacturing services"]
["Level 3",88769,"Other general-purpose machinery manufacturing services"]
["Level 2",8877,"Special-purpose machinery manufacturing services"]
["Level 3",88771,"Agricultural and forestry machinery manufacturing services"]
["Level 3",88772,"Metal-forming machinery and machine tools manufacturing services"]
["Level 3",88773,"Metallurgy machinery manufacturing services"]
["Level 3",88774,"Mining, quarrying and construction machinery manufacturing services"]
["Level 3",88775,"Food, beverage and tobacco processing machinery manufacturing services"]
["Level 3",88776,"Textile, apparel and leather production machinery manufacturing services"]
["Level 3",88779,"Other special-purpose machinery manufacturing services"]
["Level 1",888,"Transport equipment manufacturing services"]
["Level 2",8881,"Motor vehicle and trailer manufacturing services"]
["Level 3",88811,"Motor vehicle manufacturing services"]
["Level 3",88812,"Trailers and semi-trailer manufacturing services"]
["Level 3",88813,"Motor vehicle part and accessory manufacturing services"]
["Level 2",8882,"Other transport equipment manufacturing services"]
["Level 3",88821,"Ship building services"]
["Level 3",88822,"Pleasure and sporting boat manufacturing services"]
["Level 3",88823,"Railway locomotive and rolling stock manufacturing services"]
["Level 3",88824,"Air and spacecraft manufacturing services"]
["Level 3",88825,"Military fighting vehicle manufacturing services"]
["Level 3",88826,"Motorcycle manufacturing services"]
["Level 3",88827,"Bicycles and invalid carriage manufacturing services"]
["Level 3",88829,"Other transport equipment manufacturing services n.e.c."]
["Level 1",889,"Other manufacturing services"]
["Level 2",8890,"Other manufacturing services"]
["Level 3",88901,"Furniture manufacturing services"]
["Level 3",88902,"Jewellery manufacturing services"]
["Level 3",88903,"Imitation jewellery manufacturing services"]
["Level 3",88904,"Musical instrument manufacturing services"]
["Level 3",88905,"Sports good manufacturing services"]
["Level 3",88906,"Game and toy manufacturing services"]
["Level 3",88907,"Medical and dental instrument and supply manufacturing services"]
["Level 3",88909,"Other manufacturing services n.e.c."]
["Division",89,"Other manufacturing services; publishing, printing and reproduction services; materials recovery services"]
["Level 1",891,"Publishing, printing and reproduction services"]
["Level 2",8911,"Publishing, on a fee or contract basis"]
["Level 3",89110,"Publishing, on a fee or contract basis"]
["Level 2",8912,"Printing and reproduction services of recorded media, on a fee or contract basis"]
["Level 3",89121,"Printing services"]
["Level 3",89122,"Services related to printing"]
["Level 3",89123,"Reproduction services of recorded media, on a fee or contract basis"]
["Level 1",892,"Moulding, pressing, stamping, extruding and similar plastic manufacturing services"]
["Level 2",8920,"Moulding, pressing, stamping, extruding and similar plastic manufacturing services"]
["Level 3",89200,"Moulding, pressing, stamping, extruding and similar plastic manufacturing services"]
["Level 1",893,"Casting, forging, stamping and similar metal manufacturing services"]
["Level 2",8931,"Iron and steel casting services"]
["Level 3",89310,"Iron and steel casting services"]
["Level 2",8932,"Non-ferrous metal casting services"]
["Level 3",89320,"Non-ferrous metal casting services"]
["Level 2",8933,"Metal forging, pressing, stamping, roll forming and powder metallurgy services"]
["Level 3",89330,"Metal forging, pressing, stamping, roll forming and powder metallurgy services"]
["Level 1",894,"Materials recovery (recycling) services, on a fee or contract basis"]
["Level 2",8941,"Metal waste and scrap recovery (recycling) services, on a fee or contract basis"]
["Level 3",89410,"Metal waste and scrap recovery (recycling) services, on a fee or contract basis"]
["Level 2",8942,"Non-metal waste and scrap recovery (recycling) services, on a fee or contract basis"]
["Level 3",89420,"Non-metal waste and scrap recovery (recycling) services, on a fee or contract basis"]
["Section",9,"Community, social and personal services"]
["Division",91,"Public administration and other services provided to the community as a whole; compulsory social security services"]
["Level 1",911,"Administrative services of the government"]
["Level 2",9111,"Overall government public services"]
["Level 3",91111,"Executive and legislative services"]
["Level 3",91112,"Financial and fiscal services"]
["Level 3",91113,"Overall economic and social planning and statistical services"]
["Level 3",91114,"Government services to research and development"]
["Level 3",91119,"Other overall government public services"]
["Level 2",9112,"Public administrative services related to the provision of educational, health care, cultural and other social services, excluding social security services"]
["Level 3",91121,"Public administrative services related to education"]
["Level 3",91122,"Public administrative services related to health care"]
["Level 3",91123,"Public administrative services related to housing and community amenities"]
["Level 3",91124,"Public administrative services related to recreation, culture and religion"]
["Level 2",9113,"Public administrative services related to the more efficient operation of business"]
["Level 3",91131,"Public administrative services related to agriculture, forestry, fishing and hunting"]
["Level 3",91132,"Public administrative services related to fuel and energy"]
["Level 3",91133,"Public administrative services related to mining and mineral resources, manufacturing and construction"]
["Level 3",91134,"Public administrative services related to transport and communications"]
["Level 3",91135,"Public administrative services related to the distributive and catering trades, hotels and restaurants"]
["Level 3",91136,"Public administrative services related to tourism affairs"]
["Level 3",91137,"Public administrative services related to multipurpose development projects"]
["Level 3",91138,"Public administrative services related to general economic, commercial and labour affairs"]
["Level 2",9119,"Other administrative services of the government"]
["Level 3",91191,"Administrative services related to government personnel"]
["Level 3",91199,"Other administrative services of the government n.e.c."]
["Level 1",912,"Public administrative services provided to the community as a whole"]
["Level 2",9121,"Public administrative services related to external affairs, diplomatic and consular services abroad"]
["Level 3",91210,"Public administrative services related to external affairs, diplomatic and consular services abroad"]
["Level 2",9122,"Services related to foreign economic aid"]
["Level 3",91220,"Services related to foreign economic aid"]
["Level 2",9123,"Services related to foreign military aid"]
["Level 3",91230,"Services related to foreign military aid"]
["Level 2",9124,"Military defence services"]
["Level 3",91240,"Military defence services"]
["Level 2",9125,"Civil defence services"]
["Level 3",91250,"Civil defence services"]
["Level 2",9126,"Police and fire protection services"]
["Level 3",91260,"Police and fire protection services"]
["Level 2",9127,"Public administrative services related to law courts"]
["Level 3",91270,"Public administrative services related to law courts"]
["Level 2",9128,"Administrative services related to the detention or rehabilitation of criminals"]
["Level 3",91280,"Administrative services related to the detention or rehabilitation of criminals"]
["Level 2",9129,"Public administrative services related to other public order and safety affairs"]
["Level 3",91290,"Public administrative services related to other public order and safety affairs"]
["Level 1",913,"Administrative services related to compulsory social security schemes"]
["Level 2",9131,"Administrative services related to sickness, maternity or temporary disablement benefit schemes"]
["Level 3",91310,"Administrative services related to sickness, maternity or temporary disablement benefit schemes"]
["Level 2",9132,"Administrative services related to government employee pension schemes; old-age disability or survivors' benefit schemes, other than for government employees"]
["Level 3",91320,"Administrative services related to government employee pension schemes; old-age disability or survivors' benefit schemes, other than for government employees"]
["Level 2",9133,"Administrative services related to unemployment compensation benefit schemes"]
["Level 3",91330,"Administrative services related to unemployment compensation benefit schemes"]
["Level 2",9134,"Administrative services related to family and child allowance programmes"]
["Level 3",91340,"Administrative services related to family and child allowance programmes"]
["Division",92,"Education services"]
["Level 1",921,"Pre-primary education services"]
["Level 2",9210,"Pre-primary education services"]
["Level 3",92100,"Pre-primary education services"]
["Level 1",922,"Primary education services"]
["Level 2",9220,"Primary education services"]
["Level 3",92200,"Primary education services"]
["Level 1",923,"Secondary education services"]
["Level 2",9231,"Lower secondary education services, general"]
["Level 3",92310,"Lower secondary education services, general"]
["Level 2",9232,"Lower secondary education services, technical and vocational"]
["Level 3",92320,"Lower secondary education services, technical and vocational"]
["Level 2",9233,"Upper secondary education services, general"]
["Level 3",92330,"Upper secondary education services, general"]
["Level 2",9234,"Upper secondary education services, technical and vocational"]
["Level 3",92340,"Upper secondary education services, technical and vocational"]
["Level 1",924,"Post-secondary non-tertiary education services"]
["Level 2",9241,"Post-secondary non-tertiary education services, general"]
["Level 3",92410,"Post-secondary non-tertiary education services, general"]
["Level 2",9242,"Post-secondary non-tertiary education services, technical and vocational"]
["Level 3",92420,"Post-secondary non-tertiary education services, technical and vocational"]
["Level 1",925,"Tertiary education services"]
["Level 2",9251,"First stage tertiary education services"]
["Level 3",92510,"First stage tertiary education services"]
["Level 2",9252,"Second stage tertiary education services"]
["Level 3",92520,"Second stage tertiary education services"]
["Level 1",929,"Other education and training services and educational support services"]
["Level 2",9291,"Other education and training services"]
["Level 3",92911,"Cultural education services"]
["Level 3",92912,"Sports and recreation education services"]
["Level 3",92919,"Other education and training services, n.e.c."]
["Level 2",9292,"Educational support services"]
["Level 3",92920,"Educational support services"]
["Division",93,"Human health and social care services"]
["Level 1",931,"Human health services"]
["Level 2",9311,"Inpatient services"]
["Level 3",93111,"Surgical services for inpatients"]
["Level 3",93112,"Gynaecological and obstetrical services for inpatients"]
["Level 3",93113,"Psychiatric services for inpatients"]
["Level 3",93119,"Other services for inpatients"]
["Level 2",9312,"Medical and dental services"]
["Level 3",93121,"General medical services"]
["Level 3",93122,"Specialized medical services"]
["Level 3",93123,"Dental services"]
["Level 2",9319,"Other human health services"]
["Level 3",93191,"Childbirth and related services"]
["Level 3",93192,"Nursing services"]
["Level 3",93193,"Physiotherapeutic services"]
["Level 3",93194,"Ambulance services"]
["Level 3",93195,"Medical laboratory services"]
["Level 3",93196,"Diagnostic-imaging services"]
["Level 3",93197,"Blood, sperm and organ bank services"]
["Level 3",93199,"Other human health services n.e.c."]
["Level 1",932,"Residential care services for the elderly and disabled"]
["Level 2",9321,"Residential health-care services other than by hospitals"]
["Level 3",93210,"Residential health-care services other than by hospitals"]
["Level 2",9322,"Residential care services for the elderly and persons with disabilities"]
["Level 3",93221,"Residential care services for the elderly"]
["Level 3",93222,"Residential care services for young disabled persons"]
["Level 3",93223,"Residential care services for disabled adults"]
["Level 1",933,"Other social services with accommodation"]
["Level 2",9330,"Other social services with accommodation"]
["Level 3",93301,"Residential care services for children suffering from mental retardation, mental health illnesses or substance abuse"]
["Level 3",93302,"Other social services with accommodation for children"]
["Level 3",93303,"Residential care services for adults suffering from mental retardation, mental health illnesses or substance abuse"]
["Level 3",93304,"Other social services with accommodation for adults"]
["Level 1",934,"Social services without accommodation for the elderly and disabled"]
["Level 2",9341,"Vocational rehabilitation services"]
["Level 3",93411,"Vocational rehabilitation services for persons with disabilities"]
["Level 3",93412,"Vocational rehabilitation services for unemployed persons"]
["Level 2",9349,"Other social services without accommodation for the elderly and disabled"]
["Level 3",93491,"Other social services without accommodation for the elderly"]
["Level 3",93492,"Other social services without accommodation for disabled children"]
["Level 3",93493,"Other social services without accommodation for disabled adults"]
["Level 1",935,"Other social services without accommodation"]
["Level 2",9351,"Child day-care services"]
["Level 3",93510,"Child day-care services"]
["Level 2",9352,"Guidance and counselling services n.e.c. related to children"]
["Level 3",93520,"Guidance and counselling services n.e.c. related to children"]
["Level 2",9353,"Welfare services without accommodation"]
["Level 3",93530,"Welfare services without accommodation"]
["Level 2",9359,"Other social services without accommodation, n.e.c."]
["Level 3",93590,"Other social services without accommodation, n.e.c."]
["Division",94,"Sewage and waste collection, treatment and disposal and other environmental protection services"]
["Level 1",941,"Sewerage, sewage treatment and septic tank cleaning services"]
["Level 2",9411,"Sewerage and sewage treatment services"]
["Level 3",94110,"Sewerage and sewage treatment services"]
["Level 2",9412,"Septic tank emptying and cleaning services"]
["Level 3",94120,"Septic tank emptying and cleaning services"]
["Level 1",942,"Waste collection services"]
["Level 2",9421,"Collection services of hazardous waste"]
["Level 3",94211,"Collection services of hazardous medical and other biohazardous waste"]
["Level 3",94212,"Collection services of industrial hazardous waste (except medical and other biohazardous waste)"]
["Level 3",94219,"Collection services of other hazardous waste"]
["Level 2",9422,"Collection services of non-hazardous recyclable materials"]
["Level 3",94221,"Collection services of non-hazardous recyclable materials, residential"]
["Level 3",94229,"Collection services of non-hazardous recyclable materials, other"]
["Level 2",9423,"General waste collection services"]
["Level 3",94231,"General waste collection services, residential"]
["Level 3",94239,"General waste collection services, other"]
["Level 1",943,"Waste treatment and disposal services"]
["Level 2",9431,"Waste preparation, consolidation and storage services"]
["Level 3",94311,"Hazardous waste preparation, consolidation and storage services"]
["Level 3",94312,"Ship-breaking and other dismantling of wrecks services"]
["Level 3",94313,"Non-hazardous recyclable materials preparation, consolidation and storage services"]
["Level 3",94319,"Other non-hazardous waste preparation, consolidation and storage services"]
["Level 2",9432,"Hazardous waste treatment and disposal services"]
["Level 3",94321,"Hazardous waste treatment services"]
["Level 3",94322,"Hazardous waste disposal services"]
["Level 2",9433,"Non-hazardous waste treatment and disposal services"]
["Level 3",94331,"Sanitary landfill services, non-hazardous waste"]
["Level 3",94332,"Other landfill services, non-hazardous waste"]
["Level 3",94333,"Incineration of non-hazardous waste"]
["Level 3",94339,"Other non-hazardous waste treatment and disposal services"]
["Level 1",944,"Remediation services"]
["Level 2",9441,"Site remediation and clean-up services"]
["Level 3",94411,"Site remediation and clean-up services, air"]
["Level 3",94412,"Site remediation and clean-up services, surface water"]
["Level 3",94413,"Site remediation and clean-up services, soil and groundwater"]
["Level 2",9442,"Containment, control and monitoring services and other site remediation services n.e.c."]
["Level 3",94420,"Containment, control and monitoring services and other site remediation services n.e.c."]
["Level 2",9443,"Building remediation services"]
["Level 3",94430,"Building remediation services"]
["Level 2",9449,"Other remediation services n.e.c."]
["Level 3",94490,"Other remediation services n.e.c."]
["Level 1",945,"Sanitation and similar services"]
["Level 2",9451,"Sweeping and snow removal services"]
["Level 3",94510,"Sweeping and snow removal services"]
["Level 2",9459,"Other sanitation services"]
["Level 3",94590,"Other sanitation services"]
["Level 1",949,"Other environmental protection services n.e.c."]
["Level 2",9490,"Other environmental protection services n.e.c."]
["Level 3",94900,"Other environmental protection services n.e.c."]
["Division",95,"Services of membership organizations"]
["Level 1",951,"Services furnished by business, employers and professional organizations"]
["Level 2",9511,"Services furnished by business and employers organizations"]
["Level 3",95110,"Services furnished by business and employers organizations"]
["Level 2",9512,"Services furnished by professional organizations"]
["Level 3",95120,"Services furnished by professional organizations"]
["Level 1",952,"Services furnished by trade unions"]
["Level 2",9520,"Services furnished by trade unions"]
["Level 3",95200,"Services furnished by trade unions"]
["Level 1",959,"Services furnished by other membership organizations"]
["Level 2",9591,"Religious services"]
["Level 3",95910,"Religious services"]
["Level 2",9592,"Services furnished by political organizations"]
["Level 3",95920,"Services furnished by political organizations"]
["Level 2",9599,"Services furnished by other membership organizations n.e.c."]
["Level 3",95991,"Services furnished by human rights organizations"]
["Level 3",95992,"Services furnished by environmental advocacy groups"]
["Level 3",95993,"Other special group advocacy services"]
["Level 3",95994,"Other civic betterment and community facility support services"]
["Level 3",95995,"Services provided by youth associations"]
["Level 3",95996,"Grant-giving services"]
["Level 3",95997,"Cultural and recreational associations (other than sports or games)"]
["Level 3",95998,"Other civic and social organizations"]
["Level 3",95999,"Other services provided by membership organizations n.e.c."]
["Division",96,"Recreational, cultural and sporting services"]
["Level 1",961,"Audiovisual and related services"]
["Level 2",9611,"Sound recording services"]
["Level 3",96111,"Sound recording services"]
["Level 3",96112,"Live recording services"]
["Level 3",96113,"Sound recording originals"]
["Level 2",9612,"Motion picture, videotape, television and radio programme production services"]
["Level 3",96121,"Motion picture, videotape and television programme production services"]
["Level 3",96122,"Radio programme production services"]
["Level 3",96123,"Motion picture, videotape, television and radio programme originals"]
["Level 2",9613,"Audiovisual post-production services"]
["Level 3",96131,"Audiovisual editing services"]
["Level 3",96132,"Transfers and duplication of masters services"]
["Level 3",96133,"Colour correction and digital restoration services"]
["Level 3",96134,"Visual effects services"]
["Level 3",96135,"Animation services"]
["Level 3",96136,"Captioning, titling and subtitling services"]
["Level 3",96137,"Sound editing and design services"]
["Level 3",96139,"Other post-production services"]
["Level 2",9614,"Motion picture, videotape and television programme distribution services"]
["Level 3",96140,"Motion picture, videotape and television programme distribution services"]
["Level 2",9615,"Motion picture projection services"]
["Level 3",96150,"Motion picture projection services"]
["Level 1",962,"Performing arts and other live entertainment event presentation and promotion services"]
["Level 2",9621,"Performing arts event promotion and organization services"]
["Level 3",96210,"Performing arts event promotion and organization services"]
["Level 2",9622,"Performing arts event production and presentation services"]
["Level 3",96220,"Performing arts event production and presentation services"]
["Level 2",9623,"Performing arts facility operation services"]
["Level 3",96230,"Performing arts facility operation services"]
["Level 2",9629,"Other performing arts and live entertainment services"]
["Level 3",96290,"Other performing arts and live entertainment services"]
["Level 1",963,"Services of performing and other artists"]
["Level 2",9631,"Services of performing artists"]
["Level 3",96310,"Services of performing artists"]
["Level 2",9632,"Services of authors, composers, sculptors and other artists, except performing artists"]
["Level 3",96320,"Services of authors, composers, sculptors and other artists, except performing artists"]
["Level 2",9633,"Original works of authors, composers and other artists except performing artists, painters and sculptors"]
["Level 3",96330,"Original works of authors, composers and other artists except performing artists, painters and sculptors"]
["Level 1",964,"Museum and preservation services"]
["Level 2",9641,"Museum and preservation services of historical sites and buildings"]
["Level 3",96411,"Museum services except for historical sites and buildings"]
["Level 3",96412,"Preservation services of historical sites and buildings"]
["Level 2",9642,"Botanical, zoological and nature reserve services"]
["Level 3",96421,"Botanical and zoological garden services"]
["Level 3",96422,"Nature reserve services including wildlife preservation services"]
["Level 1",965,"Sports and recreational sports services"]
["Level 2",9651,"Sports and recreational sports event promotion and organization services"]
["Level 3",96511,"Sports and recreational sports event promotion services"]
["Level 3",96512,"Services of sports clubs"]
["Level 2",9652,"Sports and recreational sports facility operation services"]
["Level 3",96520,"Sports and recreational sports facility operation services"]
["Level 2",9659,"Other sports and recreational sports services"]
["Level 3",96590,"Other sports and recreational sports services"]
["Level 1",966,"Services of athletes and related support services"]
["Level 2",9661,"Services of athletes"]
["Level 3",96610,"Services of athletes"]
["Level 2",9662,"Support services related to sports and recreation"]
["Level 3",96620,"Support services related to sports and recreation"]
["Level 1",969,"Other amusement and recreational services"]
["Level 2",9691,"Amusement park and similar attraction services"]
["Level 3",96910,"Amusement park and similar attraction services"]
["Level 2",9692,"Gambling and betting services"]
["Level 3",96921,"On-line gambling services"]
["Level 3",96929,"Other gambling and betting services"]
["Level 2",9693,"Coin-operated amusement machine services"]
["Level 3",96930,"Coin-operated amusement machine services"]
["Level 2",9699,"Other recreation and amusement services n.e.c."]
["Level 3",96990,"Other recreation and amusement services n.e.c."]
["Division",97,"Other services"]
["Level 1",971,"Washing, cleaning and dyeing services"]
["Level 2",9711,"Coin-operated laundry services"]
["Level 3",97110,"Coin-operated laundry services"]
["Level 2",9712,"Dry-cleaning services (including fur product cleaning services)"]
["Level 3",97120,"Dry-cleaning services (including fur product cleaning services)"]
["Level 2",9713,"Other textile cleaning services"]
["Level 3",97130,"Other textile cleaning services"]
["Level 2",9714,"Pressing services"]
["Level 3",97140,"Pressing services"]
["Level 2",9715,"Dyeing and colouring services"]
["Level 3",97150,"Dyeing and colouring services"]
["Level 1",972,"Beauty and physical well-being services"]
["Level 2",9721,"Hairdressing and barbers' services"]
["Level 3",97210,"Hairdressing and barbers' services"]
["Level 2",9722,"Cosmetic treatment, manicuring and pedicuring services"]
["Level 3",97220,"Cosmetic treatment, manicuring and pedicuring services"]
["Level 2",9723,"Physical well-being services"]
["Level 3",97230,"Physical well-being services"]
["Level 2",9729,"Other beauty treatment services n.e.c."]
["Level 3",97290,"Other beauty treatment services n.e.c."]
["Level 1",973,"Funeral, cremation and undertaking services"]
["Level 2",9731,"Cemeteries and cremation services"]
["Level 3",97310,"Cemeteries and cremation services"]
["Level 2",9732,"Undertaking services"]
["Level 3",97320,"Undertaking services"]
["Level 1",979,"Other miscellaneous services"]
["Level 2",9791,"Escort services"]
["Level 3",97910,"Escort services"]
["Level 2",9799,"Other miscellaneous services n.e.c."]
["Level 3",97990,"Other miscellaneous services n.e.c."]
["Division",98,"Domestic services"]
["Level 1",980,"Domestic services"]
["Level 2",9800,"Domestic services"]
["Level 3",98000,"Domestic services"]
["Division",99,"Services provided by extraterritorial organizations and bodies"]
["Level 1",990,"Services provided by extraterritorial organizations and bodies"]
["Level 2",9900,"Services provided by extraterritorial organizations and bodies"]
["Level 3",99000,"Services provided by extraterritorial organizations and bodies"]

{"sheet":"Lookups countries & currencies","index":3,"n_rows":267,"n_cols":3,"rows_kept":267,"cut":false,"hidden":true,"merged":[]}
["Country","Currency","Currency code"]
["Afghanistan","Afghani","AFN"]
["Åland Islands","Euro","EUR"]
["Albania","Lek","ALL"]
["Algeria","Algerian Dinar","DZD"]
["American Samoa","US Dollar","USD"]
["Andorra","Euro","EUR"]
["Angola","Kwanza","AOA"]
["Anguilla","East Caribbean Dollar","XCD"]
["Antigua And Barbuda","East Caribbean Dollar","XCD"]
["Argentina","Argentine Peso","ARS"]
["Armenia","Armenian Dram","AMD"]
["Aruba","Aruban Florin","AWG"]
["Australia","Australian Dollar","AUD"]
["Austria","Euro","EUR"]
["Azerbaijan","Azerbaijan Manat","AZN"]
["Bahamas (The)","Bahamian Dollar","BSD"]
["Bahrain","Bahraini Dinar","BHD"]
["Bangladesh","Taka","BDT"]
["Barbados","Barbados Dollar","BBD"]
["Belarus","Belarusian Ruble","BYN"]
["Belgium","Euro","EUR"]
["Belize","Belize Dollar","BZD"]
["Benin","CFA Franc BCEAO","XOF"]
["Bermuda","Bermudian Dollar","BMD"]
["Bhutan","Indian Rupee","INR"]
["Bhutan","Ngultrum","BTN"]
["Bolivia (Plurinational State Of)","Boliviano","BOB"]
["Bolivia (Plurinational State Of)","Mvdol","BOV"]
["Bonaire, Sint Eustatius And Saba","US Dollar","USD"]
["Bosnia And Herzegovina","Convertible Mark","BAM"]
["Botswana","Pula","BWP"]
["Bouvet Island","Norwegian Krone","NOK"]
["Brazil","Brazilian Real","BRL"]
["British Indian Ocean Territory (The)","US Dollar","USD"]
["Brunei Darussalam","Brunei Dollar","BND"]
["Bulgaria","Bulgarian Lev","BGN"]
["Burkina Faso","CFA Franc BCEAO","XOF"]
["Burundi","Burundi Franc","BIF"]
["Cabo Verde","Cabo Verde Escudo","CVE"]
["Cambodia","Riel","KHR"]
["Cameroon","CFA Franc BEAC","XAF"]
["Canada","Canadian Dollar","CAD"]
["Cayman Islands (The)","Cayman Islands Dollar","KYD"]
["Central African Republic (The)","CFA Franc BEAC","XAF"]
["Chad","CFA Franc BEAC","XAF"]
["Chile","Chilean Peso","CLP"]
["Chile","Unidad de Fomento","CLF"]
["China","Yuan Renminbi","CNY"]
["Christmas Island","Australian Dollar","AUD"]
["Cocos (Keeling) Islands (The)","Australian Dollar","AUD"]
["Colombia","Colombian Peso","COP"]
["Colombia","Unidad de Valor Real","COU"]
["Comoros (The)","Comorian Franc ","KMF"]
["Congo (The Democratic Republic Of The)","Congolese Franc","CDF"]
["Congo (The)","CFA Franc BEAC","XAF"]
["Cook Islands (The)","New Zealand Dollar","NZD"]
["Costa Rica","Costa Rican Colon","CRC"]
["Côte D'ivoire","CFA Franc BCEAO","XOF"]
["Croatia","Kuna","HRK"]
["Cuba","Cuban Peso","CUP"]
["Cuba","Peso Convertible","CUC"]
["Curaçao","Netherlands Antillean Guilder","ANG"]
["Cyprus","Euro","EUR"]
["Czechia","Czech Koruna","CZK"]
["Denmark","Danish Krone","DKK"]
["Djibouti","Djibouti Franc","DJF"]
["Dominica","East Caribbean Dollar","XCD"]
["Dominican Republic (The)","Dominican Peso","DOP"]
["Ecuador","US Dollar","USD"]
["Egypt","Egyptian Pound","EGP"]
["El Salvador","El Salvador Colon","SVC"]
["El Salvador","US Dollar","USD"]
["Equatorial Guinea","CFA Franc BEAC","XAF"]
["Eritrea","Nakfa","ERN"]
["Estonia","Euro","EUR"]
["Eswatini","Lilangeni","SZL"]
["Ethiopia","Ethiopian Birr","ETB"]
["European Union","Euro","EUR"]
["Falkland Islands (The) [Malvinas]","Falkland Islands Pound","FKP"]
["Faroe Islands (The)","Danish Krone","DKK"]
["Fiji","Fiji Dollar","FJD"]
["Finland","Euro","EUR"]
["France","Euro","EUR"]
["French Guiana","Euro","EUR"]
["French Polynesia","CFP Franc","XPF"]
["French Southern Territories (The)","Euro","EUR"]
["Gabon","CFA Franc BEAC","XAF"]
["Gambia (The)","Dalasi","GMD"]
["Georgia","Lari","GEL"]
["Germany","Euro","EUR"]
["Ghana","Ghana Cedi","GHS"]
["Gibraltar","Gibraltar Pound","GIP"]
["Greece","Euro","EUR"]
["Greenland","Danish Krone","DKK"]
["Grenada","East Caribbean Dollar","XCD"]
["Guadeloupe","Euro","EUR"]
["Guam","US Dollar","USD"]
["Guatemala","Quetzal","GTQ"]
["Guernsey","Pound Sterling","GBP"]
["Guinea","Guinean Franc","GNF"]
["Guinea-Bissau","CFA Franc BCEAO","XOF"]
["Guyana","Guyana Dollar","GYD"]
["Haiti","Gourde","HTG"]
["Haiti","US Dollar","USD"]
["Heard Island And Mcdonald Islands","Australian Dollar","AUD"]
["Holy See (The)","Euro","EUR"]
["Honduras","Lempira","HNL"]
["Hong Kong","Hong Kong Dollar","HKD"]
["Hungary","Forint","HUF"]
["Iceland","Iceland Krona","ISK"]
["India","Indian Rupee","INR"]
["Indonesia","Rupiah","IDR"]
["International Monetary Fund (Imf) ","SDR (Special Drawing Right)","XDR"]
["Iran (Islamic Republic Of)","Iranian Rial","IRR"]
["Iraq","Iraqi Dinar","IQD"]
["Ireland","Euro","EUR"]
["Isle Of Man","Pound Sterling","GBP"]
["Israel","New Israeli Sheqel","ILS"]
["Italy","Euro","EUR"]
["Jamaica","Jamaican Dollar","JMD"]
["Japan","Yen","JPY"]
["Jersey","Pound Sterling","GBP"]
["Jordan","Jordanian Dinar","JOD"]
["Kazakhstan","Tenge","KZT"]
["Kenya","Kenyan Shilling","KES"]
["Kiribati","Australian Dollar","AUD"]
["Korea (The Democratic People’s Republic Of)","North Korean Won","KPW"]
["Korea (The Republic Of)","Won","KRW"]
["Kuwait","Kuwaiti Dinar","KWD"]
["Kyrgyzstan","Som","KGS"]
["Lao People’s Democratic Republic (The)","Lao Kip","LAK"]
["Latvia","Euro","EUR"]
["Lebanon","Lebanese Pound","LBP"]
["Lesotho","Loti","LSL"]
["Lesotho","Rand","ZAR"]
["Liberia","Liberian Dollar","LRD"]
["Libya","Libyan Dinar","LYD"]
["Liechtenstein","Swiss Franc","CHF"]
["Lithuania","Euro","EUR"]
["Luxembourg","Euro","EUR"]
["Macao","Pataca","MOP"]
["North Macedonia","Denar","MKD"]
["Madagascar","Malagasy Ariary","MGA"]
["Malawi","Malawi Kwacha","MWK"]
["Malaysia","Malaysian Ringgit","MYR"]
["Maldives","Rufiyaa","MVR"]
["Mali","CFA Franc BCEAO","XOF"]
["Malta","Euro","EUR"]
["Marshall Islands (The)","US Dollar","USD"]
["Martinique","Euro","EUR"]
["Mauritania","Ouguiya","MRU"]
["Mauritius","Mauritius Rupee","MUR"]
["Mayotte","Euro","EUR"]
["Member Countries Of The African Development Bank Group","ADB Unit of Account","XUA"]
["Mexico","Mexican Peso","MXN"]
["Mexico","Mexican Unidad de Inversion (UDI)","MXV"]
["Micronesia (Federated States Of)","US Dollar","USD"]
["Moldova (The Republic Of)","Moldovan Leu","MDL"]
["Monaco","Euro","EUR"]
["Mongolia","Tugrik","MNT"]
["Montenegro","Euro","EUR"]
["Montserrat","East Caribbean Dollar","XCD"]
["Morocco","Moroccan Dirham","MAD"]
["Mozambique","Mozambique Metical","MZN"]
["Myanmar","Kyat","MMK"]
["Namibia","Namibia Dollar","NAD"]
["Namibia","Rand","ZAR"]
["Nauru","Australian Dollar","AUD"]
["Nepal","Nepalese Rupee","NPR"]
["Netherlands (The)","Euro","EUR"]
["New Caledonia","CFP Franc","XPF"]
["New Zealand","New Zealand Dollar","NZD"]
["Nicaragua","Cordoba Oro","NIO"]
["Niger (The)","CFA Franc BCEAO","XOF"]
["Nigeria","Naira","NGN"]
["Niue","New Zealand Dollar","NZD"]
["Norfolk Island","Australian Dollar","AUD"]
["Northern Mariana Islands (The)","US Dollar","USD"]
["Norway","Norwegian Krone","NOK"]
["Oman","Rial Omani","OMR"]
["Pakistan","Pakistan Rupee","PKR"]
["Palau","US Dollar","USD"]
["Panama","Balboa","PAB"]
["Panama","US Dollar","USD"]
["Papua New Guinea","Kina","PGK"]
["Paraguay","Guarani","PYG"]
["Peru","Sol","PEN"]
["Philippines (The)","Philippine Peso","PHP"]
["Pitcairn","New Zealand Dollar","NZD"]
["Poland","Zloty","PLN"]
["Portugal","Euro","EUR"]
["Puerto Rico","US Dollar","USD"]
["Qatar","Qatari Rial","QAR"]
["Réunion","Euro","EUR"]
["Romania","Romanian Leu","RON"]
["Russian Federation (The)","Russian Ruble","RUB"]
["Rwanda","Rwanda Franc","RWF"]
["Saint Barthélemy","Euro","EUR"]
["Saint Helena, Ascension And Tristan Da Cunha","Saint Helena Pound","SHP"]
["Saint Kitts And Nevis","East Caribbean Dollar","XCD"]
["Saint Lucia","East Caribbean Dollar","XCD"]
["Saint Martin (French Part)","Euro","EUR"]
["Saint Pierre And Miquelon","Euro","EUR"]
["Saint Vincent And The Grenadines","East Caribbean Dollar","XCD"]
["Samoa","Tala","WST"]
["San Marino","Euro","EUR"]
["Sao Tome And Principe","Dobra","STN"]
["Saudi Arabia","Saudi Riyal","SAR"]
["Senegal","CFA Franc BCEAO","XOF"]
["Serbia","Serbian Dinar","RSD"]
["Seychelles","Seychelles Rupee","SCR"]
["Sierra Leone","Leone","SLL"]
["Singapore","Singapore Dollar","SGD"]
["Sint Maarten (Dutch Part)","Netherlands Antillean Guilder","ANG"]
["Sistema Unitario De Compensacion Regional De Pagos \"Sucre\"","Sucre","XSU"]
["Slovakia","Euro","EUR"]
["Slovenia","Euro","EUR"]
["Solomon Islands","Solomon Islands Dollar","SBD"]
["Somalia","Somali Shilling","SOS"]
["South Africa","Rand","ZAR"]
["South Sudan","South Sudanese Pound","SSP"]
["Spain","Euro","EUR"]
["Sri Lanka","Sri Lanka Rupee","LKR"]
["Sudan (The)","Sudanese Pound","SDG"]
["Suriname","Surinam Dollar","SRD"]
["Svalbard And Jan Mayen","Norwegian Krone","NOK"]
["Sweden","Swedish Krona","SEK"]
["Switzerland","Swiss Franc","CHF"]
["Switzerland","WIR Euro","CHE"]
["Switzerland","WIR Franc","CHW"]
["Syrian Arab Republic","Syrian Pound","SYP"]
["Taiwan (Province Of China)","New Taiwan Dollar","TWD"]
["Tajikistan","Somoni","TJS"]
["Tanzania, United Republic Of","Tanzanian Shilling","TZS"]
["Thailand","Baht","THB"]
["Timor-Leste","US Dollar","USD"]
["Togo","CFA Franc BCEAO","XOF"]
["Tokelau","New Zealand Dollar","NZD"]
["Tonga","Pa’anga","TOP"]
["Trinidad And Tobago","Trinidad and Tobago Dollar","TTD"]
["Tunisia","Tunisian Dinar","TND"]
["Turkey","Turkish Lira","TRY"]
["Turkmenistan","Turkmenistan New Manat","TMT"]
["Turks And Caicos Islands (The)","US Dollar","USD"]
["Tuvalu","Australian Dollar","AUD"]
["Uganda","Uganda Shilling","UGX"]
["Ukraine","Hryvnia","UAH"]
["United Arab Emirates (The)","UAE Dirham","AED"]
["United Kingdom Of Great Britain And Northern Ireland (The)","Pound Sterling","GBP"]
["United States Minor Outlying Islands (The)","US Dollar","USD"]
["United States Of America (The)","US Dollar","USD"]
["United States Of America (The)","US Dollar (Next day)","USN"]
["Uruguay","Peso Uruguayo","UYU"]
["Uruguay","Uruguay Peso en Unidades Indexadas (UI)","UYI"]
["Uruguay","Unidad Previsional","UYW"]
["Uzbekistan","Uzbekistan Sum","UZS"]
["Vanuatu","Vatu","VUV"]
["Venezuela (Bolivarian Republic Of)","Bolívar Soberano","VES"]
["Viet Nam","Dong","VND"]
["Virgin Islands (British)","US Dollar","USD"]
["Virgin Islands (U.S.)","US Dollar","USD"]
["Wallis And Futuna","CFP Franc","XPF"]
["Western Sahara","Moroccan Dirham","MAD"]
["Yemen","Yemeni Rial","YER"]
["Zambia","Zambian Kwacha","ZMW"]
["Zimbabwe","Zimbabwe Dollar","ZWL"]

{"sheet":"Lookups other","index":4,"n_rows":8,"n_cols":7,"rows_kept":8,"cut":false,"hidden":true,"merged":[]}
["Organization type (by legal ownership)","Currency requirement","Loan purpose","Client type","Current contracts specify pricing","Decision-making process","If a function head, which function(s)"]
["Partnership","Local","Working capital - Trade finance","Input supply","All","Always","Finance"]
["Limited liability company (LLC)","Foreign","Working capital - Other working capital","Production","Some","Sometimes","Operations"]
["Corporation with shareholders","Local or foreign","Asset finance - Equipment and infrastructure","Processing","None","Never","Sales & marketing"]
["Corporation for benefit",null,"Asset finance - Crop renovation","Trade",null,null,"Human resources"]
["Corporation not for profit",null,"Refinancing","Distribution"]
["Cooperative",null,null,"Facilitation"]
["Sole proprietor"]